Workbook

Sheet Cover
A1: =RIGHT(CELL("filename", $A$1), LEN(CELL("filename", $A$1)) - SEARCH("]", CELL("filename", $A$1))) -> Cover
B3: Model name: | C3: Cost of new debt indexation model
B4: Version number: | C4: 6.3
B5: Filename: | C5: Cost-of-new-debt-indexation-model-Dec-2020-v6.3.xlsm
B6: Date: | C6: 2020-12-02
B7: Author: | C7: Ofwat
B8: Author contact information: | C8: OfwatPandO@ofwat.gov.uk
B11: Summary of model: | C11: This model implements the necessary reconciliations for the allowed return on new debt.
B17: Disclaimer: | C17: None
B19: Known limitations of the model: | C19: None
C21: Issue | E21: Details | F21: Model link
B25: Changes | C25: Below are details of changes to the model from the version 6.2 published on 4 March 2020. The changes fix issues that have been identified and implement improvements for clarity and ease of use.
C27: Category | D27: Sheet(s) in current model | E27: Description of change(s) made | F27: Model link(s)
C28: Logic Update | D28: InpC | E28: Input cell: 'Mid-point of the AMP’ hardcoded to 2.5 years to aid consistency and reduce confusion. | F28: InpC!F47
C32: Logic Update | D32: InpR | E32: Defunct range removed (‘CPIH financial year average index value’)
C36: Logic Update | D36: InpR | E36: Issuance and liquidity fees line added to inform more accurate outturn allowed cost of overall debt for input to tax reconciliation model. | F36: InpR!E38
A41: END OF SHEET

Sheet Model formatting
A1: =RIGHT(CELL("filename", $A$1), LEN(CELL("filename", $A$1)) - SEARCH("]", CELL("filename", $A$1))) -> Model formatting
A4: SHEET TABS
E6: Light Yellow | G6: Input sheets
E8: No colour (default Excel tab colour) | G8: Calculation and documentation sheets
E10: Pale Blue | G10: Key output sheets
E12: Turquoise | G12: Quality control sheets
E14: Yellow | G14: To be completed, temporary, restructured, or deleted
A17: COLOUR
B19: Font colour only
E20: Blue font | G20: Imported from another sheet
E22: Red font | G22: Exported to another sheet (except from Input sheets)
E24: Black font | G24: Within sheet link or calculation
E26: Green font | G26: Additional descriptions
B28: Font + shade combinations
E29: Black font + Light Yellow shade | G29: Inputs
E31: Black font + Light Grey shade on entire row | G31: Within-worksheet counter-flow
E33: Blue font + Light Grey shade on entire row | G33: Between-worksheet counter-flow
E35: Empty Cell with Light Grey shade | G35: Empty cells being deliberately referenced
B37: Other
E38: Black font + Pale Blue shade on entire row | G38: Section separator
E40: Light Turquoise shade | G40: Stored/dead/hard coded outputs
E42: Tan shade | G42: Pre-model time line actuals
E44: Yellow shade | G44: Work in progress / temporary
E46: Lime shade | G46: Values or logic to be reviewed
B48: Error checks & alerts
E49: Green shade | G49: OK
E51: Red shade | G51: Error
E53: Gold shade | G53: Alert
A56: ABBREVIATIONS
A62: END

Sheet ToC
A1: =RIGHT(CELL("filename", $A$1), LEN(CELL("filename", $A$1)) - SEARCH("]", CELL("filename", $A$1))) -> ToC
B3: ASSUMPTIONS: | D3: INPUTS: | F3: CALCULATIONS: | H3: OUTPUTS:
B5: Cover | D5: =InpC!$A$1 -> InpC | F5: ='RCV and post 2020 investment'!A1 -> RCV and post 2020 investment | H5: =Output!A1 -> Output
B6: Model documentation sheet | D6: Inputs - column format | F6: Calculation of RCV and notional debt balances for return | H6: Outputs to other models
B8: =$A$1 -> ToC | D8: =InpR!$A$1 -> InpR | F8: ='Cost of Debt'!A1 -> Cost of Debt
B9: Table of contents | D9: Inputs - row format | F9: Allowed cost of debt calculations
B11: Model formatting | D11: =InpIndex!A1 -> InpIndex | F11: ='Water resources'!A1 -> Water resources
B12: Explanation of different formatting types | D12: Inputs - row from index | F12: Water Resources cost of debt reconciliation
B14: =Time!A1 -> Time | F14: ='Water network +'!A1 -> Water network +
B15: Treatment of time in model | F15: Water Network plus cost of debt reconciliation
F17: ='Wastewater network +'!A1 -> Wastewater network +
F18: Wastewater Network plus cost of debt reconciliation
F20: =Bioresources!A1 -> Bioresources
F21: Bioresources cost of debt reconciliation
F23: Dummy
F24: Dummy control cost of debt reconciliation
A31: END

Sheet Time
A1: =RIGHT(CELL("filename", $A$1), LEN(CELL("filename", $A$1)) - SEARCH("]", CELL("filename", $A$1))) -> Time
J2: =Time!J$22 -> 2020-03-31 | K2: =Time!K$22 -> 2021-03-31 | L2: =Time!L$22 -> 2022-03-31 | M2: =Time!M$22 -> 2023-03-31 | N2: =Time!N$22 -> 2024-03-31 | O2: =Time!O$22 -> 2025-03-31 | P2: =Time!P$22 -> 2026-03-31
J3: =Time!J$58 -> Pre Fcst | K3: =Time!K$58 -> Forecast | L3: =Time!L$58 -> Forecast | M3: =Time!M$58 -> Forecast | N3: =Time!N$58 -> Forecast | O3: =Time!O$58 -> Forecast | P3: =Time!P$58 -> Post-Fcst
E4: =Time!E$86 -> Financial Year Ending | J4: =Time!J$86 -> 2020 | K4: =Time!K$86 -> 2021 | L4: =Time!L$86 -> 2022 | M4: =Time!M$86 -> 2023 | N4: =Time!N$86 -> 2024 | O4: =Time!O$86 -> 2025 | P4: =Time!P$86 -> 2026
E5: =Time!E$10 -> Model column counter | F5: Constant | G5: Unit | H5: Total | J5: =Time!J$10 -> 1 | K5: =Time!K$10 -> 2 | L5: =Time!L$10 -> 3 | M5: =Time!M$10 -> 4 | N5: =Time!N$10 -> 5 | O5: =Time!O$10 -> 6 | P5: =Time!P$10 -> 7
A7: MODEL PERIOD
B9: Model Column Counter
E10: Model column counter | G10: counter | J10: =I10 + 1 -> 1 | K10: 2 | L10: 3 | M10: 4 | N10: 5 | O10: 6 | P10: 7
E11: Model Column Total | F11: =MAX(J10:BX10) -> 7 | G11: column
E13: =E$10 -> Model column counter | F13: 0 | G13: counter | H13: 0 | I13: 0 | J13: 1 | K13: 2 | L13: 3 | M13: 4 | N13: 5 | O13: 6 | P13: 7
E14: First model column flag | G14: flag | H14: =SUM(J14:BX14) -> 1 | J14: =IF( J13 = 1, 1, 0) -> 1 | K14: 0 | L14: 0 | M14: 0 | N14: 0 | O14: 0 | P14: 0
E16: =InpC!E$15 -> First date of time ruler | F16: =InpC!F$15 -> 2019-04-01 | G16: =InpC!G$15 -> date
E17: First model period BEG | F17: =DATE(YEAR(F16), MONTH(F16), 1) -> 2019-04-01 | G17: month
E19: =E$17 -> First model period BEG | F19: =F$17 -> 2019-04-01 | G19: =G$17 -> month
E20: =E$14 -> First model column flag | F20: 0 | G20: flag | H20: 1 | I20: 0 | J20: 1 | K20: 0 | L20: 0 | M20: 0 | N20: 0 | O20: 0 | P20: 0
E21: Model Period BEG | G21: date | J21: =IF( J20 = 1, $F19, I22 + 1) -> 2019-04-01 | K21: 2020-04-01 | L21: 2021-04-01 | M21: 2022-04-01 | N21: 2023-04-01 | O21: 2024-04-01 | P21: 2025-04-01
E22: Model Period END | G22: date | J22: =DATE(YEAR(J21), MONTH(J21) + 12, DAY(1) - 1) -> 2020-03-31 | K22: =DATE(YEAR(K21), MONTH(K21) + 12, DAY(1) - 1) -> 2021-03-31 | L22: 2022-03-31 | M22: 2023-03-31 | N22: 2024-03-31 | O22: 2025-03-31 | P22: 2026-03-31
E24: =E$22 -> Model Period END | F24: 00:00:00 | G24: date | H24: 00:00:00 | I24: 00:00:00 | J24: 2020-03-31 | K24: 2021-03-31 | L24: 2022-03-31 | M24: 2023-03-31 | N24: 2024-03-31 | O24: 2025-03-31 | P24: 2026-03-31
E25: =E$21 -> Model Period BEG | F25: 00:00:00 | G25: date | H25: 00:00:00 | I25: 00:00:00 | J25: 2019-04-01 | K25: 2020-04-01 | L25: 2021-04-01 | M25: 2022-04-01 | N25: 2023-04-01 | O25: 2024-04-01 | P25: 2025-04-01
E26: Days in Model Period | G26: days | H26: =SUM(J26:BX26) -> 2557 | J26: =J24 - J25 + 1 -> 366 | K26: 365 | L26: 365 | M26: 365 | N26: 366 | O26: 365 | P26: 365
A29: PRE FORECAST PERIOD
E31: =InpC!E$17 -> Last Pre Forecast Date | F31: =InpC!F$17 -> 2020-03-31 | G31: =InpC!G$17 -> date
E32: =E$22 -> Model Period END | F32: 00:00:00 | G32: date | H32: 00:00:00 | I32: 00:00:00 | J32: 2020-03-31 | K32: 2021-03-31 | L32: 2022-03-31 | M32: 2023-03-31 | N32: 2024-03-31 | O32: 2025-03-31 | P32: 2026-03-31
E33: Last Pre Forecast Flag | G33: flag | H33: =SUM(J33:BX33) -> 1 | J33: =IF(J32 = $F31, 1, 0) -> 1 | K33: =IF(K32 = $F31, 1, 0) -> 0 | L33: 0 | M33: 0 | N33: 0 | O33: 0 | P33: 0
E34: Pre Forecast Period Flag | G34: flag | H34: =SUM(J34:BX34) -> 1 | J34: =IF($F31 >= J32, 1, 0) -> 1 | K34: 0 | L34: 0 | M34: 0 | N34: 0 | O34: 0 | P34: 0
E35: Pre Forecast Period Total | F35: =SUM(J34:BX34) -> 1 | G35: columns
E37: =InpC!E$19 -> Acquisition date (midnight) | F37: =InpC!F$19 -> 2020-03-31 | G37: =InpC!G$19 -> date
E38: =E$22 -> Model Period END | F38: 00:00:00 | G38: date | H38: 00:00:00 | I38: 00:00:00 | J38: 2020-03-31 | K38: 2021-03-31 | L38: 2022-03-31 | M38: 2023-03-31 | N38: 2024-03-31 | O38: 2025-03-31 | P38: 2026-03-31
E39: Acquisition / initial balance date flag | G39: flag | H39: =SUM(J39:BX39) -> 1 | J39: =IF(J38 = $F37, 1, 0) -> 1 | K39: 0 | L39: 0 | M39: 0 | N39: 0 | O39: 0 | P39: 0
A42: FORECAST PERIOD
E44: =E$33 -> Last Pre Forecast Flag | F44: 0 | G44: flag | H44: 1 | I44: 0 | J44: 1 | K44: 0 | L44: 0 | M44: 0 | N44: 0 | O44: 0 | P44: 0
E45: 1st Forecast Period Flag | G45: flag | H45: =SUM(J45:BX45) -> 1 | J45: =I44 -> 0 | K45: 1 | L45: 0 | M45: 0 | N45: 0 | O45: 0 | P45: 0
E47: =InpC!E$21 -> Last forecast date | F47: =InpC!F$21 -> 2025-03-31 | G47: =InpC!G$21 -> date
E48: =E$22 -> Model Period END | F48: 00:00:00 | G48: date | H48: 00:00:00 | I48: 00:00:00 | J48: 2020-03-31 | K48: 2021-03-31 | L48: 2022-03-31 | M48: 2023-03-31 | N48: 2024-03-31 | O48: 2025-03-31 | P48: 2026-03-31
E49: Last Forecast Period Flag | G49: flag | H49: =SUM(J49:BX49) -> 1 | J49: =IF(AND($F47 > I48, $F47 <= J48), 1, 0) -> 0 | K49: 0 | L49: 0 | M49: 0 | N49: 0 | O49: 1 | P49: 0
E51: =E$45 -> 1st Forecast Period Flag | F51: 0 | G51: flag | H51: 1 | I51: 0 | J51: 0 | K51: =K$45 -> 1 | L51: 0 | M51: 0 | N51: 0 | O51: 0 | P51: 0
E52: =E$49 -> Last Forecast Period Flag | F52: 0 | G52: flag | H52: 1 | I52: 0 | J52: 0 | K52: 0 | L52: 0 | M52: 0 | N52: 0 | O52: 1 | P52: 0
E53: Forecast Period Flag | G53: flag | H53: =SUM(J53:BX53) -> 5 | J53: =J51 - I52 + I53 -> 0 | K53: 1 | L53: 1 | M53: 1 | N53: 1 | O53: 1 | P53: 0
E54: Forecast Period Total | F54: =SUM(J53:BX53) -> 5 | G54: columns
E56: =E$34 -> Pre Forecast Period Flag | F56: 0 | G56: flag | H56: 1 | I56: 0 | J56: 1 | K56: 0 | L56: 0 | M56: 0 | N56: 0 | O56: 0 | P56: 0
E57: =E$53 -> Forecast Period Flag | F57: 0 | G57: flag | H57: 5 | I57: 0 | J57: 0 | K57: 1 | L57: 1 | M57: 1 | N57: 1 | O57: 1 | P57: 0
E58: Pre Forecast vs Forecast | G58: flag | J58: =IF(J56 = 1, "Pre Fcst", IF(J57 = 1, "Forecast", "Post-Fcst")) -> Pre Fcst | K58: Forecast | L58: Forecast | M58: Forecast | N58: Forecast | O58: Forecast | P58: Post-Fcst
A61: POST FORECAST PERIOD
E63: =E$49 -> Last Forecast Period Flag | F63: 0 | G63: flag | H63: 1 | I63: 0 | J63: 0 | K63: 0 | L63: 0 | M63: 0 | N63: 0 | O63: 1 | P63: 0
E64: 1st Post Last Forecast Period Flag | G64: flag | H64: =SUM(J64:BX64) -> 1 | J64: =I63 -> 0 | K64: 0 | L64: 0 | M64: 0 | N64: 0 | O64: 0 | P64: 1
E66: =E$64 -> 1st Post Last Forecast Period Flag | F66: 0 | G66: flag | H66: 1 | I66: 0 | J66: 0 | K66: 0 | L66: 0 | M66: 0 | N66: 0 | O66: 0 | P66: 1
E67: Post Forecast Period Flag | G67: flag | H67: =SUM(J67:BX67) -> 1 | J67: =I67 + J66 -> 0 | K67: 0 | L67: 0 | M67: 0 | N67: 0 | O67: 0 | P67: 1
E68: Post Forecast Period Total | F68: =SUM(J67:BX67) -> 1 | G68: columns
A71: MODELLING PERIOD CHECK
E73: =E$11 -> Model Column Total | F73: =F$11 -> 7 | G73: =G$11 -> column
D74: less | E74: =E$35 -> Pre Forecast Period Total | F74: =F$35 -> 1 | G74: =G$35 -> columns
D75: less | E75: =E$54 -> Forecast Period Total | F75: =F$54 -> 5 | G75: =G$54 -> columns
D76: less | E76: =E$68 -> Post Forecast Period Total | F76: =F$68 -> 1 | G76: =G$68 -> columns
E77: Modelling Period Check | F77: =IF(F73 - SUM(F74:F76) <> 0, 1, 0) -> 0 | G77: check
A80: FINANCIAL YEAR
E82: =InpC!E26 -> First Modelling Column Financial Year Number | F82: =InpC!F26 -> 2020 | G82: =InpC!G26 -> year
E83: =InpC!E27 -> Financial Year End Month Number | F83: =InpC!F27 -> 3 | G83: =InpC!G27 -> month #
E84: =E$22 -> Model Period END | F84: 00:00:00 | G84: date | H84: 00:00:00 | I84: 00:00:00 | J84: 2020-03-31 | K84: 2021-03-31 | L84: 2022-03-31 | M84: 2023-03-31 | N84: 2024-03-31 | O84: 2025-03-31 | P84: 2026-03-31
E85: =E$14 -> First model column flag | F85: 0 | G85: flag | H85: 1 | I85: 0 | J85: 1 | K85: 0 | L85: 0 | M85: 0 | N85: 0 | O85: 0 | P85: 0
E86: Financial Year Ending | G86: year # | J86: =IF(J85 = 1, $F82, IF(J84 > (DATE(I86, $F83 + 1, 1) - 1), I86 + 1, I86)) -> 2020 | K86: 2021 | L86: 2022 | M86: 2023 | N86: 2024 | O86: 2025 | P86: 2026
A88: CURRENT YEAR FLAG
E90: =InpC!E$31 -> First modelling period end year | F90: =InpC!F$31 -> 2021 | G90: =InpC!G$31 -> year
E91: =E$86 -> Financial Year Ending | F91: =F$86 -> 0 | G91: year # | H91: 0 | I91: 0 | J91: 2020 | K91: 2021 | L91: 2022 | M91: 2023 | N91: 2024 | O91: 2025 | P91: 2026
E92: First modelling period flag | F92: =F$10 -> 0 | G92: flag | H92: =H$10 -> 0 | I92: =I$10 -> 0 | J92: =IF(J91 = $F90, 1, 0) -> 0 | K92: =IF(K91 = $F90, 1, 0) -> 1 | L92: 0 | M92: 0 | N92: 0 | O92: 0 | P92: 0
E94: =InpC!E$32 -> Second modelling period end year | F94: =InpC!F$32 -> 2022 | G94: =InpC!G$32 -> year
E95: =E$86 -> Financial Year Ending | F95: =F$86 -> 0 | G95: year # | H95: 0 | I95: 0 | J95: 2020 | K95: 2021 | L95: 2022 | M95: 2023 | N95: 2024 | O95: 2025 | P95: 2026
E96: Second modelling period flag | F96: =F$10 -> 0 | G96: flag | H96: =H$10 -> 0 | I96: =I$10 -> 0 | J96: =IF(J95 = $F94, 1, 0) -> 0 | K96: 0 | L96: 1 | M96: 0 | N96: 0 | O96: 0 | P96: 0
E98: =InpC!E$33 -> Third modelling period end year | F98: =InpC!F$33 -> 2023 | G98: =InpC!G$33 -> year
E99: =E$86 -> Financial Year Ending | F99: =F$86 -> 0 | G99: year # | H99: 0 | I99: 0 | J99: 2020 | K99: 2021 | L99: 2022 | M99: 2023 | N99: 2024 | O99: 2025 | P99: 2026
E100: Third modelling period flag | F100: =F$10 -> 0 | G100: flag | H100: =H$10 -> 0 | I100: =I$10 -> 0 | J100: =IF(J99 = $F98, 1, 0) -> 0 | K100: 0 | L100: 0 | M100: 1 | N100: 0 | O100: 0 | P100: 0
E102: =InpC!E$34 -> Fourth modelling period end year | F102: =InpC!F$34 -> 2024 | G102: =InpC!G$34 -> year
E103: =E$86 -> Financial Year Ending | F103: =F$86 -> 0 | G103: year # | H103: 0 | I103: 0 | J103: 2020 | K103: 2021 | L103: 2022 | M103: 2023 | N103: 2024 | O103: 2025 | P103: 2026
E104: Fourth modelling period flag | F104: =F$10 -> 0 | G104: flag | H104: =H$10 -> 0 | I104: =I$10 -> 0 | J104: =IF(J103 = $F102, 1, 0) -> 0 | K104: 0 | L104: 0 | M104: 0 | N104: 1 | O104: 0 | P104: 0
E106: =InpC!E$35 -> Fifth modelling period end year | F106: =InpC!F$35 -> 2025 | G106: =InpC!G$35 -> year
E107: =E$86 -> Financial Year Ending | F107: =F$86 -> 0 | G107: year # | H107: 0 | I107: 0 | J107: 2020 | K107: 2021 | L107: 2022 | M107: 2023 | N107: 2024 | O107: 2025 | P107: 2026
E108: Fifth modelling period flag | F108: =F$10 -> 0 | G108: flag | H108: =H$10 -> 0 | I108: =I$10 -> 0 | J108: =IF(J107 = $F106, 1, 0) -> 0 | K108: 0 | L108: 0 | M108: 0 | N108: 0 | O108: 1 | P108: 0

Sheet InpC
A1: =RIGHT(CELL("filename", $A$1), LEN(CELL("filename", $A$1)) - SEARCH("]", CELL("filename", $A$1))) -> InpC
F5: Input | G5: Unit | H5: Comment
E7: Total Comparison Column Differences
E9: Option Name
E11: [don't delete row]
A13: TIME
E15: First date of time ruler | F15: 2019-04-01 | G15: date | H15: Suggested default: (as entered)
E17: Last Pre Forecast Date | F17: 2020-03-31 | G17: date | H17: Suggested default: (as entered)
E19: Acquisition date (midnight) | F19: 2020-03-31 | G19: date | H19: Suggested default: (as entered)
E20: Length of forecast period | F20: 5 | G20: years | H20: Suggested default: (as entered)
E21: Last forecast date | F21: =DATE(YEAR(F19)+F20,MONTH(F19),DAY(F19)) -> 2025-03-31 | G21: date
E24: Operation Start Date (midnight) | F24: 2020-03-31 | G24: date | H24: Suggested default: (as entered)
E25: Operation Finish Date (midnight) | F25: 2025-03-31 | G25: date | H25: Suggested default: (as entered)
E26: First Modelling Column Financial Year Number | F26: 2020 | G26: year | H26: Suggested default: (as entered)
E27: Financial Year End Month Number | F27: 3 | G27: month # | H27: Suggested default: (as entered)
E28: Financial Year Start Month Number | F28: 4 | G28: month # | H28: Suggested default: (as entered)
E30: Modelling period flags
E31: First modelling period end year | F31: 2021 | G31: year | H31: Suggested default: (as entered)
E32: Second modelling period end year | F32: 2022 | G32: year | H32: Suggested default: (as entered)
E33: Third modelling period end year | F33: 2023 | G33: year | H33: Suggested default: (as entered)
E34: Fourth modelling period end year | F34: 2024 | G34: year | H34: Suggested default: (as entered)
E35: Fifth modelling period end year | F35: 2025 | G35: year | H35: Suggested default: (as entered)
A38: NON CHANGEABLE INPUTS
B40: Model Tolerance
E41: Model Check Tolerance Level | F41: 0.001 | G41: tolerance
E43: Model Track Tolerance Level | F43: 0.001 | G43: tolerance
E45: % Model Check Tolerance Level | F45: 1e-05 | G45: %
E47: Mid-point of the AMP | F47: 2.5 | G47: years
A49: FINANCIAL CALC INPUTS
E51: Notional % of 'new' debt over period | F51: 0.2 | G51: percentage | H51: Suggested default: 20% (see: 'PR19 Final Determinations, Allowed Return on Capital Technical Appendix')
E52: Proportion of notional debt subject to indexation - intial balance | G52: percentage | H52: Suggested default: blank
E53: Long-term CPIH assumption | F53: 0.02 | G53: percentage | H53: Suggested default: 2.0% (see: 'PR19 Final Determinations, Allowed Return on Capital Technical Appendix')
E55: Ex-ante 'outperformance wedge' for notional company vs. average A/BBB iBoXX 10+ non-financial index (new debt only) | F55: 0.0015 | G55: percentage | H55: Suggested default: 0.15% (see: 'PR19 Final Determinations, Allowed Return on Capital Technical Appendix')
E56: PR19 appointee allowed return on capital (CPIH-deflated using long-term assumption) | F56: 0.0296 | G56: percentage | H56: Suggested default: 2.96% (see: 'PR19 Final Determinations, Allowed Return on Capital Technical Appendix')
E57: Notional gearing | F57: 0.6 | G57: percentage | H57: Suggested default: 60% (see: 'PR19 Final Determinations, Allowed Return on Capital Technical Appendix')
E59: Units in 100% | F59: 100 | G59: units | H59: Suggested default: 100
E61: PV base date | F61: 2025-03-31 | G61: date | H61: Suggested default: 31 Mar 25
E62: Days in a year | F62: 365 | G62: days | H62: Suggested default: 365
E64: Company-specific adjustment (new debt) | F64: 0 | G64: percentage | H64: Suggested default: 0.25% (see: 'PR19 Final Determinations, Allowed Return on Capital Technical Appendix')
E65: Company-specific adjustment (embedded debt) | F65: 0 | G65: percentage | H65: Suggested default: 0.35% (see: 'PR19 Final Determinations, Allowed Return on Capital Technical Appendix')
E66: Company-specific adjustment applies to Water Resources | F66: NO | G66: Yes / No | H66: Company-specific input
E67: Company-specific adjustment applies to Water Network Plus | F67: NO | G67: Yes / No | H67: Company-specific input
E68: Company-specific adjustment applies to Wastewater Network Plus | F68: NO | G68: Yes / No | H68: Company-specific input
E69: Company-specific adjustment applies to Bioresources | F69: NO | G69: Yes / No | H69: Company-specific input
E70: Company-specific adjustment applies to Dummy | F70: NO | G70: Yes / No | H70: Company-specific input
E74: [don't delete row]

Sheet InpR
A1: =RIGHT(CELL("filename", $A$1), LEN(CELL("filename", $A$1)) - SEARCH("]", CELL("filename", $A$1))) -> InpR
E2: =Time!E$21 -> Model Period BEG | J2: =Time!J$21 -> 2019-04-01 | K2: =Time!K$21 -> 2020-04-01 | L2: =Time!L$21 -> 2021-04-01 | M2: =Time!M$21 -> 2022-04-01 | N2: =Time!N$21 -> 2023-04-01 | O2: =Time!O$21 -> 2024-04-01 | P2: =Time!P$21 -> 2025-04-01
E3: =Time!E$22 -> Model Period END | J3: =Time!J$22 -> 2020-03-31 | K3: =Time!K$22 -> 2021-03-31 | L3: =Time!L$22 -> 2022-03-31 | M3: =Time!M$22 -> 2023-03-31 | N3: =Time!N$22 -> 2024-03-31 | O3: =Time!O$22 -> 2025-03-31 | P3: =Time!P$22 -> 2026-03-31
E4: =Time!E$58 -> Pre Forecast vs Forecast | J4: =Time!J$58 -> Pre Fcst | K4: =Time!K$58 -> Forecast | L4: =Time!L$58 -> Forecast | M4: =Time!M$58 -> Forecast | N4: =Time!N$58 -> Forecast | O4: =Time!O$58 -> Forecast | P4: =Time!P$58 -> Post-Fcst | Q4: Notes:
E5: =Time!E$86 -> Financial Year Ending | J5: =Time!J$86 -> 2020 | K5: =Time!K$86 -> 2021 | L5: =Time!L$86 -> 2022 | M5: =Time!M$86 -> 2023 | N5: =Time!N$86 -> 2024 | O5: =Time!O$86 -> 2025 | P5: =Time!P$86 -> 2026
E6: =Time!E$10 -> Model column counter | J6: =Time!J$10 -> 1 | K6: =Time!K$10 -> 2 | L6: =Time!L$10 -> 3 | M6: =Time!M$10 -> 4 | N6: =Time!N$10 -> 5 | O6: =Time!O$10 -> 6 | P6: =Time!P$10 -> 7
F7: Constant | G7: Unit | H7: Total
E13: [don't delete row] | I13: [range starts]
A14: RCV - Water Resources
E15: Water resources RCV year start | G15: £m, (CPIH, 2017/18 prices) | K15: 13.16 | L15: 13.2 | M15: 13.36 | N15: 13.33 | O15: 13.25 | Q15: Suggested default: Table 3.4 FD Allowed Revenue appendix ('Total Opening RCV')
E16: Water Resources RCV year end | G16: £m, (CPIH, 2017/18 prices) | K16: 13.14 | L16: 13.3 | M16: 13.27 | N16: 13.19 | O16: 13.14 | Q16: Suggested default: Table 3.4 FD Allowed Revenue appendix ('Total Closing RCV')
A18: RCV - Water Network Plus
E19: Water Network Plus RCV year start | G19: £m, (CPIH, 2017/18 prices) | K19: 238.59 | L19: 244.62 | M19: 253.82 | N19: 258.78 | O19: 258.8 | Q19: Suggested default: Table 3.8 FD Allowed revenue appendix ('Total Opening RCV')
E20: Water Network Plus RCV year end | G20: £m, (CPIH, 2017/18 prices) | K20: 243.57 | L20: 252.72 | M20: 257.72 | N20: 257.8 | O20: 257.19 | Q20: Suggested default: Table 3.8 FD Allowed revenue appendix ('Total Closing RCV')
A22: RCV - Wastewater Network Plus
E23: Watewater Network Plus RCV year start | G23: £m, (CPIH, 2017/18 prices) | Q23: Suggested default: Table 3.12 FD Allowed revenue appendix ('Total Opening RCV')
E24: Watewater Network Plus RCV year end | G24: £m, (CPIH, 2017/18 prices) | Q24: Suggested default: Table 3.12 FD Allowed revenue appendix ('Total Closing RCV')
A26: RCV - Bioresources
E27: Bioresources RCV year start | G27: £m, (CPIH, 2017/18 prices) | Q27: Suggested default: Table 3.16 FD Allowed revenue appendix ('Total Opening RCV')
E28: Bioresources RCV year end | G28: £m, (CPIH, 2017/18 prices) | Q28: Suggested default: Table 3.16 FD Allowed revenue appendix ('Total Closing RCV')
A30: RCV - Dummy
E31: Dummy RCV year start | G31: £m, (CPIH, 2017/18 prices) | Q31: Suggested default: Table 3.20 FD Allowed revenue appendix ('Total Opening RCV')
E32: Dummy RCV year end | G32: £m, (CPIH, 2017/18 prices) | Q32: Suggested default: Table 3.20 FD Allowed revenue appendix ('Total Closing RCV')
A35: COD
E36: Allowed sector new debt cost (not inc. CSA) - final determination (CPIH real) | G36: percentage | K36: 0.0053 | L36: 0.0053 | M36: 0.0053 | N36: 0.0053 | O36: 0.0053 | Q36: Suggested default: 0.53% - Table 1.1. FD Allowed return on capital technical appendix
E37: Allowed sector embedded debt cost (not inc. CSA) - final determination (CPIH real) | G37: percentage | K37: 0.0242 | L37: 0.0242 | M37: 0.0242 | N37: 0.0242 | O37: 0.0242 | Q37: Suggested default: 2.42% - Table 1.1. FD Allowed return on capital technical appendix
E38: Allowed sector issuance and liquidity costs - final determinations | K38: 0.001 | L38: 0.001 | M38: 0.001 | N38: 0.001 | O38: 0.001 | Q38: Suggested default: 0.10% - Table 1.1. FD Allowed return on capital technical appendix
E40: =InpC!E$59 -> Units in 100% | F40: =InpC!F$59 -> 100 | G40: =InpC!G$59 -> units
E41: 1 Year average of iBoxx adjusted for 'outperformance wedge' (base) | G41: Percentage | K41: =AVERAGEIFS( InpIndex!$M:$M, InpIndex!$G:$G, K5) / $F40 -> 0.02013974363 | L41: =AVERAGEIFS( InpIndex!$M:$M, InpIndex!$G:$G, L5) / $F40 -> 0.02296005109 | M41: =AVERAGEIFS( InpIndex!$M:$M, InpIndex!$G:$G, M5) / $F40 -> 0.04669417725 | N41: =AVERAGEIFS( InpIndex!$M:$M, InpIndex!$G:$G, N5) / $F40 -> 0.05600169497 | O41: =AVERAGEIFS( InpIndex!$M:$M, InpIndex!$G:$G, O5) / $F40 -> 0.055097097
E44: =InpC!E$52 -> Proportion of notional debt subject to indexation - intial balance | F44: =InpC!F$52 -> 0 | G44: =InpC!G$52 -> percentage | I44: =InpC!#REF! ->  | J44: =InpC!I$52 -> 0 | K44: =InpC!J$52 -> 0 | L44: =InpC!K$52 -> 0 | M44: =InpC!L$52 -> 0 | N44: =InpC!M$52 -> 0 | O44: =InpC!N$52 -> 0 | P44: =InpC!O$52 -> 0
E45: =InpC!E$51 -> Notional % of 'new' debt over period | F45: =InpC!F$51 -> 0.2 | G45: =InpC!G$51 -> percentage | I45: =InpC!#REF! ->  | J45: =InpC!I$51 -> 0 | K45: =InpC!J$51 -> 0 | L45: =InpC!K$51 -> 0 | M45: =InpC!L$51 -> 0 | N45: =InpC!M$51 -> 0 | O45: =InpC!N$51 -> 0 | P45: =InpC!O$51 -> 0
E46: =InpC!E$47 -> Mid-point of the AMP | F46: =InpC!F$47 -> 2.5 | G46: =InpC!G$47 -> years | H46: =InpC!H$54 -> 0 | I46: =InpC!#REF! ->  | J46: =InpC!I$54 -> 0 | K46: =InpC!J$54 -> 0 | L46: =InpC!K$54 -> 0 | M46: =InpC!L$54 -> 0 | N46: =InpC!M$54 -> 0 | O46: =InpC!N$54 -> 0 | P46: =InpC!O$54 -> 0
E48: =Time!E$44 -> Last Pre Forecast Flag | F48: =Time!F$44 -> 0 | G48: =Time!G$44 -> flag | H48: =Time!H$44 -> 1 | I48: =Time!I$44 -> 0 | J48: =Time!J$44 -> 1 | K48: =Time!K$44 -> 0 | L48: =Time!L$44 -> 0 | M48: =Time!M$44 -> 0 | N48: =Time!N$44 -> 0 | O48: =Time!O$44 -> 0 | P48: =Time!P$44 -> 0
E50: Proportion of notional debt subject to indexation BEG | G50: Percentage | J50: =I51 -> 0 | K50: =J51 -> 0 | L50: 0.08 | M50: 0.16 | N50: 0.24 | O50: 0.32 | P50: =O51 -> 0.4
E51: Proportion of notional debt subject to indexation END | G51: Percentage | J51: =IF( J48 = 1, $F44, J50 + ($F45 / $F46) ) -> 0 | K51: =IF( K48 = 1, $F44, K50 + ($F45 / $F46) ) -> 0.08 | L51: 0.16 | M51: =IF( M48 = 1, $F44, M50 + ($F45 / $F46) ) -> 0.24 | N51: 0.32 | O51: =IF( O48 = 1, $F44, O50 + ($F45 / $F46) ) -> 0.4 | P51: 0.48
E55: =E$50 -> Proportion of notional debt subject to indexation BEG | F55: =F$50 -> 0 | G55: Percentage | H55: 0 | I55: 0 | J55: 0 | K55: =K$50 -> 0 | L55: 0.08 | M55: 0.16 | N55: 0.24 | O55: 0.32 | P55: 0.4
E56: =E$51 -> Proportion of notional debt subject to indexation END | F56: =F$51 -> 0 | G56: Percentage | H56: 0 | I56: 0 | J56: 0 | K56: 0.08 | L56: 0.16 | M56: 0.24 | N56: 0.32 | O56: 0.4 | P56: 0.48
E57: Proportion of notional debt subject to indexation (year average) | G57: percentage | J57: =IFERROR( AVERAGE( J55:J56), 0) -> 0 | K57: 0.04 | L57: 0.12 | M57: 0.2 | N57: 0.28 | O57: 0.36 | P57: 0.44
E59: CPIH inflation allowance (long-term assumption) | F59: =InpC!F53 -> 0.02 | G59: percentage | K59: =$F$59 -> 0.02 | L59: =$F$59 -> 0.02 | M59: 0.02 | N59: 0.02 | O59: 0.02
B63: Average debt cost weightings
E64: Average debt cost weighting 2021 | G64: Weighting | K64: 1 | L64: 0 | M64: 0 | N64: 0 | O64: 0 | Q64: Suggested default: Leave as populated
E65: Average debt cost weighting 2022 | G65: Weighting | K65: 1 | L65: 0.5 | M65: 0 | N65: 0 | O65: 0 | Q65: Suggested default: Leave as populated
E66: Average debt cost weighting 2023 | G66: Weighting | K66: 1 | L66: 1 | M66: 0.5 | N66: 0 | O66: 0 | Q66: Suggested default: Leave as populated
E67: Average debt cost weighting 2024 | G67: Weighting | K67: 1 | L67: 1 | M67: 1 | N67: 0.5 | O67: 0 | Q67: Suggested default: Leave as populated
E68: Average debt cost weighting 2025 | G68: Weighting | K68: 1 | L68: 1 | M68: 1 | N68: 1 | O68: 0.5 | Q68: Suggested default: Leave as populated
I71: [range ends]

Sheet InpIndex
A1: =RIGHT(CELL("filename", $A$1), LEN(CELL("filename", $A$1)) - SEARCH("]", CELL("filename", $A$1))) -> InpIndex
E5: Date | F5: Financial Year Month Start | G5: Fiscal Year | H5: iBoxx £ Non-Financials A 10+ | I5: iBoxx £ Non-Financials BBB 10+ | J5: Average of A and BBB | K5: Ex-ante outperformance wedge | L5: Company-specific adjustment | M5: Adjusted A/BBB average (base) | N5: Adjusted A/BBB average (CSA)
E6: 2016-01-04 | F6: =InpC!$F$28 -> 4 | G6: =YEAR(E6) + IF(MONTH(E6) >= F6, 1, 0) -> 2016 | H6: =INDEX('iBoxx Data'!$B$17:$B$2255,MATCH(E6,'iBoxx Data'!$A$17:$A$2255,0)) -> 3.961423669 | I6: =INDEX('iBoxx Data'!$G$17:$G$2255,MATCH(E6,'iBoxx Data'!$F$17:$F$2255,0)) -> 4.3633487 | J6: =IFERROR(AVERAGE(H6:I6),"") -> 4.162386185 | K6: =InpC!$F$55*100 -> 0.15 | L6: =InpC!$F$64*100 -> 0 | M6: =IFERROR(J6 - K6,"") -> 4.012386185 | N6: =IFERROR(J6-K6+L6,"") -> 4.012386185
E7: =WORKDAY(E6,1,) -> 2016-01-05 | F7: =InpC!$F$28 -> 4 | G7: =YEAR(E7) + IF(MONTH(E7) >= F7, 1, 0) -> 2016 | H7: =INDEX('iBoxx Data'!$B$17:$B$2255,MATCH(E7,'iBoxx Data'!$A$17:$A$2255,0)) -> 3.940454255 | I7: =INDEX('iBoxx Data'!$G$17:$G$2255,MATCH(E7,'iBoxx Data'!$F$17:$F$2255,0)) -> 4.339198173 | J7: =IFERROR(AVERAGE(H7:I7),"") -> 4.139826214 | K7: =InpC!$F$55*100 -> 0.15 | L7: =InpC!$F$64*100 -> 0 | M7: =IFERROR(J7 - K7,"") -> 3.989826214 | N7: =IFERROR(J7-K7+L7,"") -> 3.989826214
E8: =WORKDAY(E7,1,) -> 2016-01-06 | F8: =InpC!$F$28 -> 4 | G8: 2016 | H8: =INDEX('iBoxx Data'!$B$17:$B$2255,MATCH(E8,'iBoxx Data'!$A$17:$A$2255,0)) -> 3.869384478 | I8: =INDEX('iBoxx Data'!$G$17:$G$2255,MATCH(E8,'iBoxx Data'!$F$17:$F$2255,0)) -> 4.266717606 | J8: 4.068051042 | K8: =InpC!$F$55*100 -> 0.15 | L8: =InpC!$F$64*100 -> 0 | M8: 3.918051042 | N8: 3.918051042
E9: 2016-01-07 | F9: =InpC!$F$28 -> 4 | G9: 2016 | H9: =INDEX('iBoxx Data'!$B$17:$B$2255,MATCH(E9,'iBoxx Data'!$A$17:$A$2255,0)) -> 3.910700317 | I9: =INDEX('iBoxx Data'!$G$17:$G$2255,MATCH(E9,'iBoxx Data'!$F$17:$F$2255,0)) -> 4.308569327 | J9: 4.109634822 | K9: =InpC!$F$55*100 -> 0.15 | L9: =InpC!$F$64*100 -> 0 | M9: 3.959634822 | N9: 3.959634822
E10: 2016-01-08 | F10: =InpC!$F$28 -> 4 | G10: 2016 | H10: =INDEX('iBoxx Data'!$B$17:$B$2255,MATCH(E10,'iBoxx Data'!$A$17:$A$2255,0)) -> 3.881571305 | I10: =INDEX('iBoxx Data'!$G$17:$G$2255,MATCH(E10,'iBoxx Data'!$F$17:$F$2255,0)) -> 4.277325615 | J10: 4.07944846 | K10: =InpC!$F$55*100 -> 0.15 | L10: =InpC!$F$64*100 -> 0 | M10: 3.92944846 | N10: 3.92944846
E11: 2016-01-11 | F11: =InpC!$F$28 -> 4 | G11: 2016 | H11: =INDEX('iBoxx Data'!$B$17:$B$2255,MATCH(E11,'iBoxx Data'!$A$17:$A$2255,0)) -> 3.89156479 | I11: =INDEX('iBoxx Data'!$G$17:$G$2255,MATCH(E11,'iBoxx Data'!$F$17:$F$2255,0)) -> 4.288096594 | J11: 4.089830692 | K11: =InpC!$F$55*100 -> 0.15 | L11: =InpC!$F$64*100 -> 0 | M11: 3.939830692 | N11: 3.939830692
E12: 2016-01-12 | F12: =InpC!$F$28 -> 4 | G12: 2016 | H12: =INDEX('iBoxx Data'!$B$17:$B$2255,MATCH(E12,'iBoxx Data'!$A$17:$A$2255,0)) -> 3.881097258 | I12: =INDEX('iBoxx Data'!$G$17:$G$2255,MATCH(E12,'iBoxx Data'!$F$17:$F$2255,0)) -> 4.28309046 | J12: 4.082093859 | K12: =InpC!$F$55*100 -> 0.15 | L12: =InpC!$F$64*100 -> 0 | M12: 3.932093859 | N12: 3.932093859
E13: 2016-01-13 | F13: =InpC!$F$28 -> 4 | G13: 2016 | H13: =INDEX('iBoxx Data'!$B$17:$B$2255,MATCH(E13,'iBoxx Data'!$A$17:$A$2255,0)) -> 3.882881423 | I13: =INDEX('iBoxx Data'!$G$17:$G$2255,MATCH(E13,'iBoxx Data'!$F$17:$F$2255,0)) -> 4.292511436 | J13: 4.08769643 | K13: =InpC!$F$55*100 -> 0.15 | L13: =InpC!$F$64*100 -> 0 | M13: 3.93769643 | N13: 3.93769643
E14: 2016-01-14 | F14: =InpC!$F$28 -> 4 | G14: 2016 | H14: =INDEX('iBoxx Data'!$B$17:$B$2255,MATCH(E14,'iBoxx Data'!$A$17:$A$2255,0)) -> 3.915545968 | I14: =INDEX('iBoxx Data'!$G$17:$G$2255,MATCH(E14,'iBoxx Data'!$F$17:$F$2255,0)) -> 4.3335537 | J14: 4.124549834 | K14: =InpC!$F$55*100 -> 0.15 | L14: =InpC!$F$64*100 -> 0 | M14: 3.974549834 | N14: 3.974549834
E15: 2016-01-15 | F15: =InpC!$F$28 -> 4 | G15: 2016 | H15: =INDEX('iBoxx Data'!$B$17:$B$2255,MATCH(E15,'iBoxx Data'!$A$17:$A$2255,0)) -> 3.884831709 | I15: =INDEX('iBoxx Data'!$G$17:$G$2255,MATCH(E15,'iBoxx Data'!$F$17:$F$2255,0)) -> 4.304597791 | J15: 4.09471475 | K15: =InpC!$F$55*100 -> 0.15 | L15: =InpC!$F$64*100 -> 0 | M15: 3.94471475 | N15: 3.94471475
E16: 2016-01-18 | F16: =InpC!$F$28 -> 4 | G16: 2016 | H16: =INDEX('iBoxx Data'!$B$17:$B$2255,MATCH(E16,'iBoxx Data'!$A$17:$A$2255,0)) -> 3.944121669 | I16: =INDEX('iBoxx Data'!$G$17:$G$2255,MATCH(E16,'iBoxx Data'!$F$17:$F$2255,0)) -> 4.372023654 | J16: 4.158072661 | K16: =InpC!$F$55*100 -> 0.15 | L16: =InpC!$F$64*100 -> 0 | M16: 4.008072661 | N16: 4.008072661
E17: 2016-01-19 | F17: =InpC!$F$28 -> 4 | G17: 2016 | H17: =INDEX('iBoxx Data'!$B$17:$B$2255,MATCH(E17,'iBoxx Data'!$A$17:$A$2255,0)) -> 3.970819467 | I17: =INDEX('iBoxx Data'!$G$17:$G$2255,MATCH(E17,'iBoxx Data'!$F$17:$F$2255,0)) -> 4.3968787 | J17: 4.183849084 | K17: =InpC!$F$55*100 -> 0.15 | L17: =InpC!$F$64*100 -> 0 | M17: 4.033849084 | N17: 4.033849084
E18: 2016-01-20 | F18: =InpC!$F$28 -> 4 | G18: 2016 | H18: =INDEX('iBoxx Data'!$B$17:$B$2255,MATCH(E18,'iBoxx Data'!$A$17:$A$2255,0)) -> 3.938663019 | I18: =INDEX('iBoxx Data'!$G$17:$G$2255,MATCH(E18,'iBoxx Data'!$F$17:$F$2255,0)) -> 4.370519416 | J18: 4.154591218 | K18: =InpC!$F$55*100 -> 0.15 | L18: =InpC!$F$64*100 -> 0 | M18: 4.004591218 | N18: 4.004591218
E19: 2016-01-21 | F19: =InpC!$F$28 -> 4 | G19: 2016 | H19: =INDEX('iBoxx Data'!$B$17:$B$2255,MATCH(E19,'iBoxx Data'!$A$17:$A$2255,0)) -> 4.028888311 | I19: =INDEX('iBoxx Data'!$G$17:$G$2255,MATCH(E19,'iBoxx Data'!$F$17:$F$2255,0)) -> 4.444352164 | J19: 4.236620237 | K19: =InpC!$F$55*100 -> 0.15 | L19: =InpC!$F$64*100 -> 0 | M19: 4.086620237 | N19: 4.086620237
E20: 2016-01-22 | F20: =InpC!$F$28 -> 4 | G20: 2016 | H20: =INDEX('iBoxx Data'!$B$17:$B$2255,MATCH(E20,'iBoxx Data'!$A$17:$A$2255,0)) -> 4.058108074 | I20: =INDEX('iBoxx Data'!$G$17:$G$2255,MATCH(E20,'iBoxx Data'!$F$17:$F$2255,0)) -> 4.469911463 | J20: 4.264009768 | K20: =InpC!$F$55*100 -> 0.15 | L20: =InpC!$F$64*100 -> 0 | M20: 4.114009768 | N20: 4.114009768
E21: 2016-01-25 | F21: =InpC!$F$28 -> 4 | G21: 2016 | H21: =INDEX('iBoxx Data'!$B$17:$B$2255,MATCH(E21,'iBoxx Data'!$A$17:$A$2255,0)) -> 4.029790306 | I21: =INDEX('iBoxx Data'!$G$17:$G$2255,MATCH(E21,'iBoxx Data'!$F$17:$F$2255,0)) -> 4.439254353 | J21: 4.234522329 | K21: =InpC!$F$55*100 -> 0.15 | L21: =InpC!$F$64*100 -> 0 | M21: 4.084522329 | N21: 4.084522329
E22: 2016-01-26 | F22: =InpC!$F$28 -> 4 | G22: 2016 | H22: =INDEX('iBoxx Data'!$B$17:$B$2255,MATCH(E22,'iBoxx Data'!$A$17:$A$2255,0)) -> 4.04365742 | I22: =INDEX('iBoxx Data'!$G$17:$G$2255,MATCH(E22,'iBoxx Data'!$F$17:$F$2255,0)) -> 4.454850843 | J22: 4.249254132 | K22: =InpC!$F$55*100 -> 0.15 | L22: =InpC!$F$64*100 -> 0 | M22: 4.099254132 | N22: 4.099254132
E23: 2016-01-27 | F23: =InpC!$F$28 -> 4 | G23: 2016 | H23: =INDEX('iBoxx Data'!$B$17:$B$2255,MATCH(E23,'iBoxx Data'!$A$17:$A$2255,0)) -> 4.046488445 | I23: =INDEX('iBoxx Data'!$G$17:$G$2255,MATCH(E23,'iBoxx Data'!$F$17:$F$2255,0)) -> 4.463060617 | J23: 4.254774531 | K23: =InpC!$F$55*100 -> 0.15 | L23: =InpC!$F$64*100 -> 0 | M23: 4.104774531 | N23: 4.104774531
E24: 2016-01-28 | F24: =InpC!$F$28 -> 4 | G24: 2016 | H24: =INDEX('iBoxx Data'!$B$17:$B$2255,MATCH(E24,'iBoxx Data'!$A$17:$A$2255,0)) -> 4.031192778 | I24: =INDEX('iBoxx Data'!$G$17:$G$2255,MATCH(E24,'iBoxx Data'!$F$17:$F$2255,0)) -> 4.449181322 | J24: 4.24018705 | K24: =InpC!$F$55*100 -> 0.15 | L24: =InpC!$F$64*100 -> 0 | M24: 4.09018705 | N24: 4.09018705
E25: 2016-01-29 | F25: =InpC!$F$28 -> 4 | G25: 2016 | H25: =INDEX('iBoxx Data'!$B$17:$B$2255,MATCH(E25,'iBoxx Data'!$A$17:$A$2255,0)) -> 3.956080813 | I25: =INDEX('iBoxx Data'!$G$17:$G$2255,MATCH(E25,'iBoxx Data'!$F$17:$F$2255,0)) -> 4.371908393 | J25: 4.163994603 | K25: =InpC!$F$55*100 -> 0.15 | L25: =InpC!$F$64*100 -> 0 | M25: 4.013994603 | N25: 4.013994603
E26: 2016-02-01 | F26: =InpC!$F$28 -> 4 | G26: 2016 | H26: =INDEX('iBoxx Data'!$B$17:$B$2255,MATCH(E26,'iBoxx Data'!$A$17:$A$2255,0)) -> 4.020633503 | I26: =INDEX('iBoxx Data'!$G$17:$G$2255,MATCH(E26,'iBoxx Data'!$F$17:$F$2255,0)) -> 4.402996463 | J26: 4.211814983 | K26: =InpC!$F$55*100 -> 0.15 | L26: =InpC!$F$64*100 -> 0 | M26: 4.061814983 | N26: 4.061814983
E27: 2016-02-02 | F27: =InpC!$F$28 -> 4 | G27: 2016 | H27: =INDEX('iBoxx Data'!$B$17:$B$2255,MATCH(E27,'iBoxx Data'!$A$17:$A$2255,0)) -> 3.975288061 | I27: =INDEX('iBoxx Data'!$G$17:$G$2255,MATCH(E27,'iBoxx Data'!$F$17:$F$2255,0)) -> 4.36035992 | J27: 4.16782399 | K27: =InpC!$F$55*100 -> 0.15 | L27: =InpC!$F$64*100 -> 0 | M27: 4.01782399 | N27: 4.01782399
E28: 2016-02-03 | F28: =InpC!$F$28 -> 4 | G28: 2016 | H28: =INDEX('iBoxx Data'!$B$17:$B$2255,MATCH(E28,'iBoxx Data'!$A$17:$A$2255,0)) -> 3.955002103 | I28: =INDEX('iBoxx Data'!$G$17:$G$2255,MATCH(E28,'iBoxx Data'!$F$17:$F$2255,0)) -> 4.349355127 | J28: 4.152178615 | K28: =InpC!$F$55*100 -> 0.15 | L28: =InpC!$F$64*100 -> 0 | M28: 4.002178615 | N28: 4.002178615
E29: 2016-02-04 | F29: =InpC!$F$28 -> 4 | G29: 2016 | H29: =INDEX('iBoxx Data'!$B$17:$B$2255,MATCH(E29,'iBoxx Data'!$A$17:$A$2255,0)) -> 4.016156718 | I29: =INDEX('iBoxx Data'!$G$17:$G$2255,MATCH(E29,'iBoxx Data'!$F$17:$F$2255,0)) -> 4.415786164 | J29: 4.215971441 | K29: =InpC!$F$55*100 -> 0.15 | L29: =InpC!$F$64*100 -> 0 | M29: 4.065971441 | N29: 4.065971441
E30: 2016-02-05 | F30: =InpC!$F$28 -> 4 | G30: 2016 | H30: =INDEX('iBoxx Data'!$B$17:$B$2255,MATCH(E30,'iBoxx Data'!$A$17:$A$2255,0)) -> 4.040254901 | I30: =INDEX('iBoxx Data'!$G$17:$G$2255,MATCH(E30,'iBoxx Data'!$F$17:$F$2255,0)) -> 4.449766396 | J30: 4.245010648 | K30: =InpC!$F$55*100 -> 0.15 | L30: =InpC!$F$64*100 -> 0 | M30: 4.095010648 | N30: 4.095010648
E31: 2016-02-08 | F31: =InpC!$F$28 -> 4 | G31: 2016 | H31: =INDEX('iBoxx Data'!$B$17:$B$2255,MATCH(E31,'iBoxx Data'!$A$17:$A$2255,0)) -> 3.944157309 | I31: =INDEX('iBoxx Data'!$G$17:$G$2255,MATCH(E31,'iBoxx Data'!$F$17:$F$2255,0)) -> 4.361232841 | J31: 4.152695075 | K31: =InpC!$F$55*100 -> 0.15 | L31: =InpC!$F$64*100 -> 0 | M31: 4.002695075 | N31: 4.002695075
E32: 2016-02-09 | F32: =InpC!$F$28 -> 4 | G32: 2016 | H32: =INDEX('iBoxx Data'!$B$17:$B$2255,MATCH(E32,'iBoxx Data'!$A$17:$A$2255,0)) -> 3.985429026 | I32: =INDEX('iBoxx Data'!$G$17:$G$2255,MATCH(E32,'iBoxx Data'!$F$17:$F$2255,0)) -> 4.412308827 | J32: 4.198868927 | K32: =InpC!$F$55*100 -> 0.15 | L32: =InpC!$F$64*100 -> 0 | M32: 4.048868927 | N32: 4.048868927
E33: 2016-02-10 | F33: =InpC!$F$28 -> 4 | G33: 2016 | H33: =INDEX('iBoxx Data'!$B$17:$B$2255,MATCH(E33,'iBoxx Data'!$A$17:$A$2255,0)) -> 4.002816359 | I33: =INDEX('iBoxx Data'!$G$17:$G$2255,MATCH(E33,'iBoxx Data'!$F$17:$F$2255,0)) -> 4.428796407 | J33: 4.215806383 | K33: =InpC!$F$55*100 -> 0.15 | L33: =InpC!$F$64*100 -> 0 | M33: 4.065806383 | N33: 4.065806383
E34: 2016-02-11 | F34: =InpC!$F$28 -> 4 | G34: 2016 | H34: =INDEX('iBoxx Data'!$B$17:$B$2255,MATCH(E34,'iBoxx Data'!$A$17:$A$2255,0)) -> 3.931147016 | I34: =INDEX('iBoxx Data'!$G$17:$G$2255,MATCH(E34,'iBoxx Data'!$F$17:$F$2255,0)) -> 4.36032673 | J34: 4.145736873 | K34: =InpC!$F$55*100 -> 0.15 | L34: =InpC!$F$64*100 -> 0 | M34: 3.995736873 | N34: 3.995736873
E35: 2016-02-12 | F35: =InpC!$F$28 -> 4 | G35: 2016 | H35: =INDEX('iBoxx Data'!$B$17:$B$2255,MATCH(E35,'iBoxx Data'!$A$17:$A$2255,0)) -> 4.047851802 | I35: =INDEX('iBoxx Data'!$G$17:$G$2255,MATCH(E35,'iBoxx Data'!$F$17:$F$2255,0)) -> 4.477395604 | J35: 4.262623703 | K35: =InpC!$F$55*100 -> 0.15 | L35: =InpC!$F$64*100 -> 0 | M35: 4.112623703 | N35: 4.112623703
E36: 2016-02-15 | F36: =InpC!$F$28 -> 4 | G36: 2016 | H36: =INDEX('iBoxx Data'!$B$17:$B$2255,MATCH(E36,'iBoxx Data'!$A$17:$A$2255,0)) -> 4.072820402 | I36: =INDEX('iBoxx Data'!$G$17:$G$2255,MATCH(E36,'iBoxx Data'!$F$17:$F$2255,0)) -> 4.500998089 | J36: 4.286909246 | K36: =InpC!$F$55*100 -> 0.15 | L36: =InpC!$F$64*100 -> 0 | M36: 4.136909246 | N36: 4.136909246
E37: 2016-02-16 | F37: =InpC!$F$28 -> 4 | G37: 2016 | H37: =INDEX('iBoxx Data'!$B$17:$B$2255,MATCH(E37,'iBoxx Data'!$A$17:$A$2255,0)) -> 4.079454692 | I37: =INDEX('iBoxx Data'!$G$17:$G$2255,MATCH(E37,'iBoxx Data'!$F$17:$F$2255,0)) -> 4.508891001 | J37: 4.294172847 | K37: =InpC!$F$55*100 -> 0.15 | L37: =InpC!$F$64*100 -> 0 | M37: 4.144172847 | N37: 4.144172847
E38: 2016-02-17 | F38: =InpC!$F$28 -> 4 | G38: 2016 | H38: =INDEX('iBoxx Data'!$B$17:$B$2255,MATCH(E38,'iBoxx Data'!$A$17:$A$2255,0)) -> 4.138412791 | I38: =INDEX('iBoxx Data'!$G$17:$G$2255,MATCH(E38,'iBoxx Data'!$F$17:$F$2255,0)) -> 4.569289423 | J38: 4.353851107 | K38: =InpC!$F$55*100 -> 0.15 | L38: =InpC!$F$64*100 -> 0 | M38: 4.203851107 | N38: 4.203851107
E39: 2016-02-18 | F39: =InpC!$F$28 -> 4 | G39: 2016 | H39: =INDEX('iBoxx Data'!$B$17:$B$2255,MATCH(E39,'iBoxx Data'!$A$17:$A$2255,0)) -> 4.102730971 | I39: =INDEX('iBoxx Data'!$G$17:$G$2255,MATCH(E39,'iBoxx Data'!$F$17:$F$2255,0)) -> 4.52815398 | J39: 4.315442476 | K39: =InpC!$F$55*100 -> 0.15 | L39: =InpC!$F$64*100 -> 0 | M39: 4.165442476 | N39: 4.165442476
E40: 2016-02-19 | F40: =InpC!$F$28 -> 4 | G40: 2016 | H40: =INDEX('iBoxx Data'!$B$17:$B$2255,MATCH(E40,'iBoxx Data'!$A$17:$A$2255,0)) -> 4.070541077 | I40: =INDEX('iBoxx Data'!$G$17:$G$2255,MATCH(E40,'iBoxx Data'!$F$17:$F$2255,0)) -> 4.495214382 | J40: 4.28287773 | K40: =InpC!$F$55*100 -> 0.15 | L40: =InpC!$F$64*100 -> 0 | M40: 4.13287773 | N40: 4.13287773
E41: 2016-02-22 | F41: =InpC!$F$28 -> 4 | G41: 2016 | H41: =INDEX('iBoxx Data'!$B$17:$B$2255,MATCH(E41,'iBoxx Data'!$A$17:$A$2255,0)) -> 4.068160425 | I41: =INDEX('iBoxx Data'!$G$17:$G$2255,MATCH(E41,'iBoxx Data'!$F$17:$F$2255,0)) -> 4.492557348 | J41: 4.280358886 | K41: =InpC!$F$55*100 -> 0.15 | L41: =InpC!$F$64*100 -> 0 | M41: 4.130358886 | N41: 4.130358886
E42: 2016-02-23 | F42: =InpC!$F$28 -> 4 | G42: 2016 | H42: =INDEX('iBoxx Data'!$B$17:$B$2255,MATCH(E42,'iBoxx Data'!$A$17:$A$2255,0)) -> 4.089496814 | I42: =INDEX('iBoxx Data'!$G$17:$G$2255,MATCH(E42,'iBoxx Data'!$F$17:$F$2255,0)) -> 4.515518231 | J42: 4.302507523 | K42: =InpC!$F$55*100 -> 0.15 | L42: =InpC!$F$64*100 -> 0 | M42: 4.152507523 | N42: 4.152507523
E43: 2016-02-24 | F43: =InpC!$F$28 -> 4 | G43: 2016 | H43: =INDEX('iBoxx Data'!$B$17:$B$2255,MATCH(E43,'iBoxx Data'!$A$17:$A$2255,0)) -> 4.034625018 | I43: =INDEX('iBoxx Data'!$G$17:$G$2255,MATCH(E43,'iBoxx Data'!$F$17:$F$2255,0)) -> 4.45551373 | J43: 4.245069374 | K43: =InpC!$F$55*100 -> 0.15 | L43: =InpC!$F$64*100 -> 0 | M43: 4.095069374 | N43: 4.095069374
E44: 2016-02-25 | F44: =InpC!$F$28 -> 4 | G44: 2016 | H44: =INDEX('iBoxx Data'!$B$17:$B$2255,MATCH(E44,'iBoxx Data'!$A$17:$A$2255,0)) -> 4.062947788 | I44: =INDEX('iBoxx Data'!$G$17:$G$2255,MATCH(E44,'iBoxx Data'!$F$17:$F$2255,0)) -> 4.476029145 | J44: 4.269488467 | K44: =InpC!$F$55*100 -> 0.15 | L44: =InpC!$F$64*100 -> 0 | M44: 4.119488467 | N44: 4.119488467
E45: 2016-02-26 | F45: =InpC!$F$28 -> 4 | G45: 2016 | H45: =INDEX('iBoxx Data'!$B$17:$B$2255,MATCH(E45,'iBoxx Data'!$A$17:$A$2255,0)) -> 4.082560036 | I45: =INDEX('iBoxx Data'!$G$17:$G$2255,MATCH(E45,'iBoxx Data'!$F$17:$F$2255,0)) -> 4.493328208 | J45: 4.287944122 | K45: =InpC!$F$55*100 -> 0.15 | L45: =InpC!$F$64*100 -> 0 | M45: 4.137944122 | N45: 4.137944122
E46: 2016-02-29 | F46: =InpC!$F$28 -> 4 | G46: 2016 | H46: =INDEX('iBoxx Data'!$B$17:$B$2255,MATCH(E46,'iBoxx Data'!$A$17:$A$2255,0)) -> 4.00558919 | I46: =INDEX('iBoxx Data'!$G$17:$G$2255,MATCH(E46,'iBoxx Data'!$F$17:$F$2255,0)) -> 4.411253091 | J46: 4.20842114 | K46: =InpC!$F$55*100 -> 0.15 | L46: =InpC!$F$64*100 -> 0 | M46: 4.05842114 | N46: 4.05842114
E47: 2016-03-01 | F47: =InpC!$F$28 -> 4 | G47: 2016 | H47: =INDEX('iBoxx Data'!$B$17:$B$2255,MATCH(E47,'iBoxx Data'!$A$17:$A$2255,0)) -> 4.016571869 | I47: =INDEX('iBoxx Data'!$G$17:$G$2255,MATCH(E47,'iBoxx Data'!$F$17:$F$2255,0)) -> 4.430096923 | J47: 4.223334396 | K47: =InpC!$F$55*100 -> 0.15 | L47: =InpC!$F$64*100 -> 0 | M47: 4.073334396 | N47: 4.073334396
E48: 2016-03-02 | F48: =InpC!$F$28 -> 4 | G48: 2016 | H48: =INDEX('iBoxx Data'!$B$17:$B$2255,MATCH(E48,'iBoxx Data'!$A$17:$A$2255,0)) -> 4.042459171 | I48: =INDEX('iBoxx Data'!$G$17:$G$2255,MATCH(E48,'iBoxx Data'!$F$17:$F$2255,0)) -> 4.451145502 | J48: 4.246802337 | K48: =InpC!$F$55*100 -> 0.15 | L48: =InpC!$F$64*100 -> 0 | M48: 4.096802337 | N48: 4.096802337
E49: 2016-03-03 | F49: =InpC!$F$28 -> 4 | G49: 2016 | H49: =INDEX('iBoxx Data'!$B$17:$B$2255,MATCH(E49,'iBoxx Data'!$A$17:$A$2255,0)) -> 4.001356656 | I49: =INDEX('iBoxx Data'!$G$17:$G$2255,MATCH(E49,'iBoxx Data'!$F$17:$F$2255,0)) -> 4.406398461 | J49: 4.203877558 | K49: =InpC!$F$55*100 -> 0.15 | L49: =InpC!$F$64*100 -> 0 | M49: 4.053877558 | N49: 4.053877558
E50: 2016-03-04 | F50: =InpC!$F$28 -> 4 | G50: 2016 | H50: =INDEX('iBoxx Data'!$B$17:$B$2255,MATCH(E50,'iBoxx Data'!$A$17:$A$2255,0)) -> 4.018193659 | I50: =INDEX('iBoxx Data'!$G$17:$G$2255,MATCH(E50,'iBoxx Data'!$F$17:$F$2255,0)) -> 4.417907915 | J50: 4.218050787 | K50: =InpC!$F$55*100 -> 0.15 | L50: =InpC!$F$64*100 -> 0 | M50: 4.068050787 | N50: 4.068050787
E51: 2016-03-07 | F51: =InpC!$F$28 -> 4 | G51: 2016 | H51: =INDEX('iBoxx Data'!$B$17:$B$2255,MATCH(E51,'iBoxx Data'!$A$17:$A$2255,0)) -> 4.010479993 | I51: =INDEX('iBoxx Data'!$G$17:$G$2255,MATCH(E51,'iBoxx Data'!$F$17:$F$2255,0)) -> 4.404458359 | J51: 4.207469176 | K51: =InpC!$F$55*100 -> 0.15 | L51: =InpC!$F$64*100 -> 0 | M51: 4.057469176 | N51: 4.057469176
E52: 2016-03-08 | F52: =InpC!$F$28 -> 4 | G52: 2016 | H52: =INDEX('iBoxx Data'!$B$17:$B$2255,MATCH(E52,'iBoxx Data'!$A$17:$A$2255,0)) -> 3.884291545 | I52: =INDEX('iBoxx Data'!$G$17:$G$2255,MATCH(E52,'iBoxx Data'!$F$17:$F$2255,0)) -> 4.276774807 | J52: 4.080533176 | K52: =InpC!$F$55*100 -> 0.15 | L52: =InpC!$F$64*100 -> 0 | M52: 3.930533176 | N52: 3.930533176
E53: 2016-03-09 | F53: =InpC!$F$28 -> 4 | G53: 2016 | H53: =INDEX('iBoxx Data'!$B$17:$B$2255,MATCH(E53,'iBoxx Data'!$A$17:$A$2255,0)) -> 3.957160203 | I53: =INDEX('iBoxx Data'!$G$17:$G$2255,MATCH(E53,'iBoxx Data'!$F$17:$F$2255,0)) -> 4.35360734 | J53: 4.155383772 | K53: =InpC!$F$55*100 -> 0.15 | L53: =InpC!$F$64*100 -> 0 | M53: 4.005383772 | N53: 4.005383772
E54: 2016-03-10 | F54: =InpC!$F$28 -> 4 | G54: 2016 | H54: =INDEX('iBoxx Data'!$B$17:$B$2255,MATCH(E54,'iBoxx Data'!$A$17:$A$2255,0)) -> 3.951767913 | I54: =INDEX('iBoxx Data'!$G$17:$G$2255,MATCH(E54,'iBoxx Data'!$F$17:$F$2255,0)) -> 4.340442243 | J54: 4.146105078 | K54: =InpC!$F$55*100 -> 0.15 | L54: =InpC!$F$64*100 -> 0 | M54: 3.996105078 | N54: 3.996105078
E55: 2016-03-11 | F55: =InpC!$F$28 -> 4 | G55: 2016 | H55: =INDEX('iBoxx Data'!$B$17:$B$2255,MATCH(E55,'iBoxx Data'!$A$17:$A$2255,0)) -> 3.910785547 | I55: =INDEX('iBoxx Data'!$G$17:$G$2255,MATCH(E55,'iBoxx Data'!$F$17:$F$2255,0)) -> 4.289607341 | J55: 4.100196444 | K55: =InpC!$F$55*100 -> 0.15 | L55: =InpC!$F$64*100 -> 0 | M55: 3.950196444 | N55: 3.950196444
E56: 2016-03-14 | F56: =InpC!$F$28 -> 4 | G56: 2016 | H56: =INDEX('iBoxx Data'!$B$17:$B$2255,MATCH(E56,'iBoxx Data'!$A$17:$A$2255,0)) -> 3.840382213 | I56: =INDEX('iBoxx Data'!$G$17:$G$2255,MATCH(E56,'iBoxx Data'!$F$17:$F$2255,0)) -> 4.209220444 | J56: 4.024801329 | K56: =InpC!$F$55*100 -> 0.15 | L56: =InpC!$F$64*100 -> 0 | M56: 3.874801329 | N56: 3.874801329
E57: 2016-03-15 | F57: =InpC!$F$28 -> 4 | G57: 2016 | H57: =INDEX('iBoxx Data'!$B$17:$B$2255,MATCH(E57,'iBoxx Data'!$A$17:$A$2255,0)) -> 3.821891593 | I57: =INDEX('iBoxx Data'!$G$17:$G$2255,MATCH(E57,'iBoxx Data'!$F$17:$F$2255,0)) -> 4.18488623 | J57: 4.003388911 | K57: =InpC!$F$55*100 -> 0.15 | L57: =InpC!$F$64*100 -> 0 | M57: 3.853388911 | N57: 3.853388911
E58: 2016-03-16 | F58: =InpC!$F$28 -> 4 | G58: 2016 | H58: =INDEX('iBoxx Data'!$B$17:$B$2255,MATCH(E58,'iBoxx Data'!$A$17:$A$2255,0)) -> 3.818612174 | I58: =INDEX('iBoxx Data'!$G$17:$G$2255,MATCH(E58,'iBoxx Data'!$F$17:$F$2255,0)) -> 4.182864017 | J58: 4.000738096 | K58: =InpC!$F$55*100 -> 0.15 | L58: =InpC!$F$64*100 -> 0 | M58: 3.850738096 | N58: 3.850738096
E59: 2016-03-17 | F59: =InpC!$F$28 -> 4 | G59: 2016 | H59: =INDEX('iBoxx Data'!$B$17:$B$2255,MATCH(E59,'iBoxx Data'!$A$17:$A$2255,0)) -> 3.768852767 | I59: =INDEX('iBoxx Data'!$G$17:$G$2255,MATCH(E59,'iBoxx Data'!$F$17:$F$2255,0)) -> 4.131342065 | J59: 3.950097416 | K59: =InpC!$F$55*100 -> 0.15 | L59: =InpC!$F$64*100 -> 0 | M59: 3.800097416 | N59: 3.800097416
E60: 2016-03-18 | F60: =InpC!$F$28 -> 4 | G60: 2016 | H60: =INDEX('iBoxx Data'!$B$17:$B$2255,MATCH(E60,'iBoxx Data'!$A$17:$A$2255,0)) -> 3.759340239 | I60: =INDEX('iBoxx Data'!$G$17:$G$2255,MATCH(E60,'iBoxx Data'!$F$17:$F$2255,0)) -> 4.122212671 | J60: 3.940776455 | K60: =InpC!$F$55*100 -> 0.15 | L60: =InpC!$F$64*100 -> 0 | M60: 3.790776455 | N60: 3.790776455
E61: 2016-03-21 | F61: =InpC!$F$28 -> 4 | G61: 2016 | H61: =INDEX('iBoxx Data'!$B$17:$B$2255,MATCH(E61,'iBoxx Data'!$A$17:$A$2255,0)) -> 3.775003525 | I61: =INDEX('iBoxx Data'!$G$17:$G$2255,MATCH(E61,'iBoxx Data'!$F$17:$F$2255,0)) -> 4.139445821 | J61: 3.957224673 | K61: =InpC!$F$55*100 -> 0.15 | L61: =InpC!$F$64*100 -> 0 | M61: 3.807224673 | N61: 3.807224673
E62: 2016-03-22 | F62: =InpC!$F$28 -> 4 | G62: 2016 | H62: =INDEX('iBoxx Data'!$B$17:$B$2255,MATCH(E62,'iBoxx Data'!$A$17:$A$2255,0)) -> 3.750553367 | I62: =INDEX('iBoxx Data'!$G$17:$G$2255,MATCH(E62,'iBoxx Data'!$F$17:$F$2255,0)) -> 4.115295137 | J62: 3.932924252 | K62: =InpC!$F$55*100 -> 0.15 | L62: =InpC!$F$64*100 -> 0 | M62: 3.782924252 | N62: 3.782924252
E63: 2016-03-23 | F63: =InpC!$F$28 -> 4 | G63: 2016 | H63: =INDEX('iBoxx Data'!$B$17:$B$2255,MATCH(E63,'iBoxx Data'!$A$17:$A$2255,0)) -> 3.724288013 | I63: =INDEX('iBoxx Data'!$G$17:$G$2255,MATCH(E63,'iBoxx Data'!$F$17:$F$2255,0)) -> 4.089729422 | J63: 3.907008718 | K63: =InpC!$F$55*100 -> 0.15 | L63: =InpC!$F$64*100 -> 0 | M63: 3.757008718 | N63: 3.757008718
E64: 2016-03-24 | F64: =InpC!$F$28 -> 4 | G64: 2016 | H64: =INDEX('iBoxx Data'!$B$17:$B$2255,MATCH(E64,'iBoxx Data'!$A$17:$A$2255,0)) -> 3.749170863 | I64: =INDEX('iBoxx Data'!$G$17:$G$2255,MATCH(E64,'iBoxx Data'!$F$17:$F$2255,0)) -> 4.112350241 | J64: 3.930760552 | K64: =InpC!$F$55*100 -> 0.15 | L64: =InpC!$F$64*100 -> 0 | M64: 3.780760552 | N64: 3.780760552
E65: 2016-03-25 | F65: =InpC!$F$28 -> 4 | G65: 2016 | H65: =INDEX('iBoxx Data'!$B$17:$B$2255,MATCH(E65,'iBoxx Data'!$A$17:$A$2255,0)) ->  | I65: =INDEX('iBoxx Data'!$G$17:$G$2255,MATCH(E65,'iBoxx Data'!$F$17:$F$2255,0)) ->  | K65: =InpC!$F$55*100 -> 0.15 | L65: =InpC!$F$64*100 -> 0
E66: 2016-03-28 | F66: =InpC!$F$28 -> 4 | G66: 2016 | H66: =INDEX('iBoxx Data'!$B$17:$B$2255,MATCH(E66,'iBoxx Data'!$A$17:$A$2255,0)) ->  | I66: =INDEX('iBoxx Data'!$G$17:$G$2255,MATCH(E66,'iBoxx Data'!$F$17:$F$2255,0)) ->  | K66: =InpC!$F$55*100 -> 0.15 | L66: =InpC!$F$64*100 -> 0
E67: 2016-03-29 | F67: =InpC!$F$28 -> 4 | G67: 2016 | H67: =INDEX('iBoxx Data'!$B$17:$B$2255,MATCH(E67,'iBoxx Data'!$A$17:$A$2255,0)) -> 3.719072661 | I67: =INDEX('iBoxx Data'!$G$17:$G$2255,MATCH(E67,'iBoxx Data'!$F$17:$F$2255,0)) -> 4.075759196 | J67: 3.897415928 | K67: =InpC!$F$55*100 -> 0.15 | L67: =InpC!$F$64*100 -> 0 | M67: 3.747415928 | N67: 3.747415928
E68: 2016-03-30 | F68: =InpC!$F$28 -> 4 | G68: 2016 | H68: =INDEX('iBoxx Data'!$B$17:$B$2255,MATCH(E68,'iBoxx Data'!$A$17:$A$2255,0)) -> 3.745699319 | I68: =INDEX('iBoxx Data'!$G$17:$G$2255,MATCH(E68,'iBoxx Data'!$F$17:$F$2255,0)) -> 4.100634769 | J68: 3.923167044 | K68: =InpC!$F$55*100 -> 0.15 | L68: =InpC!$F$64*100 -> 0 | M68: 3.773167044 | N68: 3.773167044
E69: 2016-03-31 | F69: =InpC!$F$28 -> 4 | G69: 2016 | H69: =INDEX('iBoxx Data'!$B$17:$B$2255,MATCH(E69,'iBoxx Data'!$A$17:$A$2255,0)) -> 3.693560199 | I69: =INDEX('iBoxx Data'!$G$17:$G$2255,MATCH(E69,'iBoxx Data'!$F$17:$F$2255,0)) -> 4.04957473 | J69: 3.871567465 | K69: =InpC!$F$55*100 -> 0.15 | L69: =InpC!$F$64*100 -> 0 | M69: 3.721567465 | N69: 3.721567465
E70: 2016-04-01 | F70: =InpC!$F$28 -> 4 | G70: 2017 | H70: =INDEX('iBoxx Data'!$B$17:$B$2255,MATCH(E70,'iBoxx Data'!$A$17:$A$2255,0)) -> 3.683950468 | I70: =INDEX('iBoxx Data'!$G$17:$G$2255,MATCH(E70,'iBoxx Data'!$F$17:$F$2255,0)) -> 4.055294098 | J70: 3.869622283 | K70: =InpC!$F$55*100 -> 0.15 | L70: =InpC!$F$64*100 -> 0 | M70: 3.719622283 | N70: 3.719622283
E71: 2016-04-04 | F71: =InpC!$F$28 -> 4 | G71: =YEAR(E71) + IF(MONTH(E71) >= F71, 1, 0) -> 2017 | H71: =INDEX('iBoxx Data'!$B$17:$B$2255,MATCH(E71,'iBoxx Data'!$A$17:$A$2255,0)) -> 3.667462884 | I71: =INDEX('iBoxx Data'!$G$17:$G$2255,MATCH(E71,'iBoxx Data'!$F$17:$F$2255,0)) -> 4.034428521 | J71: =IFERROR(AVERAGE(H71:I71),"") -> 3.850945703 | K71: =InpC!$F$55*100 -> 0.15 | L71: =InpC!$F$64*100 -> 0 | M71: =IFERROR(J71 - K71,"") -> 3.700945703 | N71: =IFERROR(J71-K71+L71,"") -> 3.700945703
E72: =WORKDAY(E71,1,) -> 2016-04-05 | F72: =InpC!$F$28 -> 4 | G72: 2017 | H72: =INDEX('iBoxx Data'!$B$17:$B$2255,MATCH(E72,'iBoxx Data'!$A$17:$A$2255,0)) -> 3.621385101 | I72: =INDEX('iBoxx Data'!$G$17:$G$2255,MATCH(E72,'iBoxx Data'!$F$17:$F$2255,0)) -> 3.987152363 | J72: 3.804268732 | K72: =InpC!$F$55*100 -> 0.15 | L72: =InpC!$F$64*100 -> 0 | M72: 3.654268732 | N72: 3.654268732
E73: 2016-04-06 | F73: =InpC!$F$28 -> 4 | G73: 2017 | H73: =INDEX('iBoxx Data'!$B$17:$B$2255,MATCH(E73,'iBoxx Data'!$A$17:$A$2255,0)) -> 3.620143998 | I73: =INDEX('iBoxx Data'!$G$17:$G$2255,MATCH(E73,'iBoxx Data'!$F$17:$F$2255,0)) -> 3.98602656 | J73: 3.803085279 | K73: =InpC!$F$55*100 -> 0.15 | L73: =InpC!$F$64*100 -> 0 | M73: 3.653085279 | N73: 3.653085279
E74: 2016-04-07 | F74: =InpC!$F$28 -> 4 | G74: 2017 | H74: =INDEX('iBoxx Data'!$B$17:$B$2255,MATCH(E74,'iBoxx Data'!$A$17:$A$2255,0)) -> 3.564411546 | I74: =INDEX('iBoxx Data'!$G$17:$G$2255,MATCH(E74,'iBoxx Data'!$F$17:$F$2255,0)) -> 3.916984519 | J74: 3.740698032 | K74: =InpC!$F$55*100 -> 0.15 | L74: =InpC!$F$64*100 -> 0 | M74: 3.590698032 | N74: 3.590698032
E75: 2016-04-08 | F75: =InpC!$F$28 -> 4 | G75: 2017 | H75: =INDEX('iBoxx Data'!$B$17:$B$2255,MATCH(E75,'iBoxx Data'!$A$17:$A$2255,0)) -> 3.601028969 | I75: =INDEX('iBoxx Data'!$G$17:$G$2255,MATCH(E75,'iBoxx Data'!$F$17:$F$2255,0)) -> 3.953773913 | J75: 3.777401441 | K75: =InpC!$F$55*100 -> 0.15 | L75: =InpC!$F$64*100 -> 0 | M75: 3.627401441 | N75: 3.627401441
E76: 2016-04-11 | F76: =InpC!$F$28 -> 4 | G76: 2017 | H76: =INDEX('iBoxx Data'!$B$17:$B$2255,MATCH(E76,'iBoxx Data'!$A$17:$A$2255,0)) -> 3.633952779 | I76: =INDEX('iBoxx Data'!$G$17:$G$2255,MATCH(E76,'iBoxx Data'!$F$17:$F$2255,0)) -> 3.987374779 | J76: 3.810663779 | K76: =InpC!$F$55*100 -> 0.15 | L76: =InpC!$F$64*100 -> 0 | M76: 3.660663779 | N76: 3.660663779
E77: 2016-04-12 | F77: =InpC!$F$28 -> 4 | G77: 2017 | H77: =INDEX('iBoxx Data'!$B$17:$B$2255,MATCH(E77,'iBoxx Data'!$A$17:$A$2255,0)) -> 3.675589987 | I77: =INDEX('iBoxx Data'!$G$17:$G$2255,MATCH(E77,'iBoxx Data'!$F$17:$F$2255,0)) -> 4.029701162 | J77: 3.852645575 | K77: =InpC!$F$55*100 -> 0.15 | L77: =InpC!$F$64*100 -> 0 | M77: 3.702645575 | N77: 3.702645575
E78: 2016-04-13 | F78: =InpC!$F$28 -> 4 | G78: 2017 | H78: =INDEX('iBoxx Data'!$B$17:$B$2255,MATCH(E78,'iBoxx Data'!$A$17:$A$2255,0)) -> 3.642780938 | I78: =INDEX('iBoxx Data'!$G$17:$G$2255,MATCH(E78,'iBoxx Data'!$F$17:$F$2255,0)) -> 3.996264527 | J78: 3.819522733 | K78: =InpC!$F$55*100 -> 0.15 | L78: =InpC!$F$64*100 -> 0 | M78: 3.669522733 | N78: 3.669522733
E79: 2016-04-14 | F79: =InpC!$F$28 -> 4 | G79: 2017 | H79: =INDEX('iBoxx Data'!$B$17:$B$2255,MATCH(E79,'iBoxx Data'!$A$17:$A$2255,0)) -> 3.646530327 | I79: =INDEX('iBoxx Data'!$G$17:$G$2255,MATCH(E79,'iBoxx Data'!$F$17:$F$2255,0)) -> 3.996481024 | J79: 3.821505676 | K79: =InpC!$F$55*100 -> 0.15 | L79: =InpC!$F$64*100 -> 0 | M79: 3.671505676 | N79: 3.671505676
E80: 2016-04-15 | F80: =InpC!$F$28 -> 4 | G80: 2017 | H80: =INDEX('iBoxx Data'!$B$17:$B$2255,MATCH(E80,'iBoxx Data'!$A$17:$A$2255,0)) -> 3.621642195 | I80: =INDEX('iBoxx Data'!$G$17:$G$2255,MATCH(E80,'iBoxx Data'!$F$17:$F$2255,0)) -> 3.96775034 | J80: 3.794696267 | K80: =InpC!$F$55*100 -> 0.15 | L80: =InpC!$F$64*100 -> 0 | M80: 3.644696267 | N80: 3.644696267
E81: 2016-04-18 | F81: =InpC!$F$28 -> 4 | G81: 2017 | H81: =INDEX('iBoxx Data'!$B$17:$B$2255,MATCH(E81,'iBoxx Data'!$A$17:$A$2255,0)) -> 3.67822511 | I81: =INDEX('iBoxx Data'!$G$17:$G$2255,MATCH(E81,'iBoxx Data'!$F$17:$F$2255,0)) -> 4.023895408 | J81: 3.851060259 | K81: =InpC!$F$55*100 -> 0.15 | L81: =InpC!$F$64*100 -> 0 | M81: 3.701060259 | N81: 3.701060259
E82: 2016-04-19 | F82: =InpC!$F$28 -> 4 | G82: 2017 | H82: =INDEX('iBoxx Data'!$B$17:$B$2255,MATCH(E82,'iBoxx Data'!$A$17:$A$2255,0)) -> 3.701183086 | I82: =INDEX('iBoxx Data'!$G$17:$G$2255,MATCH(E82,'iBoxx Data'!$F$17:$F$2255,0)) -> 4.040156099 | J82: 3.870669593 | K82: =InpC!$F$55*100 -> 0.15 | L82: =InpC!$F$64*100 -> 0 | M82: 3.720669593 | N82: 3.720669593
E83: 2016-04-20 | F83: =InpC!$F$28 -> 4 | G83: 2017 | H83: =INDEX('iBoxx Data'!$B$17:$B$2255,MATCH(E83,'iBoxx Data'!$A$17:$A$2255,0)) -> 3.640066371 | I83: =INDEX('iBoxx Data'!$G$17:$G$2255,MATCH(E83,'iBoxx Data'!$F$17:$F$2255,0)) -> 3.975735318 | J83: 3.807900845 | K83: =InpC!$F$55*100 -> 0.15 | L83: =InpC!$F$64*100 -> 0 | M83: 3.657900845 | N83: 3.657900845
E84: 2016-04-21 | F84: =InpC!$F$28 -> 4 | G84: 2017 | H84: =INDEX('iBoxx Data'!$B$17:$B$2255,MATCH(E84,'iBoxx Data'!$A$17:$A$2255,0)) -> 3.704757346 | I84: =INDEX('iBoxx Data'!$G$17:$G$2255,MATCH(E84,'iBoxx Data'!$F$17:$F$2255,0)) -> 4.030059153 | J84: 3.867408249 | K84: =InpC!$F$55*100 -> 0.15 | L84: =InpC!$F$64*100 -> 0 | M84: 3.717408249 | N84: 3.717408249
E85: 2016-04-22 | F85: =InpC!$F$28 -> 4 | G85: 2017 | H85: =INDEX('iBoxx Data'!$B$17:$B$2255,MATCH(E85,'iBoxx Data'!$A$17:$A$2255,0)) -> 3.705108085 | I85: =INDEX('iBoxx Data'!$G$17:$G$2255,MATCH(E85,'iBoxx Data'!$F$17:$F$2255,0)) -> 4.025071085 | J85: 3.865089585 | K85: =InpC!$F$55*100 -> 0.15 | L85: =InpC!$F$64*100 -> 0 | M85: 3.715089585 | N85: 3.715089585
E86: 2016-04-25 | F86: =InpC!$F$28 -> 4 | G86: 2017 | H86: =INDEX('iBoxx Data'!$B$17:$B$2255,MATCH(E86,'iBoxx Data'!$A$17:$A$2255,0)) -> 3.68832972 | I86: =INDEX('iBoxx Data'!$G$17:$G$2255,MATCH(E86,'iBoxx Data'!$F$17:$F$2255,0)) -> 4.005336725 | J86: 3.846833223 | K86: =InpC!$F$55*100 -> 0.15 | L86: =InpC!$F$64*100 -> 0 | M86: 3.696833223 | N86: 3.696833223
E87: 2016-04-26 | F87: =InpC!$F$28 -> 4 | G87: 2017 | H87: =INDEX('iBoxx Data'!$B$17:$B$2255,MATCH(E87,'iBoxx Data'!$A$17:$A$2255,0)) -> 3.733532947 | I87: =INDEX('iBoxx Data'!$G$17:$G$2255,MATCH(E87,'iBoxx Data'!$F$17:$F$2255,0)) -> 4.055406865 | J87: 3.894469906 | K87: =InpC!$F$55*100 -> 0.15 | L87: =InpC!$F$64*100 -> 0 | M87: 3.744469906 | N87: 3.744469906
E88: 2016-04-27 | F88: =InpC!$F$28 -> 4 | G88: 2017 | H88: =INDEX('iBoxx Data'!$B$17:$B$2255,MATCH(E88,'iBoxx Data'!$A$17:$A$2255,0)) -> 3.687649113 | I88: =INDEX('iBoxx Data'!$G$17:$G$2255,MATCH(E88,'iBoxx Data'!$F$17:$F$2255,0)) -> 4.003478059 | J88: 3.845563586 | K88: =InpC!$F$55*100 -> 0.15 | L88: =InpC!$F$64*100 -> 0 | M88: 3.695563586 | N88: 3.695563586
E89: 2016-04-28 | F89: =InpC!$F$28 -> 4 | G89: 2017 | H89: =INDEX('iBoxx Data'!$B$17:$B$2255,MATCH(E89,'iBoxx Data'!$A$17:$A$2255,0)) -> 3.657338718 | I89: =INDEX('iBoxx Data'!$G$17:$G$2255,MATCH(E89,'iBoxx Data'!$F$17:$F$2255,0)) -> 3.972037544 | J89: 3.814688131 | K89: =InpC!$F$55*100 -> 0.15 | L89: =InpC!$F$64*100 -> 0 | M89: 3.664688131 | N89: 3.664688131
E90: 2016-04-29 | F90: =InpC!$F$28 -> 4 | G90: 2017 | H90: =INDEX('iBoxx Data'!$B$17:$B$2255,MATCH(E90,'iBoxx Data'!$A$17:$A$2255,0)) -> 3.643727069 | I90: =INDEX('iBoxx Data'!$G$17:$G$2255,MATCH(E90,'iBoxx Data'!$F$17:$F$2255,0)) -> 3.958858924 | J90: 3.801292996 | K90: =InpC!$F$55*100 -> 0.15 | L90: =InpC!$F$64*100 -> 0 | M90: 3.651292996 | N90: 3.651292996
E91: 2016-05-02 | F91: =InpC!$F$28 -> 4 | G91: 2017 | H91: =INDEX('iBoxx Data'!$B$17:$B$2255,MATCH(E91,'iBoxx Data'!$A$17:$A$2255,0)) ->  | I91: =INDEX('iBoxx Data'!$G$17:$G$2255,MATCH(E91,'iBoxx Data'!$F$17:$F$2255,0)) ->  | K91: =InpC!$F$55*100 -> 0.15 | L91: =InpC!$F$64*100 -> 0
E92: 2016-05-03 | F92: =InpC!$F$28 -> 4 | G92: 2017 | H92: =INDEX('iBoxx Data'!$B$17:$B$2255,MATCH(E92,'iBoxx Data'!$A$17:$A$2255,0)) -> 3.565652294 | I92: =INDEX('iBoxx Data'!$G$17:$G$2255,MATCH(E92,'iBoxx Data'!$F$17:$F$2255,0)) -> 3.882539483 | J92: 3.724095888 | K92: =InpC!$F$55*100 -> 0.15 | L92: =InpC!$F$64*100 -> 0 | M92: 3.574095888 | N92: 3.574095888
E93: 2016-05-04 | F93: =InpC!$F$28 -> 4 | G93: 2017 | H93: =INDEX('iBoxx Data'!$B$17:$B$2255,MATCH(E93,'iBoxx Data'!$A$17:$A$2255,0)) -> 3.576029659 | I93: =INDEX('iBoxx Data'!$G$17:$G$2255,MATCH(E93,'iBoxx Data'!$F$17:$F$2255,0)) -> 3.893423618 | J93: 3.734726638 | K93: =InpC!$F$55*100 -> 0.15 | L93: =InpC!$F$64*100 -> 0 | M93: 3.584726638 | N93: 3.584726638
E94: 2016-05-05 | F94: =InpC!$F$28 -> 4 | G94: 2017 | H94: =INDEX('iBoxx Data'!$B$17:$B$2255,MATCH(E94,'iBoxx Data'!$A$17:$A$2255,0)) -> 3.545868815 | I94: =INDEX('iBoxx Data'!$G$17:$G$2255,MATCH(E94,'iBoxx Data'!$F$17:$F$2255,0)) -> 3.859364174 | J94: 3.702616495 | K94: =InpC!$F$55*100 -> 0.15 | L94: =InpC!$F$64*100 -> 0 | M94: 3.552616495 | N94: 3.552616495
E95: 2016-05-06 | F95: =InpC!$F$28 -> 4 | G95: 2017 | H95: =INDEX('iBoxx Data'!$B$17:$B$2255,MATCH(E95,'iBoxx Data'!$A$17:$A$2255,0)) -> 3.503631896 | I95: =INDEX('iBoxx Data'!$G$17:$G$2255,MATCH(E95,'iBoxx Data'!$F$17:$F$2255,0)) -> 3.825082618 | J95: 3.664357257 | K95: =InpC!$F$55*100 -> 0.15 | L95: =InpC!$F$64*100 -> 0 | M95: 3.514357257 | N95: 3.514357257
E96: 2016-05-09 | F96: =InpC!$F$28 -> 4 | G96: 2017 | H96: =INDEX('iBoxx Data'!$B$17:$B$2255,MATCH(E96,'iBoxx Data'!$A$17:$A$2255,0)) -> 3.518565945 | I96: =INDEX('iBoxx Data'!$G$17:$G$2255,MATCH(E96,'iBoxx Data'!$F$17:$F$2255,0)) -> 3.843132287 | J96: 3.680849116 | K96: =InpC!$F$55*100 -> 0.15 | L96: =InpC!$F$64*100 -> 0 | M96: 3.530849116 | N96: 3.530849116
E97: 2016-05-10 | F97: =InpC!$F$28 -> 4 | G97: 2017 | H97: =INDEX('iBoxx Data'!$B$17:$B$2255,MATCH(E97,'iBoxx Data'!$A$17:$A$2255,0)) -> 3.527173924 | I97: =INDEX('iBoxx Data'!$G$17:$G$2255,MATCH(E97,'iBoxx Data'!$F$17:$F$2255,0)) -> 3.855501769 | J97: 3.691337846 | K97: =InpC!$F$55*100 -> 0.15 | L97: =InpC!$F$64*100 -> 0 | M97: 3.541337846 | N97: 3.541337846
E98: 2016-05-11 | F98: =InpC!$F$28 -> 4 | G98: 2017 | H98: =INDEX('iBoxx Data'!$B$17:$B$2255,MATCH(E98,'iBoxx Data'!$A$17:$A$2255,0)) -> 3.52901448 | I98: =INDEX('iBoxx Data'!$G$17:$G$2255,MATCH(E98,'iBoxx Data'!$F$17:$F$2255,0)) -> 3.860191537 | J98: 3.694603008 | K98: =InpC!$F$55*100 -> 0.15 | L98: =InpC!$F$64*100 -> 0 | M98: 3.544603008 | N98: 3.544603008
E99: 2016-05-12 | F99: =InpC!$F$28 -> 4 | G99: 2017 | H99: =INDEX('iBoxx Data'!$B$17:$B$2255,MATCH(E99,'iBoxx Data'!$A$17:$A$2255,0)) -> 3.559263663 | I99: =INDEX('iBoxx Data'!$G$17:$G$2255,MATCH(E99,'iBoxx Data'!$F$17:$F$2255,0)) -> 3.887342548 | J99: 3.723303105 | K99: =InpC!$F$55*100 -> 0.15 | L99: =InpC!$F$64*100 -> 0 | M99: 3.573303105 | N99: 3.573303105
E100: 2016-05-13 | F100: =InpC!$F$28 -> 4 | G100: 2017 | H100: =INDEX('iBoxx Data'!$B$17:$B$2255,MATCH(E100,'iBoxx Data'!$A$17:$A$2255,0)) -> 3.542344954 | I100: =INDEX('iBoxx Data'!$G$17:$G$2255,MATCH(E100,'iBoxx Data'!$F$17:$F$2255,0)) -> 3.865729026 | J100: 3.70403699 | K100: =InpC!$F$55*100 -> 0.15 | L100: =InpC!$F$64*100 -> 0 | M100: 3.55403699 | N100: 3.55403699
E101: 2016-05-16 | F101: =InpC!$F$28 -> 4 | G101: 2017 | H101: =INDEX('iBoxx Data'!$B$17:$B$2255,MATCH(E101,'iBoxx Data'!$A$17:$A$2255,0)) -> 3.558155765 | I101: =INDEX('iBoxx Data'!$G$17:$G$2255,MATCH(E101,'iBoxx Data'!$F$17:$F$2255,0)) -> 3.882392407 | J101: 3.720274086 | K101: =InpC!$F$55*100 -> 0.15 | L101: =InpC!$F$64*100 -> 0 | M101: 3.570274086 | N101: 3.570274086
E102: 2016-05-17 | F102: =InpC!$F$28 -> 4 | G102: 2017 | H102: =INDEX('iBoxx Data'!$B$17:$B$2255,MATCH(E102,'iBoxx Data'!$A$17:$A$2255,0)) -> 3.537707383 | I102: =INDEX('iBoxx Data'!$G$17:$G$2255,MATCH(E102,'iBoxx Data'!$F$17:$F$2255,0)) -> 3.860606935 | J102: 3.699157159 | K102: =InpC!$F$55*100 -> 0.15 | L102: =InpC!$F$64*100 -> 0 | M102: 3.549157159 | N102: 3.549157159
E103: 2016-05-18 | F103: =InpC!$F$28 -> 4 | G103: 2017 | H103: =INDEX('iBoxx Data'!$B$17:$B$2255,MATCH(E103,'iBoxx Data'!$A$17:$A$2255,0)) -> 3.611746119 | I103: =INDEX('iBoxx Data'!$G$17:$G$2255,MATCH(E103,'iBoxx Data'!$F$17:$F$2255,0)) -> 3.936345335 | J103: 3.774045727 | K103: =InpC!$F$55*100 -> 0.15 | L103: =InpC!$F$64*100 -> 0 | M103: 3.624045727 | N103: 3.624045727
E104: 2016-05-19 | F104: =InpC!$F$28 -> 4 | G104: 2017 | H104: =INDEX('iBoxx Data'!$B$17:$B$2255,MATCH(E104,'iBoxx Data'!$A$17:$A$2255,0)) -> 3.605632461 | I104: =INDEX('iBoxx Data'!$G$17:$G$2255,MATCH(E104,'iBoxx Data'!$F$17:$F$2255,0)) -> 3.930510485 | J104: 3.768071473 | K104: =InpC!$F$55*100 -> 0.15 | L104: =InpC!$F$64*100 -> 0 | M104: 3.618071473 | N104: 3.618071473
E105: 2016-05-20 | F105: =InpC!$F$28 -> 4 | G105: 2017 | H105: =INDEX('iBoxx Data'!$B$17:$B$2255,MATCH(E105,'iBoxx Data'!$A$17:$A$2255,0)) -> 3.631590563 | I105: =INDEX('iBoxx Data'!$G$17:$G$2255,MATCH(E105,'iBoxx Data'!$F$17:$F$2255,0)) -> 3.956925811 | J105: 3.794258187 | K105: =InpC!$F$55*100 -> 0.15 | L105: =InpC!$F$64*100 -> 0 | M105: 3.644258187 | N105: 3.644258187
E106: 2016-05-23 | F106: =InpC!$F$28 -> 4 | G106: 2017 | H106: =INDEX('iBoxx Data'!$B$17:$B$2255,MATCH(E106,'iBoxx Data'!$A$17:$A$2255,0)) -> 3.625768351 | I106: =INDEX('iBoxx Data'!$G$17:$G$2255,MATCH(E106,'iBoxx Data'!$F$17:$F$2255,0)) -> 3.953114556 | J106: 3.789441453 | K106: =InpC!$F$55*100 -> 0.15 | L106: =InpC!$F$64*100 -> 0 | M106: 3.639441453 | N106: 3.639441453
E107: 2016-05-24 | F107: =InpC!$F$28 -> 4 | G107: 2017 | H107: =INDEX('iBoxx Data'!$B$17:$B$2255,MATCH(E107,'iBoxx Data'!$A$17:$A$2255,0)) -> 3.630203178 | I107: =INDEX('iBoxx Data'!$G$17:$G$2255,MATCH(E107,'iBoxx Data'!$F$17:$F$2255,0)) -> 3.9575003 | J107: 3.793851739 | K107: =InpC!$F$55*100 -> 0.15 | L107: =InpC!$F$64*100 -> 0 | M107: 3.643851739 | N107: 3.643851739
E108: 2016-05-25 | F108: =InpC!$F$28 -> 4 | G108: 2017 | H108: =INDEX('iBoxx Data'!$B$17:$B$2255,MATCH(E108,'iBoxx Data'!$A$17:$A$2255,0)) -> 3.594493165 | I108: =INDEX('iBoxx Data'!$G$17:$G$2255,MATCH(E108,'iBoxx Data'!$F$17:$F$2255,0)) -> 3.921035258 | J108: 3.757764212 | K108: =InpC!$F$55*100 -> 0.15 | L108: =InpC!$F$64*100 -> 0 | M108: 3.607764212 | N108: 3.607764212
E109: 2016-05-26 | F109: =InpC!$F$28 -> 4 | G109: 2017 | H109: =INDEX('iBoxx Data'!$B$17:$B$2255,MATCH(E109,'iBoxx Data'!$A$17:$A$2255,0)) -> 3.551809273 | I109: =INDEX('iBoxx Data'!$G$17:$G$2255,MATCH(E109,'iBoxx Data'!$F$17:$F$2255,0)) -> 3.879803706 | J109: 3.71580649 | K109: =InpC!$F$55*100 -> 0.15 | L109: =InpC!$F$64*100 -> 0 | M109: 3.56580649 | N109: 3.56580649
E110: 2016-05-27 | F110: =InpC!$F$28 -> 4 | G110: 2017 | H110: =INDEX('iBoxx Data'!$B$17:$B$2255,MATCH(E110,'iBoxx Data'!$A$17:$A$2255,0)) -> 3.566835406 | I110: =INDEX('iBoxx Data'!$G$17:$G$2255,MATCH(E110,'iBoxx Data'!$F$17:$F$2255,0)) -> 3.892733354 | J110: 3.72978438 | K110: =InpC!$F$55*100 -> 0.15 | L110: =InpC!$F$64*100 -> 0 | M110: 3.57978438 | N110: 3.57978438
E111: 2016-05-30 | F111: =InpC!$F$28 -> 4 | G111: 2017 | H111: =INDEX('iBoxx Data'!$B$17:$B$2255,MATCH(E111,'iBoxx Data'!$A$17:$A$2255,0)) ->  | I111: =INDEX('iBoxx Data'!$G$17:$G$2255,MATCH(E111,'iBoxx Data'!$F$17:$F$2255,0)) ->  | K111: =InpC!$F$55*100 -> 0.15 | L111: =InpC!$F$64*100 -> 0
E112: 2016-05-31 | F112: =InpC!$F$28 -> 4 | G112: 2017 | H112: =INDEX('iBoxx Data'!$B$17:$B$2255,MATCH(E112,'iBoxx Data'!$A$17:$A$2255,0)) -> 3.543440092 | I112: =INDEX('iBoxx Data'!$G$17:$G$2255,MATCH(E112,'iBoxx Data'!$F$17:$F$2255,0)) -> 3.874675681 | J112: 3.709057887 | K112: =InpC!$F$55*100 -> 0.15 | L112: =InpC!$F$64*100 -> 0 | M112: 3.559057887 | N112: 3.559057887
E113: 2016-06-01 | F113: =InpC!$F$28 -> 4 | G113: 2017 | H113: =INDEX('iBoxx Data'!$B$17:$B$2255,MATCH(E113,'iBoxx Data'!$A$17:$A$2255,0)) -> 3.47725515 | I113: =INDEX('iBoxx Data'!$G$17:$G$2255,MATCH(E113,'iBoxx Data'!$F$17:$F$2255,0)) -> 3.810414389 | J113: 3.643834769 | K113: =InpC!$F$55*100 -> 0.15 | L113: =InpC!$F$64*100 -> 0 | M113: 3.493834769 | N113: 3.493834769
E114: 2016-06-02 | F114: =InpC!$F$28 -> 4 | G114: 2017 | H114: =INDEX('iBoxx Data'!$B$17:$B$2255,MATCH(E114,'iBoxx Data'!$A$17:$A$2255,0)) -> 3.452028307 | I114: =INDEX('iBoxx Data'!$G$17:$G$2255,MATCH(E114,'iBoxx Data'!$F$17:$F$2255,0)) -> 3.790778706 | J114: 3.621403506 | K114: =InpC!$F$55*100 -> 0.15 | L114: =InpC!$F$64*100 -> 0 | M114: 3.471403506 | N114: 3.471403506
E115: 2016-06-03 | F115: =InpC!$F$28 -> 4 | G115: 2017 | H115: =INDEX('iBoxx Data'!$B$17:$B$2255,MATCH(E115,'iBoxx Data'!$A$17:$A$2255,0)) -> 3.394971575 | I115: =INDEX('iBoxx Data'!$G$17:$G$2255,MATCH(E115,'iBoxx Data'!$F$17:$F$2255,0)) -> 3.730787387 | J115: 3.562879481 | K115: =InpC!$F$55*100 -> 0.15 | L115: =InpC!$F$64*100 -> 0 | M115: 3.412879481 | N115: 3.412879481
E116: 2016-06-06 | F116: =InpC!$F$28 -> 4 | G116: 2017 | H116: =INDEX('iBoxx Data'!$B$17:$B$2255,MATCH(E116,'iBoxx Data'!$A$17:$A$2255,0)) -> 3.408857992 | I116: =INDEX('iBoxx Data'!$G$17:$G$2255,MATCH(E116,'iBoxx Data'!$F$17:$F$2255,0)) -> 3.742843556 | J116: 3.575850774 | K116: =InpC!$F$55*100 -> 0.15 | L116: =InpC!$F$64*100 -> 0 | M116: 3.425850774 | N116: 3.425850774
E117: 2016-06-07 | F117: =InpC!$F$28 -> 4 | G117: 2017 | H117: =INDEX('iBoxx Data'!$B$17:$B$2255,MATCH(E117,'iBoxx Data'!$A$17:$A$2255,0)) -> 3.39269702 | I117: =INDEX('iBoxx Data'!$G$17:$G$2255,MATCH(E117,'iBoxx Data'!$F$17:$F$2255,0)) -> 3.729996407 | J117: 3.561346713 | K117: =InpC!$F$55*100 -> 0.15 | L117: =InpC!$F$64*100 -> 0 | M117: 3.411346713 | N117: 3.411346713
E118: 2016-06-08 | F118: =InpC!$F$28 -> 4 | G118: 2017 | H118: =INDEX('iBoxx Data'!$B$17:$B$2255,MATCH(E118,'iBoxx Data'!$A$17:$A$2255,0)) -> 3.366651484 | I118: =INDEX('iBoxx Data'!$G$17:$G$2255,MATCH(E118,'iBoxx Data'!$F$17:$F$2255,0)) -> 3.703981574 | J118: 3.535316529 | K118: =InpC!$F$55*100 -> 0.15 | L118: =InpC!$F$64*100 -> 0 | M118: 3.385316529 | N118: 3.385316529
E119: 2016-06-09 | F119: =InpC!$F$28 -> 4 | G119: 2017 | H119: =INDEX('iBoxx Data'!$B$17:$B$2255,MATCH(E119,'iBoxx Data'!$A$17:$A$2255,0)) -> 3.331104197 | I119: =INDEX('iBoxx Data'!$G$17:$G$2255,MATCH(E119,'iBoxx Data'!$F$17:$F$2255,0)) -> 3.669823096 | J119: 3.500463647 | K119: =InpC!$F$55*100 -> 0.15 | L119: =InpC!$F$64*100 -> 0 | M119: 3.350463647 | N119: 3.350463647
E120: 2016-06-10 | F120: =InpC!$F$28 -> 4 | G120: 2017 | H120: =INDEX('iBoxx Data'!$B$17:$B$2255,MATCH(E120,'iBoxx Data'!$A$17:$A$2255,0)) -> 3.313468792 | I120: =INDEX('iBoxx Data'!$G$17:$G$2255,MATCH(E120,'iBoxx Data'!$F$17:$F$2255,0)) -> 3.658822099 | J120: 3.486145445 | K120: =InpC!$F$55*100 -> 0.15 | L120: =InpC!$F$64*100 -> 0 | M120: 3.336145445 | N120: 3.336145445
E121: 2016-06-13 | F121: =InpC!$F$28 -> 4 | G121: 2017 | H121: =INDEX('iBoxx Data'!$B$17:$B$2255,MATCH(E121,'iBoxx Data'!$A$17:$A$2255,0)) -> 3.311858008 | I121: =INDEX('iBoxx Data'!$G$17:$G$2255,MATCH(E121,'iBoxx Data'!$F$17:$F$2255,0)) -> 3.668741283 | J121: 3.490299645 | K121: =InpC!$F$55*100 -> 0.15 | L121: =InpC!$F$64*100 -> 0 | M121: 3.340299645 | N121: 3.340299645
E122: 2016-06-14 | F122: =InpC!$F$28 -> 4 | G122: 2017 | H122: =INDEX('iBoxx Data'!$B$17:$B$2255,MATCH(E122,'iBoxx Data'!$A$17:$A$2255,0)) -> 3.267653535 | I122: =INDEX('iBoxx Data'!$G$17:$G$2255,MATCH(E122,'iBoxx Data'!$F$17:$F$2255,0)) -> 3.629909228 | J122: 3.448781381 | K122: =InpC!$F$55*100 -> 0.15 | L122: =InpC!$F$64*100 -> 0 | M122: 3.298781381 | N122: 3.298781381
E123: 2016-06-15 | F123: =InpC!$F$28 -> 4 | G123: 2017 | H123: =INDEX('iBoxx Data'!$B$17:$B$2255,MATCH(E123,'iBoxx Data'!$A$17:$A$2255,0)) -> 3.241599025 | I123: =INDEX('iBoxx Data'!$G$17:$G$2255,MATCH(E123,'iBoxx Data'!$F$17:$F$2255,0)) -> 3.604691099 | J123: 3.423145062 | K123: =InpC!$F$55*100 -> 0.15 | L123: =InpC!$F$64*100 -> 0 | M123: 3.273145062 | N123: 3.273145062
E124: 2016-06-16 | F124: =InpC!$F$28 -> 4 | G124: 2017 | H124: =INDEX('iBoxx Data'!$B$17:$B$2255,MATCH(E124,'iBoxx Data'!$A$17:$A$2255,0)) -> 3.26109471 | I124: =INDEX('iBoxx Data'!$G$17:$G$2255,MATCH(E124,'iBoxx Data'!$F$17:$F$2255,0)) -> 3.635806871 | J124: 3.448450791 | K124: =InpC!$F$55*100 -> 0.15 | L124: =InpC!$F$64*100 -> 0 | M124: 3.298450791 | N124: 3.298450791
E125: 2016-06-17 | F125: =InpC!$F$28 -> 4 | G125: 2017 | H125: =INDEX('iBoxx Data'!$B$17:$B$2255,MATCH(E125,'iBoxx Data'!$A$17:$A$2255,0)) -> 3.325964391 | I125: =INDEX('iBoxx Data'!$G$17:$G$2255,MATCH(E125,'iBoxx Data'!$F$17:$F$2255,0)) -> 3.696885581 | J125: 3.511424986 | K125: =InpC!$F$55*100 -> 0.15 | L125: =InpC!$F$64*100 -> 0 | M125: 3.361424986 | N125: 3.361424986
E126: 2016-06-20 | F126: =InpC!$F$28 -> 4 | G126: 2017 | H126: =INDEX('iBoxx Data'!$B$17:$B$2255,MATCH(E126,'iBoxx Data'!$A$17:$A$2255,0)) -> 3.416500733 | I126: =INDEX('iBoxx Data'!$G$17:$G$2255,MATCH(E126,'iBoxx Data'!$F$17:$F$2255,0)) -> 3.783429404 | J126: 3.599965068 | K126: =InpC!$F$55*100 -> 0.15 | L126: =InpC!$F$64*100 -> 0 | M126: 3.449965068 | N126: 3.449965068
E127: 2016-06-21 | F127: =InpC!$F$28 -> 4 | G127: 2017 | H127: =INDEX('iBoxx Data'!$B$17:$B$2255,MATCH(E127,'iBoxx Data'!$A$17:$A$2255,0)) -> 3.439519769 | I127: =INDEX('iBoxx Data'!$G$17:$G$2255,MATCH(E127,'iBoxx Data'!$F$17:$F$2255,0)) -> 3.804027757 | J127: 3.621773763 | K127: =InpC!$F$55*100 -> 0.15 | L127: =InpC!$F$64*100 -> 0 | M127: 3.471773763 | N127: 3.471773763
E128: 2016-06-22 | F128: =InpC!$F$28 -> 4 | G128: 2017 | H128: =INDEX('iBoxx Data'!$B$17:$B$2255,MATCH(E128,'iBoxx Data'!$A$17:$A$2255,0)) -> 3.458680622 | I128: =INDEX('iBoxx Data'!$G$17:$G$2255,MATCH(E128,'iBoxx Data'!$F$17:$F$2255,0)) -> 3.819934772 | J128: 3.639307697 | K128: =InpC!$F$55*100 -> 0.15 | L128: =InpC!$F$64*100 -> 0 | M128: 3.489307697 | N128: 3.489307697
E129: 2016-06-23 | F129: =InpC!$F$28 -> 4 | G129: 2017 | H129: =INDEX('iBoxx Data'!$B$17:$B$2255,MATCH(E129,'iBoxx Data'!$A$17:$A$2255,0)) -> 3.466078173 | I129: =INDEX('iBoxx Data'!$G$17:$G$2255,MATCH(E129,'iBoxx Data'!$F$17:$F$2255,0)) -> 3.819451191 | J129: 3.642764682 | K129: =InpC!$F$55*100 -> 0.15 | L129: =InpC!$F$64*100 -> 0 | M129: 3.492764682 | N129: 3.492764682
E130: 2016-06-24 | F130: =InpC!$F$28 -> 4 | G130: 2017 | H130: =INDEX('iBoxx Data'!$B$17:$B$2255,MATCH(E130,'iBoxx Data'!$A$17:$A$2255,0)) -> 3.389275877 | I130: =INDEX('iBoxx Data'!$G$17:$G$2255,MATCH(E130,'iBoxx Data'!$F$17:$F$2255,0)) -> 3.760637329 | J130: 3.574956603 | K130: =InpC!$F$55*100 -> 0.15 | L130: =InpC!$F$64*100 -> 0 | M130: 3.424956603 | N130: 3.424956603
E131: 2016-06-27 | F131: =InpC!$F$28 -> 4 | G131: 2017 | H131: =INDEX('iBoxx Data'!$B$17:$B$2255,MATCH(E131,'iBoxx Data'!$A$17:$A$2255,0)) -> 3.273411381 | I131: =INDEX('iBoxx Data'!$G$17:$G$2255,MATCH(E131,'iBoxx Data'!$F$17:$F$2255,0)) -> 3.642788784 | J131: 3.458100083 | K131: =InpC!$F$55*100 -> 0.15 | L131: =InpC!$F$64*100 -> 0 | M131: 3.308100083 | N131: 3.308100083
E132: 2016-06-28 | F132: =InpC!$F$28 -> 4 | G132: 2017 | H132: =INDEX('iBoxx Data'!$B$17:$B$2255,MATCH(E132,'iBoxx Data'!$A$17:$A$2255,0)) -> 3.256076843 | I132: =INDEX('iBoxx Data'!$G$17:$G$2255,MATCH(E132,'iBoxx Data'!$F$17:$F$2255,0)) -> 3.627230467 | J132: 3.441653655 | K132: =InpC!$F$55*100 -> 0.15 | L132: =InpC!$F$64*100 -> 0 | M132: 3.291653655 | N132: 3.291653655
E133: 2016-06-29 | F133: =InpC!$F$28 -> 4 | G133: 2017 | H133: =INDEX('iBoxx Data'!$B$17:$B$2255,MATCH(E133,'iBoxx Data'!$A$17:$A$2255,0)) -> 3.211037146 | I133: =INDEX('iBoxx Data'!$G$17:$G$2255,MATCH(E133,'iBoxx Data'!$F$17:$F$2255,0)) -> 3.582890298 | J133: 3.396963722 | K133: =InpC!$F$55*100 -> 0.15 | L133: =InpC!$F$64*100 -> 0 | M133: 3.246963722 | N133: 3.246963722
E134: 2016-06-30 | F134: =InpC!$F$28 -> 4 | G134: 2017 | H134: =INDEX('iBoxx Data'!$B$17:$B$2255,MATCH(E134,'iBoxx Data'!$A$17:$A$2255,0)) -> 3.163446348 | I134: =INDEX('iBoxx Data'!$G$17:$G$2255,MATCH(E134,'iBoxx Data'!$F$17:$F$2255,0)) -> 3.509320146 | J134: 3.336383247 | K134: =InpC!$F$55*100 -> 0.15 | L134: =InpC!$F$64*100 -> 0 | M134: 3.186383247 | N134: 3.186383247
E135: 2016-07-01 | F135: =InpC!$F$28 -> 4 | G135: =YEAR(E135) + IF(MONTH(E135) >= F135, 1, 0) -> 2017 | H135: =INDEX('iBoxx Data'!$B$17:$B$2255,MATCH(E135,'iBoxx Data'!$A$17:$A$2255,0)) -> 3.075586355 | I135: =INDEX('iBoxx Data'!$G$17:$G$2255,MATCH(E135,'iBoxx Data'!$F$17:$F$2255,0)) -> 3.390914839 | J135: =IFERROR(AVERAGE(H135:I135),"") -> 3.233250597 | K135: =InpC!$F$55*100 -> 0.15 | L135: =InpC!$F$64*100 -> 0 | M135: =IFERROR(J135 - K135,"") -> 3.083250597 | N135: =IFERROR(J135-K135+L135,"") -> 3.083250597
E136: =WORKDAY(E135,1,) -> 2016-07-04 | F136: =InpC!$F$28 -> 4 | G136: 2017 | H136: =INDEX('iBoxx Data'!$B$17:$B$2255,MATCH(E136,'iBoxx Data'!$A$17:$A$2255,0)) -> 3.015120645 | I136: =INDEX('iBoxx Data'!$G$17:$G$2255,MATCH(E136,'iBoxx Data'!$F$17:$F$2255,0)) -> 3.32745046 | J136: 3.171285553 | K136: =InpC!$F$55*100 -> 0.15 | L136: =InpC!$F$64*100 -> 0 | M136: 3.021285553 | N136: 3.021285553
E137: 2016-07-05 | F137: =InpC!$F$28 -> 4 | G137: 2017 | H137: =INDEX('iBoxx Data'!$B$17:$B$2255,MATCH(E137,'iBoxx Data'!$A$17:$A$2255,0)) -> 2.942688358 | I137: =INDEX('iBoxx Data'!$G$17:$G$2255,MATCH(E137,'iBoxx Data'!$F$17:$F$2255,0)) -> 3.256471367 | J137: 3.099579863 | K137: =InpC!$F$55*100 -> 0.15 | L137: =InpC!$F$64*100 -> 0 | M137: 2.949579863 | N137: 2.949579863
E138: 2016-07-06 | F138: =InpC!$F$28 -> 4 | G138: 2017 | H138: =INDEX('iBoxx Data'!$B$17:$B$2255,MATCH(E138,'iBoxx Data'!$A$17:$A$2255,0)) -> 2.921350461 | I138: =INDEX('iBoxx Data'!$G$17:$G$2255,MATCH(E138,'iBoxx Data'!$F$17:$F$2255,0)) -> 3.235394628 | J138: 3.078372545 | K138: =InpC!$F$55*100 -> 0.15 | L138: =InpC!$F$64*100 -> 0 | M138: 2.928372545 | N138: 2.928372545
E139: 2016-07-07 | F139: =InpC!$F$28 -> 4 | G139: 2017 | H139: =INDEX('iBoxx Data'!$B$17:$B$2255,MATCH(E139,'iBoxx Data'!$A$17:$A$2255,0)) -> 2.937578559 | I139: =INDEX('iBoxx Data'!$G$17:$G$2255,MATCH(E139,'iBoxx Data'!$F$17:$F$2255,0)) -> 3.238027157 | J139: 3.087802858 | K139: =InpC!$F$55*100 -> 0.15 | L139: =InpC!$F$64*100 -> 0 | M139: 2.937802858 | N139: 2.937802858
E140: 2016-07-08 | F140: =InpC!$F$28 -> 4 | G140: 2017 | H140: =INDEX('iBoxx Data'!$B$17:$B$2255,MATCH(E140,'iBoxx Data'!$A$17:$A$2255,0)) -> 2.881822092 | I140: =INDEX('iBoxx Data'!$G$17:$G$2255,MATCH(E140,'iBoxx Data'!$F$17:$F$2255,0)) -> 3.168230075 | J140: 3.025026084 | K140: =InpC!$F$55*100 -> 0.15 | L140: =InpC!$F$64*100 -> 0 | M140: 2.875026084 | N140: 2.875026084
E141: 2016-07-11 | F141: =InpC!$F$28 -> 4 | G141: 2017 | H141: =INDEX('iBoxx Data'!$B$17:$B$2255,MATCH(E141,'iBoxx Data'!$A$17:$A$2255,0)) -> 2.860566091 | I141: =INDEX('iBoxx Data'!$G$17:$G$2255,MATCH(E141,'iBoxx Data'!$F$17:$F$2255,0)) -> 3.141043559 | J141: 3.000804825 | K141: =InpC!$F$55*100 -> 0.15 | L141: =InpC!$F$64*100 -> 0 | M141: 2.850804825 | N141: 2.850804825
E142: 2016-07-12 | F142: =InpC!$F$28 -> 4 | G142: 2017 | H142: =INDEX('iBoxx Data'!$B$17:$B$2255,MATCH(E142,'iBoxx Data'!$A$17:$A$2255,0)) -> 2.863137031 | I142: =INDEX('iBoxx Data'!$G$17:$G$2255,MATCH(E142,'iBoxx Data'!$F$17:$F$2255,0)) -> 3.136520676 | J142: 2.999828854 | K142: =InpC!$F$55*100 -> 0.15 | L142: =InpC!$F$64*100 -> 0 | M142: 2.849828854 | N142: 2.849828854
E143: 2016-07-13 | F143: =InpC!$F$28 -> 4 | G143: 2017 | H143: =INDEX('iBoxx Data'!$B$17:$B$2255,MATCH(E143,'iBoxx Data'!$A$17:$A$2255,0)) -> 2.762749137 | I143: =INDEX('iBoxx Data'!$G$17:$G$2255,MATCH(E143,'iBoxx Data'!$F$17:$F$2255,0)) -> 3.018895252 | J143: 2.890822195 | K143: =InpC!$F$55*100 -> 0.15 | L143: =InpC!$F$64*100 -> 0 | M143: 2.740822195 | N143: 2.740822195
E144: 2016-07-14 | F144: =InpC!$F$28 -> 4 | G144: 2017 | H144: =INDEX('iBoxx Data'!$B$17:$B$2255,MATCH(E144,'iBoxx Data'!$A$17:$A$2255,0)) -> 2.768507804 | I144: =INDEX('iBoxx Data'!$G$17:$G$2255,MATCH(E144,'iBoxx Data'!$F$17:$F$2255,0)) -> 3.015766042 | J144: 2.892136923 | K144: =InpC!$F$55*100 -> 0.15 | L144: =InpC!$F$64*100 -> 0 | M144: 2.742136923 | N144: 2.742136923
E145: 2016-07-15 | F145: =InpC!$F$28 -> 4 | G145: 2017 | H145: =INDEX('iBoxx Data'!$B$17:$B$2255,MATCH(E145,'iBoxx Data'!$A$17:$A$2255,0)) -> 2.810507959 | I145: =INDEX('iBoxx Data'!$G$17:$G$2255,MATCH(E145,'iBoxx Data'!$F$17:$F$2255,0)) -> 3.056185892 | J145: 2.933346925 | K145: =InpC!$F$55*100 -> 0.15 | L145: =InpC!$F$64*100 -> 0 | M145: 2.783346925 | N145: 2.783346925
E146: 2016-07-18 | F146: =InpC!$F$28 -> 4 | G146: 2017 | H146: =INDEX('iBoxx Data'!$B$17:$B$2255,MATCH(E146,'iBoxx Data'!$A$17:$A$2255,0)) -> 2.776170539 | I146: =INDEX('iBoxx Data'!$G$17:$G$2255,MATCH(E146,'iBoxx Data'!$F$17:$F$2255,0)) -> 3.017884595 | J146: 2.897027567 | K146: =InpC!$F$55*100 -> 0.15 | L146: =InpC!$F$64*100 -> 0 | M146: 2.747027567 | N146: 2.747027567
E147: 2016-07-19 | F147: =InpC!$F$28 -> 4 | G147: 2017 | H147: =INDEX('iBoxx Data'!$B$17:$B$2255,MATCH(E147,'iBoxx Data'!$A$17:$A$2255,0)) -> 2.77578031 | I147: =INDEX('iBoxx Data'!$G$17:$G$2255,MATCH(E147,'iBoxx Data'!$F$17:$F$2255,0)) -> 3.024641538 | J147: 2.900210924 | K147: =InpC!$F$55*100 -> 0.15 | L147: =InpC!$F$64*100 -> 0 | M147: 2.750210924 | N147: 2.750210924
E148: 2016-07-20 | F148: =InpC!$F$28 -> 4 | G148: 2017 | H148: =INDEX('iBoxx Data'!$B$17:$B$2255,MATCH(E148,'iBoxx Data'!$A$17:$A$2255,0)) -> 2.80554919 | I148: =INDEX('iBoxx Data'!$G$17:$G$2255,MATCH(E148,'iBoxx Data'!$F$17:$F$2255,0)) -> 3.055986604 | J148: 2.930767897 | K148: =InpC!$F$55*100 -> 0.15 | L148: =InpC!$F$64*100 -> 0 | M148: 2.780767897 | N148: 2.780767897
E149: 2016-07-21 | F149: =InpC!$F$28 -> 4 | G149: 2017 | H149: =INDEX('iBoxx Data'!$B$17:$B$2255,MATCH(E149,'iBoxx Data'!$A$17:$A$2255,0)) -> 2.820536034 | I149: =INDEX('iBoxx Data'!$G$17:$G$2255,MATCH(E149,'iBoxx Data'!$F$17:$F$2255,0)) -> 3.069533535 | J149: 2.945034784 | K149: =InpC!$F$55*100 -> 0.15 | L149: =InpC!$F$64*100 -> 0 | M149: 2.795034784 | N149: 2.795034784
E150: 2016-07-22 | F150: =InpC!$F$28 -> 4 | G150: 2017 | H150: =INDEX('iBoxx Data'!$B$17:$B$2255,MATCH(E150,'iBoxx Data'!$A$17:$A$2255,0)) -> 2.776814476 | I150: =INDEX('iBoxx Data'!$G$17:$G$2255,MATCH(E150,'iBoxx Data'!$F$17:$F$2255,0)) -> 3.026099339 | J150: 2.901456907 | K150: =InpC!$F$55*100 -> 0.15 | L150: =InpC!$F$64*100 -> 0 | M150: 2.751456907 | N150: 2.751456907
E151: 2016-07-25 | F151: =InpC!$F$28 -> 4 | G151: 2017 | H151: =INDEX('iBoxx Data'!$B$17:$B$2255,MATCH(E151,'iBoxx Data'!$A$17:$A$2255,0)) -> 2.764539796 | I151: =INDEX('iBoxx Data'!$G$17:$G$2255,MATCH(E151,'iBoxx Data'!$F$17:$F$2255,0)) -> 3.012956088 | J151: 2.888747942 | K151: =InpC!$F$55*100 -> 0.15 | L151: =InpC!$F$64*100 -> 0 | M151: 2.738747942 | N151: 2.738747942
E152: 2016-07-26 | F152: =InpC!$F$28 -> 4 | G152: 2017 | H152: =INDEX('iBoxx Data'!$B$17:$B$2255,MATCH(E152,'iBoxx Data'!$A$17:$A$2255,0)) -> 2.782378069 | I152: =INDEX('iBoxx Data'!$G$17:$G$2255,MATCH(E152,'iBoxx Data'!$F$17:$F$2255,0)) -> 3.035326615 | J152: 2.908852342 | K152: =InpC!$F$55*100 -> 0.15 | L152: =InpC!$F$64*100 -> 0 | M152: 2.758852342 | N152: 2.758852342
E153: 2016-07-27 | F153: =InpC!$F$28 -> 4 | G153: 2017 | H153: =INDEX('iBoxx Data'!$B$17:$B$2255,MATCH(E153,'iBoxx Data'!$A$17:$A$2255,0)) -> 2.690458096 | I153: =INDEX('iBoxx Data'!$G$17:$G$2255,MATCH(E153,'iBoxx Data'!$F$17:$F$2255,0)) -> 2.941870004 | J153: 2.81616405 | K153: =InpC!$F$55*100 -> 0.15 | L153: =InpC!$F$64*100 -> 0 | M153: 2.66616405 | N153: 2.66616405
E154: 2016-07-28 | F154: =InpC!$F$28 -> 4 | G154: 2017 | H154: =INDEX('iBoxx Data'!$B$17:$B$2255,MATCH(E154,'iBoxx Data'!$A$17:$A$2255,0)) -> 2.670760084 | I154: =INDEX('iBoxx Data'!$G$17:$G$2255,MATCH(E154,'iBoxx Data'!$F$17:$F$2255,0)) -> 2.916646516 | J154: 2.7937033 | K154: =InpC!$F$55*100 -> 0.15 | L154: =InpC!$F$64*100 -> 0 | M154: 2.6437033 | N154: 2.6437033
E155: 2016-07-29 | F155: =InpC!$F$28 -> 4 | G155: 2017 | H155: =INDEX('iBoxx Data'!$B$17:$B$2255,MATCH(E155,'iBoxx Data'!$A$17:$A$2255,0)) -> 2.629001095 | I155: =INDEX('iBoxx Data'!$G$17:$G$2255,MATCH(E155,'iBoxx Data'!$F$17:$F$2255,0)) -> 2.872185042 | J155: 2.750593068 | K155: =InpC!$F$55*100 -> 0.15 | L155: =InpC!$F$64*100 -> 0 | M155: 2.600593068 | N155: 2.600593068
E156: 2016-08-01 | F156: =InpC!$F$28 -> 4 | G156: 2017 | H156: =INDEX('iBoxx Data'!$B$17:$B$2255,MATCH(E156,'iBoxx Data'!$A$17:$A$2255,0)) -> 2.665150846 | I156: =INDEX('iBoxx Data'!$G$17:$G$2255,MATCH(E156,'iBoxx Data'!$F$17:$F$2255,0)) -> 2.912879594 | J156: 2.78901522 | K156: =InpC!$F$55*100 -> 0.15 | L156: =InpC!$F$64*100 -> 0 | M156: 2.63901522 | N156: 2.63901522
E157: 2016-08-02 | F157: =InpC!$F$28 -> 4 | G157: 2017 | H157: =INDEX('iBoxx Data'!$B$17:$B$2255,MATCH(E157,'iBoxx Data'!$A$17:$A$2255,0)) -> 2.735384114 | I157: =INDEX('iBoxx Data'!$G$17:$G$2255,MATCH(E157,'iBoxx Data'!$F$17:$F$2255,0)) -> 2.995826071 | J157: 2.865605093 | K157: =InpC!$F$55*100 -> 0.15 | L157: =InpC!$F$64*100 -> 0 | M157: 2.715605093 | N157: 2.715605093
E158: 2016-08-03 | F158: =InpC!$F$28 -> 4 | G158: 2017 | H158: =INDEX('iBoxx Data'!$B$17:$B$2255,MATCH(E158,'iBoxx Data'!$A$17:$A$2255,0)) -> 2.729831653 | I158: =INDEX('iBoxx Data'!$G$17:$G$2255,MATCH(E158,'iBoxx Data'!$F$17:$F$2255,0)) -> 2.993218599 | J158: 2.861525126 | K158: =InpC!$F$55*100 -> 0.15 | L158: =InpC!$F$64*100 -> 0 | M158: 2.711525126 | N158: 2.711525126
E159: 2016-08-04 | F159: =InpC!$F$28 -> 4 | G159: 2017 | H159: =INDEX('iBoxx Data'!$B$17:$B$2255,MATCH(E159,'iBoxx Data'!$A$17:$A$2255,0)) -> 2.477611143 | I159: =INDEX('iBoxx Data'!$G$17:$G$2255,MATCH(E159,'iBoxx Data'!$F$17:$F$2255,0)) -> 2.732984353 | J159: 2.605297748 | K159: =InpC!$F$55*100 -> 0.15 | L159: =InpC!$F$64*100 -> 0 | M159: 2.455297748 | N159: 2.455297748
E160: 2016-08-05 | F160: =InpC!$F$28 -> 4 | G160: 2017 | H160: =INDEX('iBoxx Data'!$B$17:$B$2255,MATCH(E160,'iBoxx Data'!$A$17:$A$2255,0)) -> 2.346007196 | I160: =INDEX('iBoxx Data'!$G$17:$G$2255,MATCH(E160,'iBoxx Data'!$F$17:$F$2255,0)) -> 2.58934561 | J160: 2.467676403 | K160: =InpC!$F$55*100 -> 0.15 | L160: =InpC!$F$64*100 -> 0 | M160: 2.317676403 | N160: 2.317676403
E161: 2016-08-08 | F161: =InpC!$F$28 -> 4 | G161: 2017 | H161: =INDEX('iBoxx Data'!$B$17:$B$2255,MATCH(E161,'iBoxx Data'!$A$17:$A$2255,0)) -> 2.296944798 | I161: =INDEX('iBoxx Data'!$G$17:$G$2255,MATCH(E161,'iBoxx Data'!$F$17:$F$2255,0)) -> 2.534694466 | J161: 2.415819632 | K161: =InpC!$F$55*100 -> 0.15 | L161: =InpC!$F$64*100 -> 0 | M161: 2.265819632 | N161: 2.265819632
E162: 2016-08-09 | F162: =InpC!$F$28 -> 4 | G162: 2017 | H162: =INDEX('iBoxx Data'!$B$17:$B$2255,MATCH(E162,'iBoxx Data'!$A$17:$A$2255,0)) -> 2.247271153 | I162: =INDEX('iBoxx Data'!$G$17:$G$2255,MATCH(E162,'iBoxx Data'!$F$17:$F$2255,0)) -> 2.485728343 | J162: 2.366499748 | K162: =InpC!$F$55*100 -> 0.15 | L162: =InpC!$F$64*100 -> 0 | M162: 2.216499748 | N162: 2.216499748
E163: 2016-08-10 | F163: =InpC!$F$28 -> 4 | G163: 2017 | H163: =INDEX('iBoxx Data'!$B$17:$B$2255,MATCH(E163,'iBoxx Data'!$A$17:$A$2255,0)) -> 2.181148638 | I163: =INDEX('iBoxx Data'!$G$17:$G$2255,MATCH(E163,'iBoxx Data'!$F$17:$F$2255,0)) -> 2.429932724 | J163: 2.305540681 | K163: =InpC!$F$55*100 -> 0.15 | L163: =InpC!$F$64*100 -> 0 | M163: 2.155540681 | N163: 2.155540681
E164: 2016-08-11 | F164: =InpC!$F$28 -> 4 | G164: 2017 | H164: =INDEX('iBoxx Data'!$B$17:$B$2255,MATCH(E164,'iBoxx Data'!$A$17:$A$2255,0)) -> 2.159630383 | I164: =INDEX('iBoxx Data'!$G$17:$G$2255,MATCH(E164,'iBoxx Data'!$F$17:$F$2255,0)) -> 2.417011652 | J164: 2.288321018 | K164: =InpC!$F$55*100 -> 0.15 | L164: =InpC!$F$64*100 -> 0 | M164: 2.138321018 | N164: 2.138321018
E165: 2016-08-12 | F165: =InpC!$F$28 -> 4 | G165: 2017 | H165: =INDEX('iBoxx Data'!$B$17:$B$2255,MATCH(E165,'iBoxx Data'!$A$17:$A$2255,0)) -> 2.175982092 | I165: =INDEX('iBoxx Data'!$G$17:$G$2255,MATCH(E165,'iBoxx Data'!$F$17:$F$2255,0)) -> 2.436967293 | J165: 2.306474692 | K165: =InpC!$F$55*100 -> 0.15 | L165: =InpC!$F$64*100 -> 0 | M165: 2.156474692 | N165: 2.156474692
E166: 2016-08-15 | F166: =InpC!$F$28 -> 4 | G166: 2017 | H166: =INDEX('iBoxx Data'!$B$17:$B$2255,MATCH(E166,'iBoxx Data'!$A$17:$A$2255,0)) -> 2.219018307 | I166: =INDEX('iBoxx Data'!$G$17:$G$2255,MATCH(E166,'iBoxx Data'!$F$17:$F$2255,0)) -> 2.480737137 | J166: 2.349877722 | K166: =InpC!$F$55*100 -> 0.15 | L166: =InpC!$F$64*100 -> 0 | M166: 2.199877722 | N166: 2.199877722
E167: 2016-08-16 | F167: =InpC!$F$28 -> 4 | G167: 2017 | H167: =INDEX('iBoxx Data'!$B$17:$B$2255,MATCH(E167,'iBoxx Data'!$A$17:$A$2255,0)) -> 2.268495456 | I167: =INDEX('iBoxx Data'!$G$17:$G$2255,MATCH(E167,'iBoxx Data'!$F$17:$F$2255,0)) -> 2.542967696 | J167: 2.405731576 | K167: =InpC!$F$55*100 -> 0.15 | L167: =InpC!$F$64*100 -> 0 | M167: 2.255731576 | N167: 2.255731576
E168: 2016-08-17 | F168: =InpC!$F$28 -> 4 | G168: 2017 | H168: =INDEX('iBoxx Data'!$B$17:$B$2255,MATCH(E168,'iBoxx Data'!$A$17:$A$2255,0)) -> 2.28201279 | I168: =INDEX('iBoxx Data'!$G$17:$G$2255,MATCH(E168,'iBoxx Data'!$F$17:$F$2255,0)) -> 2.559368502 | J168: 2.420690646 | K168: =InpC!$F$55*100 -> 0.15 | L168: =InpC!$F$64*100 -> 0 | M168: 2.270690646 | N168: 2.270690646
E169: 2016-08-18 | F169: =InpC!$F$28 -> 4 | G169: 2017 | H169: =INDEX('iBoxx Data'!$B$17:$B$2255,MATCH(E169,'iBoxx Data'!$A$17:$A$2255,0)) -> 2.26973624 | I169: =INDEX('iBoxx Data'!$G$17:$G$2255,MATCH(E169,'iBoxx Data'!$F$17:$F$2255,0)) -> 2.550533959 | J169: 2.4101351 | K169: =InpC!$F$55*100 -> 0.15 | L169: =InpC!$F$64*100 -> 0 | M169: 2.2601351 | N169: 2.2601351
E170: 2016-08-19 | F170: =InpC!$F$28 -> 4 | G170: 2017 | H170: =INDEX('iBoxx Data'!$B$17:$B$2255,MATCH(E170,'iBoxx Data'!$A$17:$A$2255,0)) -> 2.317273811 | I170: =INDEX('iBoxx Data'!$G$17:$G$2255,MATCH(E170,'iBoxx Data'!$F$17:$F$2255,0)) -> 2.598308828 | J170: 2.45779132 | K170: =InpC!$F$55*100 -> 0.15 | L170: =InpC!$F$64*100 -> 0 | M170: 2.30779132 | N170: 2.30779132
E171: 2016-08-22 | F171: =InpC!$F$28 -> 4 | G171: 2017 | H171: =INDEX('iBoxx Data'!$B$17:$B$2255,MATCH(E171,'iBoxx Data'!$A$17:$A$2255,0)) -> 2.283169058 | I171: =INDEX('iBoxx Data'!$G$17:$G$2255,MATCH(E171,'iBoxx Data'!$F$17:$F$2255,0)) -> 2.56322059 | J171: 2.423194824 | K171: =InpC!$F$55*100 -> 0.15 | L171: =InpC!$F$64*100 -> 0 | M171: 2.273194824 | N171: 2.273194824
E172: 2016-08-23 | F172: =InpC!$F$28 -> 4 | G172: 2017 | H172: =INDEX('iBoxx Data'!$B$17:$B$2255,MATCH(E172,'iBoxx Data'!$A$17:$A$2255,0)) -> 2.241692295 | I172: =INDEX('iBoxx Data'!$G$17:$G$2255,MATCH(E172,'iBoxx Data'!$F$17:$F$2255,0)) -> 2.52651228 | J172: 2.384102288 | K172: =InpC!$F$55*100 -> 0.15 | L172: =InpC!$F$64*100 -> 0 | M172: 2.234102288 | N172: 2.234102288
E173: 2016-08-24 | F173: =InpC!$F$28 -> 4 | G173: 2017 | H173: =INDEX('iBoxx Data'!$B$17:$B$2255,MATCH(E173,'iBoxx Data'!$A$17:$A$2255,0)) -> 2.240769435 | I173: =INDEX('iBoxx Data'!$G$17:$G$2255,MATCH(E173,'iBoxx Data'!$F$17:$F$2255,0)) -> 2.529774429 | J173: 2.385271932 | K173: =InpC!$F$55*100 -> 0.15 | L173: =InpC!$F$64*100 -> 0 | M173: 2.235271932 | N173: 2.235271932
E174: 2016-08-25 | F174: =InpC!$F$28 -> 4 | G174: 2017 | H174: =INDEX('iBoxx Data'!$B$17:$B$2255,MATCH(E174,'iBoxx Data'!$A$17:$A$2255,0)) -> 2.242018978 | I174: =INDEX('iBoxx Data'!$G$17:$G$2255,MATCH(E174,'iBoxx Data'!$F$17:$F$2255,0)) -> 2.531120399 | J174: 2.386569689 | K174: =InpC!$F$55*100 -> 0.15 | L174: =InpC!$F$64*100 -> 0 | M174: 2.236569689 | N174: 2.236569689
E175: 2016-08-26 | F175: =InpC!$F$28 -> 4 | G175: 2017 | H175: =INDEX('iBoxx Data'!$B$17:$B$2255,MATCH(E175,'iBoxx Data'!$A$17:$A$2255,0)) -> 2.211256723 | I175: =INDEX('iBoxx Data'!$G$17:$G$2255,MATCH(E175,'iBoxx Data'!$F$17:$F$2255,0)) -> 2.501504822 | J175: 2.356380773 | K175: =InpC!$F$55*100 -> 0.15 | L175: =InpC!$F$64*100 -> 0 | M175: 2.206380773 | N175: 2.206380773
E176: 2016-08-29 | F176: =InpC!$F$28 -> 4 | G176: 2017 | H176: =INDEX('iBoxx Data'!$B$17:$B$2255,MATCH(E176,'iBoxx Data'!$A$17:$A$2255,0)) ->  | I176: =INDEX('iBoxx Data'!$G$17:$G$2255,MATCH(E176,'iBoxx Data'!$F$17:$F$2255,0)) ->  | K176: =InpC!$F$55*100 -> 0.15 | L176: =InpC!$F$64*100 -> 0
E177: 2016-08-30 | F177: =InpC!$F$28 -> 4 | G177: 2017 | H177: =INDEX('iBoxx Data'!$B$17:$B$2255,MATCH(E177,'iBoxx Data'!$A$17:$A$2255,0)) -> 2.212985126 | I177: =INDEX('iBoxx Data'!$G$17:$G$2255,MATCH(E177,'iBoxx Data'!$F$17:$F$2255,0)) -> 2.505590521 | J177: 2.359287824 | K177: =InpC!$F$55*100 -> 0.15 | L177: =InpC!$F$64*100 -> 0 | M177: 2.209287824 | N177: 2.209287824
E178: 2016-08-31 | F178: =InpC!$F$28 -> 4 | G178: 2017 | H178: =INDEX('iBoxx Data'!$B$17:$B$2255,MATCH(E178,'iBoxx Data'!$A$17:$A$2255,0)) -> 2.225516775 | I178: =INDEX('iBoxx Data'!$G$17:$G$2255,MATCH(E178,'iBoxx Data'!$F$17:$F$2255,0)) -> 2.51530026 | J178: 2.370408518 | K178: =InpC!$F$55*100 -> 0.15 | L178: =InpC!$F$64*100 -> 0 | M178: 2.220408518 | N178: 2.220408518
E179: 2016-09-01 | F179: =InpC!$F$28 -> 4 | G179: 2017 | H179: =INDEX('iBoxx Data'!$B$17:$B$2255,MATCH(E179,'iBoxx Data'!$A$17:$A$2255,0)) -> 2.253191192 | I179: =INDEX('iBoxx Data'!$G$17:$G$2255,MATCH(E179,'iBoxx Data'!$F$17:$F$2255,0)) -> 2.569419355 | J179: 2.411305273 | K179: =InpC!$F$55*100 -> 0.15 | L179: =InpC!$F$64*100 -> 0 | M179: 2.261305273 | N179: 2.261305273
E180: 2016-09-02 | F180: =InpC!$F$28 -> 4 | G180: 2017 | H180: =INDEX('iBoxx Data'!$B$17:$B$2255,MATCH(E180,'iBoxx Data'!$A$17:$A$2255,0)) -> 2.314937112 | I180: =INDEX('iBoxx Data'!$G$17:$G$2255,MATCH(E180,'iBoxx Data'!$F$17:$F$2255,0)) -> 2.631170673 | J180: 2.473053892 | K180: =InpC!$F$55*100 -> 0.15 | L180: =InpC!$F$64*100 -> 0 | M180: 2.323053892 | N180: 2.323053892
E181: 2016-09-05 | F181: =InpC!$F$28 -> 4 | G181: 2017 | H181: =INDEX('iBoxx Data'!$B$17:$B$2255,MATCH(E181,'iBoxx Data'!$A$17:$A$2255,0)) -> 2.285423288 | I181: =INDEX('iBoxx Data'!$G$17:$G$2255,MATCH(E181,'iBoxx Data'!$F$17:$F$2255,0)) -> 2.604131598 | J181: 2.444777443 | K181: =InpC!$F$55*100 -> 0.15 | L181: =InpC!$F$64*100 -> 0 | M181: 2.294777443 | N181: 2.294777443
E182: 2016-09-06 | F182: =InpC!$F$28 -> 4 | G182: 2017 | H182: =INDEX('iBoxx Data'!$B$17:$B$2255,MATCH(E182,'iBoxx Data'!$A$17:$A$2255,0)) -> 2.272919015 | I182: =INDEX('iBoxx Data'!$G$17:$G$2255,MATCH(E182,'iBoxx Data'!$F$17:$F$2255,0)) -> 2.592096813 | J182: 2.432507914 | K182: =InpC!$F$55*100 -> 0.15 | L182: =InpC!$F$64*100 -> 0 | M182: 2.282507914 | N182: 2.282507914
E183: 2016-09-07 | F183: =InpC!$F$28 -> 4 | G183: 2017 | H183: =INDEX('iBoxx Data'!$B$17:$B$2255,MATCH(E183,'iBoxx Data'!$A$17:$A$2255,0)) -> 2.266750073 | I183: =INDEX('iBoxx Data'!$G$17:$G$2255,MATCH(E183,'iBoxx Data'!$F$17:$F$2255,0)) -> 2.588669624 | J183: 2.427709848 | K183: =InpC!$F$55*100 -> 0.15 | L183: =InpC!$F$64*100 -> 0 | M183: 2.277709848 | N183: 2.277709848
E184: 2016-09-08 | F184: =InpC!$F$28 -> 4 | G184: 2017 | H184: =INDEX('iBoxx Data'!$B$17:$B$2255,MATCH(E184,'iBoxx Data'!$A$17:$A$2255,0)) -> 2.357520375 | I184: =INDEX('iBoxx Data'!$G$17:$G$2255,MATCH(E184,'iBoxx Data'!$F$17:$F$2255,0)) -> 2.686130489 | J184: 2.521825432 | K184: =InpC!$F$55*100 -> 0.15 | L184: =InpC!$F$64*100 -> 0 | M184: 2.371825432 | N184: 2.371825432
E185: 2016-09-09 | F185: =InpC!$F$28 -> 4 | G185: 2017 | H185: =INDEX('iBoxx Data'!$B$17:$B$2255,MATCH(E185,'iBoxx Data'!$A$17:$A$2255,0)) -> 2.479338119 | I185: =INDEX('iBoxx Data'!$G$17:$G$2255,MATCH(E185,'iBoxx Data'!$F$17:$F$2255,0)) -> 2.814059975 | J185: 2.646699047 | K185: =InpC!$F$55*100 -> 0.15 | L185: =InpC!$F$64*100 -> 0 | M185: 2.496699047 | N185: 2.496699047
E186: 2016-09-12 | F186: =InpC!$F$28 -> 4 | G186: 2017 | H186: =INDEX('iBoxx Data'!$B$17:$B$2255,MATCH(E186,'iBoxx Data'!$A$17:$A$2255,0)) -> 2.493999997 | I186: =INDEX('iBoxx Data'!$G$17:$G$2255,MATCH(E186,'iBoxx Data'!$F$17:$F$2255,0)) -> 2.834145215 | J186: 2.664072606 | K186: =InpC!$F$55*100 -> 0.15 | L186: =InpC!$F$64*100 -> 0 | M186: 2.514072606 | N186: 2.514072606
E187: 2016-09-13 | F187: =InpC!$F$28 -> 4 | G187: 2017 | H187: =INDEX('iBoxx Data'!$B$17:$B$2255,MATCH(E187,'iBoxx Data'!$A$17:$A$2255,0)) -> 2.508608774 | I187: =INDEX('iBoxx Data'!$G$17:$G$2255,MATCH(E187,'iBoxx Data'!$F$17:$F$2255,0)) -> 2.835806732 | J187: 2.672207753 | K187: =InpC!$F$55*100 -> 0.15 | L187: =InpC!$F$64*100 -> 0 | M187: 2.522207753 | N187: 2.522207753
E188: 2016-09-14 | F188: =InpC!$F$28 -> 4 | G188: 2017 | H188: =INDEX('iBoxx Data'!$B$17:$B$2255,MATCH(E188,'iBoxx Data'!$A$17:$A$2255,0)) -> 2.527224508 | I188: =INDEX('iBoxx Data'!$G$17:$G$2255,MATCH(E188,'iBoxx Data'!$F$17:$F$2255,0)) -> 2.855243263 | J188: 2.691233886 | K188: =InpC!$F$55*100 -> 0.15 | L188: =InpC!$F$64*100 -> 0 | M188: 2.541233886 | N188: 2.541233886
E189: 2016-09-15 | F189: =InpC!$F$28 -> 4 | G189: 2017 | H189: =INDEX('iBoxx Data'!$B$17:$B$2255,MATCH(E189,'iBoxx Data'!$A$17:$A$2255,0)) -> 2.549824272 | I189: =INDEX('iBoxx Data'!$G$17:$G$2255,MATCH(E189,'iBoxx Data'!$F$17:$F$2255,0)) -> 2.875779421 | J189: 2.712801846 | K189: =InpC!$F$55*100 -> 0.15 | L189: =InpC!$F$64*100 -> 0 | M189: 2.562801846 | N189: 2.562801846
E190: 2016-09-16 | F190: =InpC!$F$28 -> 4 | G190: 2017 | H190: =INDEX('iBoxx Data'!$B$17:$B$2255,MATCH(E190,'iBoxx Data'!$A$17:$A$2255,0)) -> 2.530078676 | I190: =INDEX('iBoxx Data'!$G$17:$G$2255,MATCH(E190,'iBoxx Data'!$F$17:$F$2255,0)) -> 2.851929337 | J190: 2.691004007 | K190: =InpC!$F$55*100 -> 0.15 | L190: =InpC!$F$64*100 -> 0 | M190: 2.541004007 | N190: 2.541004007
E191: 2016-09-19 | F191: =InpC!$F$28 -> 4 | G191: 2017 | H191: =INDEX('iBoxx Data'!$B$17:$B$2255,MATCH(E191,'iBoxx Data'!$A$17:$A$2255,0)) -> 2.553377059 | I191: =INDEX('iBoxx Data'!$G$17:$G$2255,MATCH(E191,'iBoxx Data'!$F$17:$F$2255,0)) -> 2.873117129 | J191: 2.713247094 | K191: =InpC!$F$55*100 -> 0.15 | L191: =InpC!$F$64*100 -> 0 | M191: 2.563247094 | N191: 2.563247094
E192: 2016-09-20 | F192: =InpC!$F$28 -> 4 | G192: 2017 | H192: =INDEX('iBoxx Data'!$B$17:$B$2255,MATCH(E192,'iBoxx Data'!$A$17:$A$2255,0)) -> 2.491236229 | I192: =INDEX('iBoxx Data'!$G$17:$G$2255,MATCH(E192,'iBoxx Data'!$F$17:$F$2255,0)) -> 2.802603589 | J192: 2.646919909 | K192: =InpC!$F$55*100 -> 0.15 | L192: =InpC!$F$64*100 -> 0 | M192: 2.496919909 | N192: 2.496919909
E193: 2016-09-21 | F193: =InpC!$F$28 -> 4 | G193: 2017 | H193: =INDEX('iBoxx Data'!$B$17:$B$2255,MATCH(E193,'iBoxx Data'!$A$17:$A$2255,0)) -> 2.504944027 | I193: =INDEX('iBoxx Data'!$G$17:$G$2255,MATCH(E193,'iBoxx Data'!$F$17:$F$2255,0)) -> 2.816031509 | J193: 2.660487768 | K193: =InpC!$F$55*100 -> 0.15 | L193: =InpC!$F$64*100 -> 0 | M193: 2.510487768 | N193: 2.510487768
E194: 2016-09-22 | F194: =InpC!$F$28 -> 4 | G194: 2017 | H194: =INDEX('iBoxx Data'!$B$17:$B$2255,MATCH(E194,'iBoxx Data'!$A$17:$A$2255,0)) -> 2.398221629 | I194: =INDEX('iBoxx Data'!$G$17:$G$2255,MATCH(E194,'iBoxx Data'!$F$17:$F$2255,0)) -> 2.707788755 | J194: 2.553005192 | K194: =InpC!$F$55*100 -> 0.15 | L194: =InpC!$F$64*100 -> 0 | M194: 2.403005192 | N194: 2.403005192
E195: 2016-09-23 | F195: =InpC!$F$28 -> 4 | G195: 2017 | H195: =INDEX('iBoxx Data'!$B$17:$B$2255,MATCH(E195,'iBoxx Data'!$A$17:$A$2255,0)) -> 2.404412299 | I195: =INDEX('iBoxx Data'!$G$17:$G$2255,MATCH(E195,'iBoxx Data'!$F$17:$F$2255,0)) -> 2.715212446 | J195: 2.559812373 | K195: =InpC!$F$55*100 -> 0.15 | L195: =InpC!$F$64*100 -> 0 | M195: 2.409812373 | N195: 2.409812373
E196: 2016-09-26 | F196: =InpC!$F$28 -> 4 | G196: 2017 | H196: =INDEX('iBoxx Data'!$B$17:$B$2255,MATCH(E196,'iBoxx Data'!$A$17:$A$2255,0)) -> 2.377891832 | I196: =INDEX('iBoxx Data'!$G$17:$G$2255,MATCH(E196,'iBoxx Data'!$F$17:$F$2255,0)) -> 2.689802134 | J196: 2.533846983 | K196: =InpC!$F$55*100 -> 0.15 | L196: =InpC!$F$64*100 -> 0 | M196: 2.383846983 | N196: 2.383846983
E197: 2016-09-27 | F197: =InpC!$F$28 -> 4 | G197: 2017 | H197: =INDEX('iBoxx Data'!$B$17:$B$2255,MATCH(E197,'iBoxx Data'!$A$17:$A$2255,0)) -> 2.337745208 | I197: =INDEX('iBoxx Data'!$G$17:$G$2255,MATCH(E197,'iBoxx Data'!$F$17:$F$2255,0)) -> 2.646074896 | J197: 2.491910052 | K197: =InpC!$F$55*100 -> 0.15 | L197: =InpC!$F$64*100 -> 0 | M197: 2.341910052 | N197: 2.341910052
E198: 2016-09-28 | F198: =InpC!$F$28 -> 4 | G198: 2017 | H198: =INDEX('iBoxx Data'!$B$17:$B$2255,MATCH(E198,'iBoxx Data'!$A$17:$A$2255,0)) -> 2.347263092 | I198: =INDEX('iBoxx Data'!$G$17:$G$2255,MATCH(E198,'iBoxx Data'!$F$17:$F$2255,0)) -> 2.656374239 | J198: 2.501818666 | K198: =InpC!$F$55*100 -> 0.15 | L198: =InpC!$F$64*100 -> 0 | M198: 2.351818666 | N198: 2.351818666
E199: 2016-09-29 | F199: =InpC!$F$28 -> 4 | G199: =YEAR(E199) + IF(MONTH(E199) >= F199, 1, 0) -> 2017 | H199: =INDEX('iBoxx Data'!$B$17:$B$2255,MATCH(E199,'iBoxx Data'!$A$17:$A$2255,0)) -> 2.394471685 | I199: =INDEX('iBoxx Data'!$G$17:$G$2255,MATCH(E199,'iBoxx Data'!$F$17:$F$2255,0)) -> 2.704466014 | J199: =IFERROR(AVERAGE(H199:I199),"") -> 2.54946885 | K199: =InpC!$F$55*100 -> 0.15 | L199: =InpC!$F$64*100 -> 0 | M199: =IFERROR(J199 - K199,"") -> 2.39946885 | N199: =IFERROR(J199-K199+L199,"") -> 2.39946885
E200: =WORKDAY(E199,1,) -> 2016-09-30 | F200: =InpC!$F$28 -> 4 | G200: 2017 | H200: =INDEX('iBoxx Data'!$B$17:$B$2255,MATCH(E200,'iBoxx Data'!$A$17:$A$2255,0)) -> 2.467663797 | I200: =INDEX('iBoxx Data'!$G$17:$G$2255,MATCH(E200,'iBoxx Data'!$F$17:$F$2255,0)) -> 2.776631263 | J200: 2.62214753 | K200: =InpC!$F$55*100 -> 0.15 | L200: =InpC!$F$64*100 -> 0 | M200: 2.47214753 | N200: 2.47214753
E201: 2016-10-03 | F201: =InpC!$F$28 -> 4 | G201: 2017 | H201: =INDEX('iBoxx Data'!$B$17:$B$2255,MATCH(E201,'iBoxx Data'!$A$17:$A$2255,0)) -> 2.456553835 | I201: =INDEX('iBoxx Data'!$G$17:$G$2255,MATCH(E201,'iBoxx Data'!$F$17:$F$2255,0)) -> 2.759829797 | J201: 2.608191816 | K201: =InpC!$F$55*100 -> 0.15 | L201: =InpC!$F$64*100 -> 0 | M201: 2.458191816 | N201: 2.458191816
E202: 2016-10-04 | F202: =InpC!$F$28 -> 4 | G202: 2017 | H202: =INDEX('iBoxx Data'!$B$17:$B$2255,MATCH(E202,'iBoxx Data'!$A$17:$A$2255,0)) -> 2.481237527 | I202: =INDEX('iBoxx Data'!$G$17:$G$2255,MATCH(E202,'iBoxx Data'!$F$17:$F$2255,0)) -> 2.785868215 | J202: 2.633552871 | K202: =InpC!$F$55*100 -> 0.15 | L202: =InpC!$F$64*100 -> 0 | M202: 2.483552871 | N202: 2.483552871
E203: 2016-10-05 | F203: =InpC!$F$28 -> 4 | G203: 2017 | H203: =INDEX('iBoxx Data'!$B$17:$B$2255,MATCH(E203,'iBoxx Data'!$A$17:$A$2255,0)) -> 2.543870063 | I203: =INDEX('iBoxx Data'!$G$17:$G$2255,MATCH(E203,'iBoxx Data'!$F$17:$F$2255,0)) -> 2.855127024 | J203: 2.699498543 | K203: =InpC!$F$55*100 -> 0.15 | L203: =InpC!$F$64*100 -> 0 | M203: 2.549498543 | N203: 2.549498543
... 4845 more rows

Sheet iBoxx Data
A1: Historical Index Information - A10+ | F1: Historical Index Information - BBB10+
A6: Fixing | B6: EU_EOD | C6: 2024-08-15 | F6: Fixing | G6: EU_EOD | H6: 2024-08-15
A7: Index | B7: iBoxx £ Non-Financials A 10+ | F7: Index | G7: iBoxx £ Non-Financials BBB 10+
A8: ISIN TRi | B8: DE000A0JY837 | F8: ISIN TRi | G8: DE000A0JZAH1
A9: Total Return Index Level | B9: 394.9319742 | F9: Total Return Index Level | G9: 424.2178982
A10: Price Index Level | B10: 102.2120527 | F10: Price Index Level | G10: 97.69122662
A11: From | B11: 2023-06-15 | F11: From | G11: 2024-06-15
A12: To | B12: 2024-08-15 | F12: To | G12: 2024-08-15
A13: Periods | B13: EOD | F13: Periods | G13: EOD
A16: DATE | B16: Annual Yield in % | F16: DATE | G16: Annual Yield in %
A17: 2016-01-04 | B17: 3.961423669 | F17: 2016-01-04 | G17: 4.3633487
A18: 2016-01-05 | B18: 3.940454255 | F18: 2016-01-05 | G18: 4.339198173
A19: 2016-01-06 | B19: 3.869384478 | F19: 2016-01-06 | G19: 4.266717606
A20: 2016-01-07 | B20: 3.910700317 | F20: 2016-01-07 | G20: 4.308569327
A21: 2016-01-08 | B21: 3.881571305 | F21: 2016-01-08 | G21: 4.277325615
A22: 2016-01-11 | B22: 3.89156479 | F22: 2016-01-11 | G22: 4.288096594
A23: 2016-01-12 | B23: 3.881097258 | F23: 2016-01-12 | G23: 4.28309046
A24: 2016-01-13 | B24: 3.882881423 | F24: 2016-01-13 | G24: 4.292511436
A25: 2016-01-14 | B25: 3.915545968 | F25: 2016-01-14 | G25: 4.3335537
A26: 2016-01-15 | B26: 3.884831709 | F26: 2016-01-15 | G26: 4.304597791
A27: 2016-01-18 | B27: 3.944121669 | F27: 2016-01-18 | G27: 4.372023654
A28: 2016-01-19 | B28: 3.970819467 | F28: 2016-01-19 | G28: 4.3968787
A29: 2016-01-20 | B29: 3.938663019 | F29: 2016-01-20 | G29: 4.370519416
A30: 2016-01-21 | B30: 4.028888311 | F30: 2016-01-21 | G30: 4.444352164
A31: 2016-01-22 | B31: 4.058108074 | F31: 2016-01-22 | G31: 4.469911463
A32: 2016-01-25 | B32: 4.029790306 | F32: 2016-01-25 | G32: 4.439254353
A33: 2016-01-26 | B33: 4.04365742 | F33: 2016-01-26 | G33: 4.454850843
A34: 2016-01-27 | B34: 4.046488445 | F34: 2016-01-27 | G34: 4.463060617
A35: 2016-01-28 | B35: 4.031192778 | F35: 2016-01-28 | G35: 4.449181322
A36: 2016-01-29 | B36: 3.956080813 | F36: 2016-01-29 | G36: 4.371908393
A37: 2016-01-31 | B37: 3.955844206 | F37: 2016-01-31 | G37: 4.371685008
A38: 2016-02-01 | B38: 4.020633503 | F38: 2016-02-01 | G38: 4.402996463
A39: 2016-02-02 | B39: 3.975288061 | F39: 2016-02-02 | G39: 4.36035992
A40: 2016-02-03 | B40: 3.955002103 | F40: 2016-02-03 | G40: 4.349355127
A41: 2016-02-04 | B41: 4.016156718 | F41: 2016-02-04 | G41: 4.415786164
A42: 2016-02-05 | B42: 4.040254901 | F42: 2016-02-05 | G42: 4.449766396
A43: 2016-02-08 | B43: 3.944157309 | F43: 2016-02-08 | G43: 4.361232841
A44: 2016-02-09 | B44: 3.985429026 | F44: 2016-02-09 | G44: 4.412308827
A45: 2016-02-10 | B45: 4.002816359 | F45: 2016-02-10 | G45: 4.428796407
A46: 2016-02-11 | B46: 3.931147016 | F46: 2016-02-11 | G46: 4.36032673
A47: 2016-02-12 | B47: 4.047851802 | F47: 2016-02-12 | G47: 4.477395604
A48: 2016-02-15 | B48: 4.072820402 | F48: 2016-02-15 | G48: 4.500998089
A49: 2016-02-16 | B49: 4.079454692 | F49: 2016-02-16 | G49: 4.508891001
A50: 2016-02-17 | B50: 4.138412791 | F50: 2016-02-17 | G50: 4.569289423
A51: 2016-02-18 | B51: 4.102730971 | F51: 2016-02-18 | G51: 4.52815398
A52: 2016-02-19 | B52: 4.070541077 | F52: 2016-02-19 | G52: 4.495214382
A53: 2016-02-22 | B53: 4.068160425 | F53: 2016-02-22 | G53: 4.492557348
A54: 2016-02-23 | B54: 4.089496814 | F54: 2016-02-23 | G54: 4.515518231
A55: 2016-02-24 | B55: 4.034625018 | F55: 2016-02-24 | G55: 4.45551373
A56: 2016-02-25 | B56: 4.062947788 | F56: 2016-02-25 | G56: 4.476029145
A57: 2016-02-26 | B57: 4.082560036 | F57: 2016-02-26 | G57: 4.493328208
A58: 2016-02-29 | B58: 4.00558919 | F58: 2016-02-29 | G58: 4.411253091
A59: 2016-03-01 | B59: 4.016571869 | F59: 2016-03-01 | G59: 4.430096923
A60: 2016-03-02 | B60: 4.042459171 | F60: 2016-03-02 | G60: 4.451145502
A61: 2016-03-03 | B61: 4.001356656 | F61: 2016-03-03 | G61: 4.406398461
A62: 2016-03-04 | B62: 4.018193659 | F62: 2016-03-04 | G62: 4.417907915
A63: 2016-03-07 | B63: 4.010479993 | F63: 2016-03-07 | G63: 4.404458359
A64: 2016-03-08 | B64: 3.884291545 | F64: 2016-03-08 | G64: 4.276774807
A65: 2016-03-09 | B65: 3.957160203 | F65: 2016-03-09 | G65: 4.35360734
A66: 2016-03-10 | B66: 3.951767913 | F66: 2016-03-10 | G66: 4.340442243
A67: 2016-03-11 | B67: 3.910785547 | F67: 2016-03-11 | G67: 4.289607341
A68: 2016-03-14 | B68: 3.840382213 | F68: 2016-03-14 | G68: 4.209220444
A69: 2016-03-15 | B69: 3.821891593 | F69: 2016-03-15 | G69: 4.18488623
A70: 2016-03-16 | B70: 3.818612174 | F70: 2016-03-16 | G70: 4.182864017
A71: 2016-03-17 | B71: 3.768852767 | F71: 2016-03-17 | G71: 4.131342065
A72: 2016-03-18 | B72: 3.759340239 | F72: 2016-03-18 | G72: 4.122212671
A73: 2016-03-21 | B73: 3.775003525 | F73: 2016-03-21 | G73: 4.139445821
A74: 2016-03-22 | B74: 3.750553367 | F74: 2016-03-22 | G74: 4.115295137
A75: 2016-03-23 | B75: 3.724288013 | F75: 2016-03-23 | G75: 4.089729422
A76: 2016-03-24 | B76: 3.749170863 | F76: 2016-03-24 | G76: 4.112350241
A77: 2016-03-29 | B77: 3.719072661 | F77: 2016-03-29 | G77: 4.075759196
A78: 2016-03-30 | B78: 3.745699319 | F78: 2016-03-30 | G78: 4.100634769
A79: 2016-03-31 | B79: 3.693560199 | F79: 2016-03-31 | G79: 4.04957473
A80: 2016-04-01 | B80: 3.683950468 | F80: 2016-04-01 | G80: 4.055294098
A81: 2016-04-04 | B81: 3.667462884 | F81: 2016-04-04 | G81: 4.034428521
A82: 2016-04-05 | B82: 3.621385101 | F82: 2016-04-05 | G82: 3.987152363
A83: 2016-04-06 | B83: 3.620143998 | F83: 2016-04-06 | G83: 3.98602656
A84: 2016-04-07 | B84: 3.564411546 | F84: 2016-04-07 | G84: 3.916984519
A85: 2016-04-08 | B85: 3.601028969 | F85: 2016-04-08 | G85: 3.953773913
A86: 2016-04-11 | B86: 3.633952779 | F86: 2016-04-11 | G86: 3.987374779
A87: 2016-04-12 | B87: 3.675589987 | F87: 2016-04-12 | G87: 4.029701162
A88: 2016-04-13 | B88: 3.642780938 | F88: 2016-04-13 | G88: 3.996264527
A89: 2016-04-14 | B89: 3.646530327 | F89: 2016-04-14 | G89: 3.996481024
A90: 2016-04-15 | B90: 3.621642195 | F90: 2016-04-15 | G90: 3.96775034
A91: 2016-04-18 | B91: 3.67822511 | F91: 2016-04-18 | G91: 4.023895408
A92: 2016-04-19 | B92: 3.701183086 | F92: 2016-04-19 | G92: 4.040156099
A93: 2016-04-20 | B93: 3.640066371 | F93: 2016-04-20 | G93: 3.975735318
A94: 2016-04-21 | B94: 3.704757346 | F94: 2016-04-21 | G94: 4.030059153
A95: 2016-04-22 | B95: 3.705108085 | F95: 2016-04-22 | G95: 4.025071085
A96: 2016-04-25 | B96: 3.68832972 | F96: 2016-04-25 | G96: 4.005336725
A97: 2016-04-26 | B97: 3.733532947 | F97: 2016-04-26 | G97: 4.055406865
A98: 2016-04-27 | B98: 3.687649113 | F98: 2016-04-27 | G98: 4.003478059
A99: 2016-04-28 | B99: 3.657338718 | F99: 2016-04-28 | G99: 3.972037544
A100: 2016-04-29 | B100: 3.643727069 | F100: 2016-04-29 | G100: 3.958858924
A101: 2016-04-30 | B101: 3.643574809 | F101: 2016-04-30 | G101: 3.958709531
A102: 2016-05-03 | B102: 3.565652294 | F102: 2016-05-03 | G102: 3.882539483
A103: 2016-05-04 | B103: 3.576029659 | F103: 2016-05-04 | G103: 3.893423618
A104: 2016-05-05 | B104: 3.545868815 | F104: 2016-05-05 | G104: 3.859364174
A105: 2016-05-06 | B105: 3.503631896 | F105: 2016-05-06 | G105: 3.825082618
A106: 2016-05-09 | B106: 3.518565945 | F106: 2016-05-09 | G106: 3.843132287
A107: 2016-05-10 | B107: 3.527173924 | F107: 2016-05-10 | G107: 3.855501769
A108: 2016-05-11 | B108: 3.52901448 | F108: 2016-05-11 | G108: 3.860191537
A109: 2016-05-12 | B109: 3.559263663 | F109: 2016-05-12 | G109: 3.887342548
A110: 2016-05-13 | B110: 3.542344954 | F110: 2016-05-13 | G110: 3.865729026
A111: 2016-05-16 | B111: 3.558155765 | F111: 2016-05-16 | G111: 3.882392407
A112: 2016-05-17 | B112: 3.537707383 | F112: 2016-05-17 | G112: 3.860606935
A113: 2016-05-18 | B113: 3.611746119 | F113: 2016-05-18 | G113: 3.936345335
A114: 2016-05-19 | B114: 3.605632461 | F114: 2016-05-19 | G114: 3.930510485
A115: 2016-05-20 | B115: 3.631590563 | F115: 2016-05-20 | G115: 3.956925811
A116: 2016-05-23 | B116: 3.625768351 | F116: 2016-05-23 | G116: 3.953114556
A117: 2016-05-24 | B117: 3.630203178 | F117: 2016-05-24 | G117: 3.9575003
A118: 2016-05-25 | B118: 3.594493165 | F118: 2016-05-25 | G118: 3.921035258
A119: 2016-05-26 | B119: 3.551809273 | F119: 2016-05-26 | G119: 3.879803706
A120: 2016-05-27 | B120: 3.566835406 | F120: 2016-05-27 | G120: 3.892733354
A121: 2016-05-31 | B121: 3.543440092 | F121: 2016-05-31 | G121: 3.874675681
A122: 2016-06-01 | B122: 3.47725515 | F122: 2016-06-01 | G122: 3.810414389
A123: 2016-06-02 | B123: 3.452028307 | F123: 2016-06-02 | G123: 3.790778706
A124: 2016-06-03 | B124: 3.394971575 | F124: 2016-06-03 | G124: 3.730787387
A125: 2016-06-06 | B125: 3.408857992 | F125: 2016-06-06 | G125: 3.742843556
A126: 2016-06-07 | B126: 3.39269702 | F126: 2016-06-07 | G126: 3.729996407
A127: 2016-06-08 | B127: 3.366651484 | F127: 2016-06-08 | G127: 3.703981574
A128: 2016-06-09 | B128: 3.331104197 | F128: 2016-06-09 | G128: 3.669823096
A129: 2016-06-10 | B129: 3.313468792 | F129: 2016-06-10 | G129: 3.658822099
A130: 2016-06-13 | B130: 3.311858008 | F130: 2016-06-13 | G130: 3.668741283
A131: 2016-06-14 | B131: 3.267653535 | F131: 2016-06-14 | G131: 3.629909228
A132: 2016-06-15 | B132: 3.241599025 | F132: 2016-06-15 | G132: 3.604691099
A133: 2016-06-16 | B133: 3.26109471 | F133: 2016-06-16 | G133: 3.635806871
A134: 2016-06-17 | B134: 3.325964391 | F134: 2016-06-17 | G134: 3.696885581
A135: 2016-06-20 | B135: 3.416500733 | F135: 2016-06-20 | G135: 3.783429404
A136: 2016-06-21 | B136: 3.439519769 | F136: 2016-06-21 | G136: 3.804027757
A137: 2016-06-22 | B137: 3.458680622 | F137: 2016-06-22 | G137: 3.819934772
A138: 2016-06-23 | B138: 3.466078173 | F138: 2016-06-23 | G138: 3.819451191
A139: 2016-06-24 | B139: 3.389275877 | F139: 2016-06-24 | G139: 3.760637329
A140: 2016-06-27 | B140: 3.273411381 | F140: 2016-06-27 | G140: 3.642788784
A141: 2016-06-28 | B141: 3.256076843 | F141: 2016-06-28 | G141: 3.627230467
A142: 2016-06-29 | B142: 3.211037146 | F142: 2016-06-29 | G142: 3.582890298
A143: 2016-06-30 | B143: 3.163446348 | F143: 2016-06-30 | G143: 3.509320146
A144: 2016-07-01 | B144: 3.075586355 | F144: 2016-07-01 | G144: 3.390914839
A145: 2016-07-04 | B145: 3.015120645 | F145: 2016-07-04 | G145: 3.32745046
A146: 2016-07-05 | B146: 2.942688358 | F146: 2016-07-05 | G146: 3.256471367
A147: 2016-07-06 | B147: 2.921350461 | F147: 2016-07-06 | G147: 3.235394628
A148: 2016-07-07 | B148: 2.937578559 | F148: 2016-07-07 | G148: 3.238027157
A149: 2016-07-08 | B149: 2.881822092 | F149: 2016-07-08 | G149: 3.168230075
A150: 2016-07-11 | B150: 2.860566091 | F150: 2016-07-11 | G150: 3.141043559
A151: 2016-07-12 | B151: 2.863137031 | F151: 2016-07-12 | G151: 3.136520676
A152: 2016-07-13 | B152: 2.762749137 | F152: 2016-07-13 | G152: 3.018895252
A153: 2016-07-14 | B153: 2.768507804 | F153: 2016-07-14 | G153: 3.015766042
A154: 2016-07-15 | B154: 2.810507959 | F154: 2016-07-15 | G154: 3.056185892
A155: 2016-07-18 | B155: 2.776170539 | F155: 2016-07-18 | G155: 3.017884595
A156: 2016-07-19 | B156: 2.77578031 | F156: 2016-07-19 | G156: 3.024641538
A157: 2016-07-20 | B157: 2.80554919 | F157: 2016-07-20 | G157: 3.055986604
A158: 2016-07-21 | B158: 2.820536034 | F158: 2016-07-21 | G158: 3.069533535
A159: 2016-07-22 | B159: 2.776814476 | F159: 2016-07-22 | G159: 3.026099339
A160: 2016-07-25 | B160: 2.764539796 | F160: 2016-07-25 | G160: 3.012956088
A161: 2016-07-26 | B161: 2.782378069 | F161: 2016-07-26 | G161: 3.035326615
A162: 2016-07-27 | B162: 2.690458096 | F162: 2016-07-27 | G162: 2.941870004
A163: 2016-07-28 | B163: 2.670760084 | F163: 2016-07-28 | G163: 2.916646516
A164: 2016-07-29 | B164: 2.629001095 | F164: 2016-07-29 | G164: 2.872185042
A165: 2016-07-31 | B165: 2.628548287 | F165: 2016-07-31 | G165: 2.871681326
A166: 2016-08-01 | B166: 2.665150846 | F166: 2016-08-01 | G166: 2.912879594
A167: 2016-08-02 | B167: 2.735384114 | F167: 2016-08-02 | G167: 2.995826071
A168: 2016-08-03 | B168: 2.729831653 | F168: 2016-08-03 | G168: 2.993218599
A169: 2016-08-04 | B169: 2.477611143 | F169: 2016-08-04 | G169: 2.732984353
A170: 2016-08-05 | B170: 2.346007196 | F170: 2016-08-05 | G170: 2.58934561
A171: 2016-08-08 | B171: 2.296944798 | F171: 2016-08-08 | G171: 2.534694466
A172: 2016-08-09 | B172: 2.247271153 | F172: 2016-08-09 | G172: 2.485728343
A173: 2016-08-10 | B173: 2.181148638 | F173: 2016-08-10 | G173: 2.429932724
A174: 2016-08-11 | B174: 2.159630383 | F174: 2016-08-11 | G174: 2.417011652
A175: 2016-08-12 | B175: 2.175982092 | F175: 2016-08-12 | G175: 2.436967293
A176: 2016-08-15 | B176: 2.219018307 | F176: 2016-08-15 | G176: 2.480737137
A177: 2016-08-16 | B177: 2.268495456 | F177: 2016-08-16 | G177: 2.542967696
A178: 2016-08-17 | B178: 2.28201279 | F178: 2016-08-17 | G178: 2.559368502
A179: 2016-08-18 | B179: 2.26973624 | F179: 2016-08-18 | G179: 2.550533959
A180: 2016-08-19 | B180: 2.317273811 | F180: 2016-08-19 | G180: 2.598308828
A181: 2016-08-22 | B181: 2.283169058 | F181: 2016-08-22 | G181: 2.56322059
A182: 2016-08-23 | B182: 2.241692295 | F182: 2016-08-23 | G182: 2.52651228
A183: 2016-08-24 | B183: 2.240769435 | F183: 2016-08-24 | G183: 2.529774429
A184: 2016-08-25 | B184: 2.242018978 | F184: 2016-08-25 | G184: 2.531120399
A185: 2016-08-26 | B185: 2.211256723 | F185: 2016-08-26 | G185: 2.501504822
A186: 2016-08-30 | B186: 2.212985126 | F186: 2016-08-30 | G186: 2.505590521
A187: 2016-08-31 | B187: 2.225516775 | F187: 2016-08-31 | G187: 2.51530026
A188: 2016-09-01 | B188: 2.253191192 | F188: 2016-09-01 | G188: 2.569419355
A189: 2016-09-02 | B189: 2.314937112 | F189: 2016-09-02 | G189: 2.631170673
A190: 2016-09-05 | B190: 2.285423288 | F190: 2016-09-05 | G190: 2.604131598
A191: 2016-09-06 | B191: 2.272919015 | F191: 2016-09-06 | G191: 2.592096813
A192: 2016-09-07 | B192: 2.266750073 | F192: 2016-09-07 | G192: 2.588669624
A193: 2016-09-08 | B193: 2.357520375 | F193: 2016-09-08 | G193: 2.686130489
A194: 2016-09-09 | B194: 2.479338119 | F194: 2016-09-09 | G194: 2.814059975
A195: 2016-09-12 | B195: 2.493999997 | F195: 2016-09-12 | G195: 2.834145215
A196: 2016-09-13 | B196: 2.508608774 | F196: 2016-09-13 | G196: 2.835806732
A197: 2016-09-14 | B197: 2.527224508 | F197: 2016-09-14 | G197: 2.855243263
A198: 2016-09-15 | B198: 2.549824272 | F198: 2016-09-15 | G198: 2.875779421
A199: 2016-09-16 | B199: 2.530078676 | F199: 2016-09-16 | G199: 2.851929337
A200: 2016-09-19 | B200: 2.553377059 | F200: 2016-09-19 | G200: 2.873117129
A201: 2016-09-20 | B201: 2.491236229 | F201: 2016-09-20 | G201: 2.802603589
A202: 2016-09-21 | B202: 2.504944027 | F202: 2016-09-21 | G202: 2.816031509
A203: 2016-09-22 | B203: 2.398221629 | F203: 2016-09-22 | G203: 2.707788755
A204: 2016-09-23 | B204: 2.404412299 | F204: 2016-09-23 | G204: 2.715212446
A205: 2016-09-26 | B205: 2.377891832 | F205: 2016-09-26 | G205: 2.689802134
A206: 2016-09-27 | B206: 2.337745208 | F206: 2016-09-27 | G206: 2.646074896
... 2049 more rows

Sheet RCV and post 2020 investment
A1: =RIGHT(CELL("filename", $A$1), LEN(CELL("filename", $A$1)) - SEARCH("]", CELL("filename", $A$1))) -> RCV and post 2020 investment
E2: =Time!E$22 -> Model Period END | J2: =Time!J$22 -> 2020-03-31 | K2: =Time!K$22 -> 2021-03-31 | L2: =Time!L$22 -> 2022-03-31 | M2: =Time!M$22 -> 2023-03-31 | N2: =Time!N$22 -> 2024-03-31 | O2: =Time!O$22 -> 2025-03-31 | P2: =Time!P$22 -> 2026-03-31
E3: =Time!E$58 -> Pre Forecast vs Forecast | J3: =Time!J$58 -> Pre Fcst | K3: =Time!K$58 -> Forecast | L3: =Time!L$58 -> Forecast | M3: =Time!M$58 -> Forecast | N3: =Time!N$58 -> Forecast | O3: =Time!O$58 -> Forecast | P3: =Time!P$58 -> Post-Fcst
E4: =Time!E$86 -> Financial Year Ending | J4: =Time!J$86 -> 2020 | K4: =Time!K$86 -> 2021 | L4: =Time!L$86 -> 2022 | M4: =Time!M$86 -> 2023 | N4: =Time!N$86 -> 2024 | O4: =Time!O$86 -> 2025 | P4: =Time!P$86 -> 2026
E5: =Time!E$10 -> Model column counter | F5: Constant | G5: Unit | H5: Total | J5: =Time!J$10 -> 1 | K5: =Time!K$10 -> 2 | L5: =Time!L$10 -> 3 | M5: =Time!M$10 -> 4 | N5: =Time!N$10 -> 5 | O5: =Time!O$10 -> 6 | P5: =Time!P$10 -> 7
A7: Water Resources
A8: =InpR!A$15 -> 0 | B8: =InpR!B$15 -> 0 | C8: =InpR!C$15 -> 0 | D8: =InpR!D$15 -> 0 | E8: =InpR!E$15 -> Water resources RCV year start | F8: =InpR!F$15 -> 0 | G8: =InpR!G$15 -> £m, (CPIH, 2017/18 prices) | H8: =InpR!H$15 -> 0 | I8: =InpR!I$15 -> 0 | J8: =InpR!J$15 -> 0 | K8: =InpR!K$15 -> 13.16 | L8: =InpR!L$15 -> 13.2 | M8: =InpR!M$15 -> 13.36 | N8: =InpR!N$15 -> 13.33 | O8: =InpR!O$15 -> 13.25 | P8: =InpR!P$15 -> 0
A9: =InpR!A$16 -> 0 | B9: =InpR!B$16 -> 0 | C9: =InpR!C$16 -> 0 | D9: =InpR!D$16 -> 0 | E9: =InpR!E$16 -> Water Resources RCV year end | F9: =InpR!F$16 -> 0 | G9: =InpR!G$16 -> £m, (CPIH, 2017/18 prices) | H9: =InpR!H$16 -> 0 | I9: =InpR!I$16 -> 0 | J9: =InpR!J$16 -> 0 | K9: =InpR!K$16 -> 13.14 | L9: =InpR!L$16 -> 13.3 | M9: =InpR!M$16 -> 13.27 | N9: =InpR!N$16 -> 13.19 | O9: =InpR!O$16 -> 13.14 | P9: =InpR!P$16 -> 0
E10: Water resources asset base for return | G10: £m | J10: =AVERAGE(J8:J9) -> 0 | K10: =AVERAGE(K8:K9) -> 13.15 | L10: =AVERAGE(L8:L9) -> 13.25 | M10: 13.315 | N10: 13.26 | O10: 13.195 | P10: 0
E12: =InpC!E$57 -> Notional gearing | F12: =InpC!F$57 -> 0.6 | G12: =InpC!G$57 -> percentage
A13: =A$10 -> 0 | B13: =B$10 -> 0 | C13: =C$10 -> 0 | D13: =D$10 -> 0 | E13: =E$10 -> Water resources asset base for return | F13: =F$10 -> 0 | G13: £m | H13: 0 | I13: 0 | J13: 0 | K13: =K$10 -> 13.15 | L13: 13.25 | M13: 13.315 | N13: 13.26 | O13: 13.195 | P13: 0
E14: Water Resources Notional debt | G14: £m | H14: =SUM(J14:P14) -> 39.702 | J14: =$F12 * J13 -> 0 | K14: =$F12 * K13 -> 7.89 | L14: 7.95 | M14: 7.989 | N14: 7.956 | O14: 7.917 | P14: 0
A16: =A$14 -> 0 | B16: =B$14 -> 0 | C16: =C$14 -> 0 | D16: =D$14 -> 0 | E16: =E$14 -> Water Resources Notional debt | F16: =F$14 -> 0 | G16: £m | H16: 39.702 | I16: 0 | J16: 0 | K16: 7.89 | L16: 7.95 | M16: 7.989 | N16: 7.956 | O16: 7.917 | P16: 0
A17: =InpR!A$57 -> 0 | B17: =InpR!B$57 -> 0 | C17: =InpR!C$57 -> 0 | D17: =InpR!D$57 -> 0 | E17: =InpR!E$57 -> Proportion of notional debt subject to indexation (year average) | F17: =InpR!F$57 -> 0 | G17: =InpR!G$57 -> percentage | H17: =InpR!H$57 -> 0 | I17: =InpR!I$57 -> 0 | J17: =InpR!J$57 -> 0 | K17: =InpR!K$57 -> 0.04 | L17: =InpR!L$57 -> 0.12 | M17: =InpR!M$57 -> 0.2 | N17: =InpR!N$57 -> 0.28 | O17: =InpR!O$57 -> 0.36 | P17: =InpR!P$57 -> 0.44
E18: Water Resources New debt for return | G18: £m | H18: =SUM(J18:O18) -> 7.9452 | J18: =J16 * J17 -> 0 | K18: 0.3156 | L18: 0.954 | M18: 1.5978 | N18: 2.22768 | O18: 2.85012 | P18: 0
E20: =E$14 -> Water Resources Notional debt | F20: =F$14 -> 0 | G20: £m | H20: 39.702 | I20: 0 | J20: 0 | K20: =K$14 -> 7.89 | L20: 7.95 | M20: 7.989 | N20: 7.956 | O20: =O$14 -> 7.917 | P20: =P$14 -> 0
D21: less | E21: =E$18 -> Water Resources New debt for return | F21: =F$18 -> 0 | G21: £m | H21: 7.9452 | I21: 0 | J21: 0 | K21: 0.3156 | L21: 0.954 | M21: 1.5978 | N21: 2.22768 | O21: 2.85012 | P21: 0
E22: Water Resources Embedded debt for return | G22: £m | H22: =SUM(J22:O22) -> 31.7568 | J22: =J20 - J21 -> 0 | K22: =K20 - K21 -> 7.5744 | L22: 6.996 | M22: 6.3912 | N22: 5.72832 | O22: 5.06688 | P22: 0
A24: Water Network Plus
A25: =InpR!A$15 -> 0 | B25: =InpR!B$15 -> 0 | C25: =InpR!C$15 -> 0 | D25: =InpR!D$15 -> 0 | E25: =InpR!E$19 -> Water Network Plus RCV year start | F25: =InpR!F$19 -> 0 | G25: =InpR!G$19 -> £m, (CPIH, 2017/18 prices) | H25: =InpR!H$19 -> 0 | I25: =InpR!I$19 -> 0 | J25: =InpR!J$19 -> 0 | K25: =InpR!K$19 -> 238.59 | L25: =InpR!L$19 -> 244.62 | M25: =InpR!M$19 -> 253.82 | N25: =InpR!N$19 -> 258.78 | O25: =InpR!O$19 -> 258.8 | P25: =InpR!P$19 -> 0
A26: =InpR!A$16 -> 0 | B26: =InpR!B$16 -> 0 | C26: =InpR!C$16 -> 0 | D26: =InpR!D$16 -> 0 | E26: =InpR!E$20 -> Water Network Plus RCV year end | F26: =InpR!F$20 -> 0 | G26: =InpR!G$20 -> £m, (CPIH, 2017/18 prices) | H26: =InpR!H$20 -> 0 | I26: =InpR!I$20 -> 0 | J26: =InpR!J$20 -> 0 | K26: =InpR!K$20 -> 243.57 | L26: =InpR!L$20 -> 252.72 | M26: =InpR!M$20 -> 257.72 | N26: =InpR!N$20 -> 257.8 | O26: =InpR!O$20 -> 257.19 | P26: =InpR!P$20 -> 0
E27: Water Network Plus asset base for return | G27: £m | J27: =AVERAGE(J25:J26) -> 0 | K27: =AVERAGE(K25:K26) -> 241.08 | L27: 248.67 | M27: 255.77 | N27: 258.29 | O27: 257.995 | P27: 0
E29: =InpC!E$57 -> Notional gearing | F29: =InpC!F$57 -> 0.6 | G29: =InpC!G$57 -> percentage
A30: =A$10 -> 0 | B30: =B$10 -> 0 | C30: =C$10 -> 0 | D30: =D$10 -> 0 | E30: =E$27 -> Water Network Plus asset base for return | F30: =F$27 -> 0 | G30: £m | H30: 0 | I30: 0 | J30: 0 | K30: =K$27 -> 241.08 | L30: 248.67 | M30: 255.77 | N30: 258.29 | O30: 257.995 | P30: 0
E31: Water Network Plus Notional debt | G31: =G$10 -> £m | H31: =SUM(J31:P31) -> 757.083 | J31: =J30 * $F29 -> 0 | K31: 144.648 | L31: 149.202 | M31: 153.462 | N31: 154.974 | O31: 154.797 | P31: 0
E33: =E$31 -> Water Network Plus Notional debt | F33: 0 | G33: £m | H33: 757.083 | I33: 0 | J33: 0 | K33: 144.648 | L33: 149.202 | M33: 153.462 | N33: 154.974 | O33: 154.797 | P33: 0
A34: =A$14 -> 0 | B34: =B$14 -> 0 | C34: =C$14 -> 0 | D34: =D$14 -> 0 | E34: =InpR!E$57 -> Proportion of notional debt subject to indexation (year average) | F34: =InpR!F$57 -> 0 | G34: =InpR!G$57 -> percentage | H34: =InpR!H$57 -> 0 | I34: =InpR!I$57 -> 0 | J34: =InpR!J$57 -> 0 | K34: =InpR!K$57 -> 0.04 | L34: =InpR!L$57 -> 0.12 | M34: =InpR!M$57 -> 0.2 | N34: =InpR!N$57 -> 0.28 | O34: =InpR!O$57 -> 0.36 | P34: =InpR!P$57 -> 0.44
A35: =InpR!A$57 -> 0 | B35: =InpR!B$57 -> 0 | C35: =InpR!C$57 -> 0 | D35: =InpR!D$57 -> 0 | E35: Water Network Plus New debt for return | G35: £m | H35: =SUM(J35:O35) -> 153.5022 | J35: =J33 * J34 -> 0 | K35: 5.78592 | L35: 17.90424 | M35: 30.6924 | N35: 43.39272 | O35: 55.72692
E37: =E$31 -> Water Network Plus Notional debt | F37: 0 | G37: £m | H37: 757.083 | I37: 0 | J37: 0 | K37: 144.648 | L37: 149.202 | M37: 153.462 | N37: 154.974 | O37: 154.797 | P37: 0
D38: less | E38: =E$35 -> Water Network Plus New debt for return | F38: =F$35 -> 0 | G38: £m | H38: 153.5022 | I38: 0 | J38: 0 | K38: 5.78592 | L38: 17.90424 | M38: 30.6924 | N38: 43.39272 | O38: 55.72692 | P38: 0
E39: Water Network Plus Embedded debt for return | G39: £m | H39: =SUM(J39:O39) -> 603.5808 | J39: =J37- J38 -> 0 | K39: 138.86208 | L39: 131.29776 | M39: 122.7696 | N39: 111.58128 | O39: 99.07008 | P39: 0
A41: WasteWater Network Plus
A42: =InpR!A$15 -> 0 | B42: =InpR!B$15 -> 0 | C42: =InpR!C$15 -> 0 | D42: =InpR!D$15 -> 0 | E42: =InpR!E$23 -> Watewater Network Plus RCV year start | F42: =InpR!F$23 -> 0 | G42: =InpR!G$23 -> £m, (CPIH, 2017/18 prices) | H42: =InpR!H$23 -> 0 | I42: =InpR!I$23 -> 0 | J42: =InpR!J$23 -> 0 | K42: =InpR!K$23 -> 0 | L42: =InpR!L$23 -> 0 | M42: =InpR!M$23 -> 0 | N42: =InpR!N$23 -> 0 | O42: =InpR!O$23 -> 0 | P42: =InpR!P$23 -> 0
A43: =InpR!A$16 -> 0 | B43: =InpR!B$16 -> 0 | C43: =InpR!C$16 -> 0 | D43: =InpR!D$16 -> 0 | E43: =InpR!E$24 -> Watewater Network Plus RCV year end | F43: =InpR!F$24 -> 0 | G43: =InpR!G$24 -> £m, (CPIH, 2017/18 prices) | H43: =InpR!H$24 -> 0 | I43: =InpR!I$24 -> 0 | J43: =InpR!J$24 -> 0 | K43: =InpR!K$24 -> 0 | L43: =InpR!L$24 -> 0 | M43: =InpR!M$24 -> 0 | N43: =InpR!N$24 -> 0 | O43: =InpR!O$24 -> 0 | P43: =InpR!P$24 -> 0
E44: Watewater Network Plus asset base for return | G44: £m | J44: =AVERAGE(J42:J43) -> 0 | K44: =AVERAGE(K42:K43) -> 0 | L44: 0 | M44: 0 | N44: 0 | O44: 0 | P44: 0
E46: =InpC!E$57 -> Notional gearing | F46: =InpC!F$57 -> 0.6 | G46: =InpC!G$57 -> percentage
A47: =A$10 -> 0 | B47: =B$10 -> 0 | C47: =C$10 -> 0 | D47: =D$10 -> 0 | E47: =E$44 -> Watewater Network Plus asset base for return | F47: =F$44 -> 0 | G47: £m | H47: 0 | I47: 0 | J47: 0 | K47: 0 | L47: 0 | M47: 0 | N47: 0 | O47: 0 | P47: 0
E48: Wastewater Network Plus Notional debt | G48: =G$10 -> £m | H48: =SUM(J48:P48) -> 0 | J48: =J47 * $F46 -> 0 | K48: 0 | L48: 0 | M48: 0 | N48: 0 | O48: 0 | P48: 0
A50: =A$14 -> 0 | B50: =B$14 -> 0 | C50: =C$14 -> 0 | D50: =D$14 -> 0 | E50: =E$48 -> Wastewater Network Plus Notional debt | F50: =F$48 -> 0 | G50: £m | H50: 0 | I50: 0 | J50: 0 | K50: 0 | L50: 0 | M50: 0 | N50: 0 | O50: 0 | P50: 0
A51: =InpR!A$57 -> 0 | B51: =InpR!B$57 -> 0 | C51: =InpR!C$57 -> 0 | D51: =InpR!D$57 -> 0 | E51: =InpR!E$57 -> Proportion of notional debt subject to indexation (year average) | F51: =InpR!F$57 -> 0 | G51: =InpR!G$57 -> percentage | H51: =InpR!H$57 -> 0 | I51: =InpR!I$57 -> 0 | J51: =InpR!J$57 -> 0 | K51: =InpR!K$57 -> 0.04 | L51: =InpR!L$57 -> 0.12 | M51: =InpR!M$57 -> 0.2 | N51: =InpR!N$57 -> 0.28 | O51: =InpR!O$57 -> 0.36 | P51: =InpR!P$57 -> 0.44
E52: Wastewater Network Plus New debt for return | G52: £m | H52: =SUM(J52:O52) -> 0 | J52: =J50 * J51 -> 0 | K52: 0 | L52: 0 | M52: 0 | N52: 0 | O52: 0
E54: =E$48 -> Wastewater Network Plus Notional debt | F54: =F$48 -> 0 | G54: £m | H54: 0 | I54: 0 | J54: 0 | K54: 0 | L54: 0 | M54: 0 | N54: 0 | O54: 0 | P54: 0
D55: less | E55: =E$52 -> Wastewater Network Plus New debt for return | F55: =F$52 -> 0 | G55: £m | H55: 0 | I55: 0 | J55: 0 | K55: 0 | L55: 0 | M55: 0 | N55: 0 | O55: 0 | P55: 0
E56: Wastewater Network Plus Embedded debt for return | G56: £m | H56: =SUM(J56:O56) -> 0 | J56: =J54-J55 -> 0 | K56: =K54-K55 -> 0 | L56: 0 | M56: 0 | N56: 0 | O56: 0 | P56: 0
A58: Bioresources
A59: =InpR!A$15 -> 0 | B59: =InpR!B$15 -> 0 | C59: =InpR!C$15 -> 0 | D59: =InpR!D$15 -> 0 | E59: =InpR!E$27 -> Bioresources RCV year start | F59: =InpR!F$27 -> 0 | G59: =InpR!G$27 -> £m, (CPIH, 2017/18 prices) | H59: =InpR!H$27 -> 0 | I59: =InpR!I$27 -> 0 | J59: =InpR!J$27 -> 0 | K59: =InpR!K$27 -> 0 | L59: =InpR!L$27 -> 0 | M59: =InpR!M$27 -> 0 | N59: =InpR!N$27 -> 0 | O59: =InpR!O$27 -> 0 | P59: =InpR!P$27 -> 0
A60: =InpR!A$16 -> 0 | B60: =InpR!B$16 -> 0 | C60: =InpR!C$16 -> 0 | D60: =InpR!D$16 -> 0 | E60: =InpR!E$28 -> Bioresources RCV year end | F60: =InpR!F$28 -> 0 | G60: =InpR!G$28 -> £m, (CPIH, 2017/18 prices) | H60: =InpR!H$28 -> 0 | I60: =InpR!I$28 -> 0 | J60: =InpR!J$28 -> 0 | K60: =InpR!K$28 -> 0 | L60: =InpR!L$28 -> 0 | M60: =InpR!M$28 -> 0 | N60: =InpR!N$28 -> 0 | O60: =InpR!O$28 -> 0 | P60: =InpR!P$28 -> 0
E61: Bioresources asset base for return | G61: £m | J61: =AVERAGE(J59:J60) -> 0 | K61: =AVERAGE(K59:K60) -> 0 | L61: 0 | M61: 0 | N61: 0 | O61: 0 | P61: 0
E63: =InpC!E$57 -> Notional gearing | F63: =InpC!F$57 -> 0.6 | G63: =InpC!G$57 -> percentage
A64: =A$10 -> 0 | B64: =B$10 -> 0 | C64: =C$10 -> 0 | D64: =D$10 -> 0 | E64: =E$61 -> Bioresources asset base for return | F64: =F$61 -> 0 | G64: £m | H64: 0 | I64: 0 | J64: 0 | K64: 0 | L64: 0 | M64: 0 | N64: 0 | O64: 0 | P64: 0
E65: Bioresources Notional debt | G65: =G$10 -> £m | H65: =SUM(J65:P65) -> 0 | J65: =J64 * $F63 -> 0 | K65: 0 | L65: 0 | M65: 0 | N65: 0 | O65: =O64 * $F63 -> 0 | P65: 0
A67: =A$14 -> 0 | B67: =B$14 -> 0 | C67: =C$14 -> 0 | D67: =D$14 -> 0 | E67: =E$65 -> Bioresources Notional debt | F67: =F$65 -> 0 | G67: £m | H67: 0 | I67: 0 | J67: 0 | K67: 0 | L67: 0 | M67: 0 | N67: 0 | O67: 0 | P67: 0
A68: =InpR!A$57 -> 0 | B68: =InpR!B$57 -> 0 | C68: =InpR!C$57 -> 0 | D68: =InpR!D$57 -> 0 | E68: =InpR!E$57 -> Proportion of notional debt subject to indexation (year average) | F68: =InpR!F$57 -> 0 | G68: =InpR!G$57 -> percentage | H68: =InpR!H$57 -> 0 | I68: =InpR!I$57 -> 0 | J68: =InpR!J$57 -> 0 | K68: =InpR!K$57 -> 0.04 | L68: =InpR!L$57 -> 0.12 | M68: =InpR!M$57 -> 0.2 | N68: =InpR!N$57 -> 0.28 | O68: =InpR!O$57 -> 0.36 | P68: =InpR!P$57 -> 0.44
E69: Bioresources New debt for return | G69: £m | H69: =SUM(J69:O69) -> 0 | J69: =J67 * J68 -> 0 | K69: 0 | L69: 0 | M69: 0 | N69: 0 | O69: 0
E71: =E$65 -> Bioresources Notional debt | F71: =F$65 -> 0 | G71: £m | H71: 0 | I71: 0 | J71: 0 | K71: 0 | L71: 0 | M71: 0 | N71: 0 | O71: 0 | P71: 0
E72: =E$69 -> Bioresources New debt for return | F72: =F$69 -> 0 | G72: £m | H72: 0 | I72: 0 | J72: 0 | K72: 0 | L72: 0 | M72: 0 | N72: 0 | O72: 0 | P72: 0
E73: Bioresources Embedded debt for return | G73: £m | H73: =SUM(J73:O73) -> 0 | J73: =J71 - J72 -> 0 | K73: =K71 - K72 -> 0 | L73: 0 | M73: 0 | N73: 0 | O73: 0 | P73: 0
A75: Dummy
A76: =InpR!A$15 -> 0 | B76: =InpR!B$15 -> 0 | C76: =InpR!C$15 -> 0 | D76: =InpR!D$15 -> 0 | E76: =InpR!E31 -> Dummy RCV year start | F76: =InpR!F$27 -> 0 | G76: =InpR!G$27 -> £m, (CPIH, 2017/18 prices) | H76: =InpR!H$27 -> 0 | I76: =InpR!I$27 -> 0 | J76: =InpR!J$27 -> 0 | K76: =InpR!K31 -> 0 | L76: =InpR!L31 -> 0 | M76: =InpR!M31 -> 0 | N76: =InpR!N31 -> 0 | O76: =InpR!O31 -> 0 | P76: =InpR!P$27 -> 0
A77: =InpR!A$16 -> 0 | B77: =InpR!B$16 -> 0 | C77: =InpR!C$16 -> 0 | D77: =InpR!D$16 -> 0 | E77: =InpR!E32 -> Dummy RCV year end | F77: =InpR!F$28 -> 0 | G77: =InpR!G$28 -> £m, (CPIH, 2017/18 prices) | H77: =InpR!H$28 -> 0 | I77: =InpR!I$28 -> 0 | J77: =InpR!J$28 -> 0 | K77: =InpR!K32 -> 0 | L77: =InpR!L32 -> 0 | M77: =InpR!M32 -> 0 | N77: =InpR!N32 -> 0 | O77: =InpR!O32 -> 0 | P77: =InpR!P$28 -> 0
E78: Dummy asset base for return | G78: £m | J78: =AVERAGE(J76:J77) -> 0 | K78: =AVERAGE(K76:K77) -> 0 | L78: 0 | M78: 0 | N78: 0 | O78: 0 | P78: 0
E80: =InpC!E$57 -> Notional gearing | F80: =InpC!F$57 -> 0.6 | G80: =InpC!G$57 -> percentage
A81: =A$10 -> 0 | B81: =B$10 -> 0 | C81: =C$10 -> 0 | D81: =D$10 -> 0 | E81: =E$78 -> Dummy asset base for return | F81: =F$61 -> 0 | G81: £m | H81: 0 | I81: 0 | J81: 0 | K81: =K78 -> 0 | L81: =L78 -> 0 | M81: 0 | N81: 0 | O81: 0 | P81: 0
E82: Dummy Notional debt | G82: =G$10 -> £m | H82: =SUM(J82:P82) -> 0 | J82: =J81 * $F80 -> 0 | K82: 0 | L82: 0 | M82: 0 | N82: 0 | O82: =O81 * $F80 -> 0 | P82: =P81 * $F80 -> 0
A84: =A$14 -> 0 | B84: =B$14 -> 0 | C84: =C$14 -> 0 | D84: =D$14 -> 0 | E84: =E82 -> Dummy Notional debt | F84: =F$65 -> 0 | G84: £m | H84: 0 | I84: 0 | J84: 0 | K84: =K82 -> 0 | L84: =L82 -> 0 | M84: 0 | N84: 0 | O84: 0 | P84: 0
A85: =InpR!A$57 -> 0 | B85: =InpR!B$57 -> 0 | C85: =InpR!C$57 -> 0 | D85: =InpR!D$57 -> 0 | E85: =InpR!E$57 -> Proportion of notional debt subject to indexation (year average) | F85: =InpR!F$57 -> 0 | G85: =InpR!G$57 -> percentage | H85: =InpR!H$57 -> 0 | I85: =InpR!I$57 -> 0 | J85: =InpR!J$57 -> 0 | K85: =InpR!K$57 -> 0.04 | L85: =InpR!L$57 -> 0.12 | M85: =InpR!M$57 -> 0.2 | N85: =InpR!N$57 -> 0.28 | O85: =InpR!O$57 -> 0.36 | P85: =InpR!P$57 -> 0.44
E86: Dummy New debt for return | G86: £m | H86: =SUM(J86:O86) -> 0 | J86: =J84 * J85 -> 0 | K86: =K84 * K85 -> 0 | L86: =L84 * L85 -> 0 | M86: =M84 * M85 -> 0 | N86: =N84 * N85 -> 0 | O86: =O84 * O85 -> 0
E88: =E82 -> Dummy Notional debt | F88: =F$65 -> 0 | G88: £m | H88: 0 | I88: 0 | J88: 0 | K88: =K82 -> 0 | L88: =L82 -> 0 | M88: 0 | N88: 0 | O88: 0 | P88: 0
E89: =E86 -> Dummy New debt for return | F89: =F$69 -> 0 | G89: £m | H89: 0 | I89: 0 | J89: 0 | K89: =K86 -> 0 | L89: =L86 -> 0 | M89: 0 | N89: 0 | O89: 0 | P89: 0
E90: Dummy Embedded debt for return | G90: £m | H90: =SUM(J90:O90) -> 0 | J90: =J88 - J89 -> 0 | K90: =K88 - K89 -> 0 | L90: 0 | M90: 0 | N90: 0 | O90: 0 | P90: 0

Sheet Cost of Debt
A1: =RIGHT(CELL("filename", $A$1), LEN(CELL("filename", $A$1)) - SEARCH("]", CELL("filename", $A$1))) -> Cost of Debt
J2: =Time!J$22 -> 2020-03-31 | K2: =Time!K$22 -> 2021-03-31 | L2: =Time!L$22 -> 2022-03-31 | M2: =Time!M$22 -> 2023-03-31 | N2: =Time!N$22 -> 2024-03-31 | O2: =Time!O$22 -> 2025-03-31 | P2: =Time!P$22 -> 2026-03-31
J3: =Time!J$58 -> Pre Fcst | K3: =Time!K$58 -> Forecast | L3: =Time!L$58 -> Forecast | M3: =Time!M$58 -> Forecast | N3: =Time!N$58 -> Forecast | O3: =Time!O$58 -> Forecast | P3: =Time!P$58 -> Post-Fcst
E4: =Time!E$86 -> Financial Year Ending | J4: =Time!J$86 -> 2020 | K4: =Time!K$86 -> 2021 | L4: =Time!L$86 -> 2022 | M4: =Time!M$86 -> 2023 | N4: =Time!N$86 -> 2024 | O4: =Time!O$86 -> 2025 | P4: =Time!P$86 -> 2026
E5: =Time!E$10 -> Model column counter | F5: Constant | G5: Unit | H5: Total | J5: =Time!J$10 -> 1 | K5: =Time!K$10 -> 2 | L5: =Time!L$10 -> 3 | M5: =Time!M$10 -> 4 | N5: =Time!N$10 -> 5 | O5: =Time!O$10 -> 6 | P5: =Time!P$10 -> 7
A7: Nominal cost of debt
E8: =Time!E$53 -> Forecast Period Flag | F8: =Time!F$53 -> 0 | G8: =Time!G$53 -> flag | H8: =Time!H$53 -> 5 | I8: =Time!I$53 -> 0 | J8: =Time!J$53 -> 0 | K8: =Time!K$53 -> 1 | L8: =Time!L$53 -> 1 | M8: =Time!M$53 -> 1 | N8: =Time!N$53 -> 1 | O8: =Time!O$53 -> 1 | P8: =Time!P$53 -> 0
E9: =InpR!E$41 -> 1 Year average of iBoxx adjusted for 'outperformance wedge' (base) | F9: =InpR!F$41 -> 0 | G9: =InpR!G$41 -> Percentage | H9: =InpR!H$41 -> 0 | I9: =InpR!I$41 -> 0 | J9: =InpR!J$41 -> 0 | K9: =InpR!K$41 -> 0.02013974363 | L9: =InpR!L$41 -> 0.02296005109 | M9: =InpR!M$41 -> 0.04669417725 | N9: =InpR!N$41 -> 0.05600169497 | O9: =InpR!O$41 -> 0.055097097 | P9: =InpR!P$41 -> 0
E10: Forecast Period 1 Year average of iBoxx at year end | G10: Percentage | J10: =J8 * J9 -> 0 | K10: 0.02013974363 | L10: 0.02296005109 | M10: 0.04669417725 | N10: 0.05600169497 | O10: 0.055097097 | P10: 0
E12: =E$10 -> Forecast Period 1 Year average of iBoxx at year end | F12: 0 | G12: Percentage | H12: 0 | I12: 0 | J12: 0 | K12: =K$10 -> 0.02013974363 | L12: 0.02296005109 | M12: 0.04669417725 | N12: 0.05600169497 | O12: 0.055097097 | P12: 0
E13: =InpR!E59 -> CPIH inflation allowance (long-term assumption) | F13: =InpR!F59 -> 0.02 | G13: =InpR!G59 -> percentage | H13: =InpR!H59 -> 0 | I13: =InpR!I59 -> 0 | J13: =InpR!J59 -> 0 | K13: =InpR!K59 -> 0.02 | L13: =InpR!L59 -> 0.02 | M13: =InpR!M59 -> 0.02 | N13: =InpR!N59 -> 0.02 | O13: =InpR!O59 -> 0.02 | P13: =InpR!P59 -> 0
E14: 1 year real-CPIH average debt cost | G14: Percentage | J14: =(1+J12) / (1+J13) - 1 -> 0 | K14: =(1+K12) / (1+K13) - 1 -> 0.0001370035634 | L14: 0.00290201087 | M14: 0.02617076201 | N14: 0.03529577938 | O14: 0.03440891863 | P14: 0
B16: Real-CPIH average debt cost by year
E17: =E$14 -> 1 year real-CPIH average debt cost | F17: =F$14 -> 0 | G17: Percentage | H17: 0 | I17: 0 | J17: 0 | K17: 0.0001370035634 | L17: 0.00290201087 | M17: 0.02617076201 | N17: 0.03529577938 | O17: 0.03440891863 | P17: 0
E18: =InpR!E$64 -> Average debt cost weighting 2021 | F18: =InpR!F$64 -> 0 | G18: =InpR!G$64 -> Weighting | H18: =InpR!H$64 -> 0 | I18: =InpR!I$64 -> 0 | J18: =InpR!J$64 -> 0 | K18: =InpR!K$64 -> 1 | L18: =InpR!L$64 -> 0 | M18: =InpR!M$64 -> 0 | N18: =InpR!N$64 -> 0 | O18: =InpR!O$64 -> 0 | P18: =InpR!P$64 -> 0
E19: =Time!E$92 -> First modelling period flag | F19: =Time!F$92 -> 0 | G19: =Time!G$92 -> flag | H19: =Time!H$92 -> 0 | I19: =Time!I$92 -> 0 | J19: =Time!J$92 -> 0 | K19: =Time!K$92 -> 1 | L19: =Time!L$92 -> 0 | M19: =Time!M$92 -> 0 | N19: =Time!N$92 -> 0 | O19: =Time!O$92 -> 0 | P19: =Time!P$92 -> 0
E20: 1 year real-CPIH average debt cost 2021 | G20: Percentage | J20: =IFERROR(SUMPRODUCT($J18:J18,$J17:J17) / SUM($J18:J18) * J19,0) -> 0 | K20: =IFERROR(SUMPRODUCT($J18:K18,$J17:K17) / SUM($J18:K18) * K19,0) -> 0.0001370035634 | L20: =IFERROR(SUMPRODUCT($J18:L18,$J17:L17) / SUM($J18:L18) * L19,0) -> 0 | M20: =IFERROR(SUMPRODUCT($J18:M18,$J17:M17) / SUM($J18:M18) * M19,0) -> 0 | N20: =IFERROR(SUMPRODUCT($J18:N18,$J17:N17) / SUM($J18:N18) * N19,0) -> 0 | O20: =IFERROR(SUMPRODUCT($J18:O18,$J17:O17) / SUM($J18:O18) * O19,0) -> 0 | P20: =IFERROR(SUMPRODUCT($J18:P18,$J17:P17) / SUM($J18:P18) * P19,0) -> 0
E22: =E$14 -> 1 year real-CPIH average debt cost | F22: =F$14 -> 0 | G22: Percentage | H22: 0 | I22: 0 | J22: 0 | K22: 0.0001370035634 | L22: 0.00290201087 | M22: 0.02617076201 | N22: 0.03529577938 | O22: 0.03440891863 | P22: 0
E23: =InpR!E$65 -> Average debt cost weighting 2022 | F23: =InpR!F$65 -> 0 | G23: =InpR!G$65 -> Weighting | H23: =InpR!H$65 -> 0 | I23: =InpR!I$65 -> 0 | J23: =InpR!J$65 -> 0 | K23: =InpR!K$65 -> 1 | L23: =InpR!L$65 -> 0.5 | M23: =InpR!M$65 -> 0 | N23: =InpR!N$65 -> 0 | O23: =InpR!O$65 -> 0 | P23: =InpR!P$65 -> 0
E24: =Time!E$96 -> Second modelling period flag | F24: =Time!F$96 -> 0 | G24: =Time!G$96 -> flag | H24: =Time!H$96 -> 0 | I24: =Time!I$96 -> 0 | J24: =Time!J$96 -> 0 | K24: =Time!K$96 -> 0 | L24: =Time!L$96 -> 1 | M24: =Time!M$96 -> 0 | N24: =Time!N$96 -> 0 | O24: =Time!O$96 -> 0 | P24: =Time!P$96 -> 0
E25: 1 year real-CPIH average debt cost 2022 | G25: Percentage | J25: =IFERROR(SUMPRODUCT($J23:J23,$J22:J22) / SUM($J23:J23) * J24,0) -> 0 | K25: =IFERROR(SUMPRODUCT($J23:K23,$J22:K22) / SUM($J23:K23) * K24,0) -> 0 | L25: =IFERROR(SUMPRODUCT($J23:L23,$J22:L22) / SUM($J23:L23) * L24,0) -> 0.001058672665 | M25: =IFERROR(SUMPRODUCT($J23:M23,$J22:M22) / SUM($J23:M23) * M24,0) -> 0 | N25: =IFERROR(SUMPRODUCT($J23:N23,$J22:N22) / SUM($J23:N23) * N24,0) -> 0 | O25: =IFERROR(SUMPRODUCT($J23:O23,$J22:O22) / SUM($J23:O23) * O24,0) -> 0 | P25: =IFERROR(SUMPRODUCT($J23:P23,$J22:P22) / SUM($J23:P23) * P24,0) -> 0
E27: =E$14 -> 1 year real-CPIH average debt cost | F27: =F$14 -> 0 | G27: Percentage | H27: 0 | I27: 0 | J27: 0 | K27: 0.0001370035634 | L27: 0.00290201087 | M27: 0.02617076201 | N27: 0.03529577938 | O27: 0.03440891863 | P27: 0
E28: =InpR!E$66 -> Average debt cost weighting 2023 | F28: =InpR!F$66 -> 0 | G28: =InpR!G$66 -> Weighting | H28: =InpR!H$66 -> 0 | I28: =InpR!I$66 -> 0 | J28: =InpR!J$66 -> 0 | K28: =InpR!K$66 -> 1 | L28: =InpR!L$66 -> 1 | M28: =InpR!M$66 -> 0.5 | N28: =InpR!N$66 -> 0 | O28: =InpR!O$66 -> 0 | P28: =InpR!P$66 -> 0
E29: =Time!E$100 -> Third modelling period flag | F29: =Time!F$100 -> 0 | G29: =Time!G$100 -> flag | H29: =Time!H$100 -> 0 | I29: =Time!I$100 -> 0 | J29: =Time!J$100 -> 0 | K29: =Time!K$100 -> 0 | L29: =Time!L$100 -> 0 | M29: =Time!M$100 -> 1 | N29: =Time!N$100 -> 0 | O29: =Time!O$100 -> 0 | P29: =Time!P$100 -> 0
E30: 1 year real-CPIH average debt cost 2023 | G30: Percentage | J30: =IFERROR(SUMPRODUCT($J28:J28,$J27:J27) / SUM($J28:J28) * J29,0) -> 0 | K30: =IFERROR(SUMPRODUCT($J28:K28,$J27:K27) / SUM($J28:K28) * K29,0) -> 0 | L30: =IFERROR(SUMPRODUCT($J28:L28,$J27:L27) / SUM($J28:L28) * L29,0) -> 0 | M30: =IFERROR(SUMPRODUCT($J28:M28,$J27:M27) / SUM($J28:M28) * M29,0) -> 0.006449758176 | N30: =IFERROR(SUMPRODUCT($J28:N28,$J27:N27) / SUM($J28:N28) * N29,0) -> 0 | O30: =IFERROR(SUMPRODUCT($J28:O28,$J27:O27) / SUM($J28:O28) * O29,0) -> 0 | P30: =IFERROR(SUMPRODUCT($J28:P28,$J27:P27) / SUM($J28:P28) * P29,0) -> 0
E32: =E$14 -> 1 year real-CPIH average debt cost | F32: =F$14 -> 0 | G32: Percentage | H32: 0 | I32: 0 | J32: 0 | K32: 0.0001370035634 | L32: 0.00290201087 | M32: 0.02617076201 | N32: 0.03529577938 | O32: 0.03440891863 | P32: 0
E33: =InpR!E$67 -> Average debt cost weighting 2024 | F33: =InpR!F$67 -> 0 | G33: =InpR!G$67 -> Weighting | H33: =InpR!H$67 -> 0 | I33: =InpR!I$67 -> 0 | J33: =InpR!J$67 -> 0 | K33: =InpR!K$67 -> 1 | L33: =InpR!L$67 -> 1 | M33: =InpR!M$67 -> 1 | N33: =InpR!N$67 -> 0.5 | O33: =InpR!O$67 -> 0 | P33: =InpR!P$67 -> 0
E34: =Time!E$104 -> Fourth modelling period flag | F34: =Time!F$104 -> 0 | G34: =Time!G$104 -> flag | H34: =Time!H$104 -> 0 | I34: =Time!I$104 -> 0 | J34: =Time!J$104 -> 0 | K34: =Time!K$104 -> 0 | L34: =Time!L$104 -> 0 | M34: =Time!M$104 -> 0 | N34: =Time!N$104 -> 1 | O34: =Time!O$104 -> 0 | P34: =Time!P$104 -> 0
E35: 1 year real-CPIH average debt cost 2024 | G35: Percentage | J35: =IFERROR(SUMPRODUCT($J33:J33,$J32:J32) / SUM($J33:J33) * J34,0) -> 0 | K35: =IFERROR(SUMPRODUCT($J33:K33,$J32:K32) / SUM($J33:K33) * K34,0) -> 0 | L35: =IFERROR(SUMPRODUCT($J33:L33,$J32:L32) / SUM($J33:L33) * L34,0) -> 0 | M35: =IFERROR(SUMPRODUCT($J33:M33,$J32:M32) / SUM($J33:M33) * M34,0) -> 0 | N35: =IFERROR(SUMPRODUCT($J33:N33,$J32:N32) / SUM($J33:N33) * N34,0) -> 0.01338790461 | O35: =IFERROR(SUMPRODUCT($J33:O33,$J32:O32) / SUM($J33:O33) * O34,0) -> 0 | P35: =IFERROR(SUMPRODUCT($J33:P33,$J32:P32) / SUM($J33:P33) * P34,0) -> 0
E37: =E$14 -> 1 year real-CPIH average debt cost | F37: =F$14 -> 0 | G37: Percentage | H37: 0 | I37: 0 | J37: 0 | K37: 0.0001370035634 | L37: 0.00290201087 | M37: 0.02617076201 | N37: 0.03529577938 | O37: 0.03440891863 | P37: 0
E38: =InpR!E$68 -> Average debt cost weighting 2025 | F38: =InpR!F$68 -> 0 | G38: =InpR!G$68 -> Weighting | H38: =InpR!H$68 -> 0 | I38: =InpR!I$68 -> 0 | J38: =InpR!J$68 -> 0 | K38: =InpR!K$68 -> 1 | L38: =InpR!L$68 -> 1 | M38: =InpR!M$68 -> 1 | N38: =InpR!N$68 -> 1 | O38: =InpR!O$68 -> 0.5 | P38: =InpR!P$68 -> 0
E39: =Time!E$108 -> Fifth modelling period flag | F39: =Time!F$108 -> 0 | G39: =Time!G$108 -> flag | H39: =Time!H$108 -> 0 | I39: =Time!I$108 -> 0 | J39: =Time!J$108 -> 0 | K39: =Time!K$108 -> 0 | L39: =Time!L$108 -> 0 | M39: =Time!M$108 -> 0 | N39: =Time!N$108 -> 0 | O39: =Time!O$108 -> 1 | P39: =Time!P$108 -> 0
E40: 1 year real-CPIH average debt cost 2025 | G40: Percentage | J40: =IFERROR(SUMPRODUCT($J38:J38,$J37:J37) / SUM($J38:J38) * J39,0) -> 0 | K40: =IFERROR(SUMPRODUCT($J38:K38,$J37:K37) / SUM($J38:K38) * K39,0) -> 0 | L40: =IFERROR(SUMPRODUCT($J38:L38,$J37:L37) / SUM($J38:L38) * L39,0) -> 0 | M40: =IFERROR(SUMPRODUCT($J38:M38,$J37:M37) / SUM($J38:M38) * M39,0) -> 0 | N40: =IFERROR(SUMPRODUCT($J38:N38,$J37:N37) / SUM($J38:N38) * N39,0) -> 0 | O40: =IFERROR(SUMPRODUCT($J38:O38,$J37:O37) / SUM($J38:O38) * O39,0) -> 0.01815778114 | P40: =IFERROR(SUMPRODUCT($J38:P38,$J37:P37) / SUM($J38:P38) * P39,0) -> 0
E43: =E$20 -> 1 year real-CPIH average debt cost 2021 | F43: =F$20 -> 0 | G43: Percentage | H43: 0 | I43: 0 | J43: 0 | K43: 0.0001370035634 | L43: 0 | M43: 0 | N43: 0 | O43: 0 | P43: 0
E44: =E$25 -> 1 year real-CPIH average debt cost 2022 | F44: =F$25 -> 0 | G44: Percentage | H44: 0 | I44: 0 | J44: 0 | K44: 0 | L44: 0.001058672665 | M44: 0 | N44: 0 | O44: 0 | P44: 0
E45: =E$30 -> 1 year real-CPIH average debt cost 2023 | F45: =F$30 -> 0 | G45: Percentage | H45: 0 | I45: 0 | J45: 0 | K45: 0 | L45: 0 | M45: 0.006449758176 | N45: 0 | O45: 0 | P45: 0
E46: =E$35 -> 1 year real-CPIH average debt cost 2024 | F46: =F$35 -> 0 | G46: Percentage | H46: 0 | I46: 0 | J46: 0 | K46: 0 | L46: 0 | M46: 0 | N46: 0.01338790461 | O46: 0 | P46: 0
E47: =E$40 -> 1 year real-CPIH average debt cost 2025 | F47: =F$40 -> 0 | G47: Percentage | H47: 0 | I47: 0 | J47: 0 | K47: 0 | L47: 0 | M47: 0 | N47: 0 | O47: =O$40 -> 0.01815778114 | P47: 0
E48: Extending trailing average rate | G48: Percentage | J48: =SUM(J43:J47) -> 0 | K48: =SUM(K43:K47) -> 0.0001370035634 | L48: =SUM(L43:L47) -> 0.001058672665 | M48: 0.006449758176 | N48: 0.01338790461 | O48: =SUM(O43:O47) -> 0.01815778114 | P48: 0

Sheet Water resources
A1: =RIGHT(CELL("filename", $A$1), LEN(CELL("filename", $A$1)) - SEARCH("]", CELL("filename", $A$1))) -> Water resources
J2: =Time!J$22 -> 2020-03-31 | K2: =Time!K$22 -> 2021-03-31 | L2: =Time!L$22 -> 2022-03-31 | M2: =Time!M$22 -> 2023-03-31 | N2: =Time!N$22 -> 2024-03-31 | O2: =Time!O$22 -> 2025-03-31 | P2: =Time!P$22 -> 2026-03-31
J3: =Time!J$58 -> Pre Fcst | K3: =Time!K$58 -> Forecast | L3: =Time!L$58 -> Forecast | M3: =Time!M$58 -> Forecast | N3: =Time!N$58 -> Forecast | O3: =Time!O$58 -> Forecast | P3: =Time!P$58 -> Post-Fcst
E4: =Time!E$86 -> Financial Year Ending | J4: =Time!J$86 -> 2020 | K4: =Time!K$86 -> 2021 | L4: =Time!L$86 -> 2022 | M4: =Time!M$86 -> 2023 | N4: =Time!N$86 -> 2024 | O4: =Time!O$86 -> 2025 | P4: =Time!P$86 -> 2026
E5: =Time!E$10 -> Model column counter | F5: Constant | G5: Unit | H5: Total | J5: =Time!J$10 -> 1 | K5: =Time!K$10 -> 2 | L5: =Time!L$10 -> 3 | M5: =Time!M$10 -> 4 | N5: =Time!N$10 -> 5 | O5: =Time!O$10 -> 6 | P5: =Time!P$10 -> 7
A7: COST OF DEBT CALCULATION BASED ON INDEX OUTTURN
E8: Company-specific adjustment flag | F8: =IF(InpC!$F$66="YES",1,0) -> 0 | G8: Flag | K8: =$F$8 -> 0 | L8: =$F$8 -> 0 | M8: 0 | N8: 0 | O8: 0
E9: =InpC!E64 -> Company-specific adjustment (new debt) | F9: =InpC!F64 -> 0 | G9: ='Cost of Debt'!G47 -> Percentage | K9: =$F$9 -> 0 | L9: =$F$9 -> 0 | M9: 0 | N9: 0 | O9: 0 | P9: 0
E10: =InpC!E65 -> Company-specific adjustment (embedded debt) | F10: =InpC!$F$65 -> 0 | G10: ='Cost of Debt'!G48 -> Percentage | K10: =$F$10 -> 0 | L10: =$F$10 -> 0 | M10: =$F$10 -> 0 | N10: =$F$10 -> 0 | O10: =$F$10 -> 0
E11: ='Cost of Debt'!E48 -> Extending trailing average rate | F11: ='Cost of Debt'!F48 -> 0 | G11: ='Cost of Debt'!G48 -> Percentage | H11: ='Cost of Debt'!H48 -> 0 | I11: ='Cost of Debt'!I48 -> 0 | J11: ='Cost of Debt'!J48 -> 0 | K11: ='Cost of Debt'!K48 -> 0.0001370035634 | L11: ='Cost of Debt'!L48 -> 0.001058672665 | M11: ='Cost of Debt'!M48 -> 0.006449758176 | N11: ='Cost of Debt'!N48 -> 0.01338790461 | O11: ='Cost of Debt'!O48 -> 0.01815778114 | P11: ='Cost of Debt'!P48 -> 0
E12: Extending trailing average rate (after any CSA adjustments) | G12: Percentage | K12: =K11+(K8*K9) -> 0.0001370035634 | L12: =L11+(L8*L9) -> 0.001058672665 | M12: 0.006449758176 | N12: 0.01338790461 | O12: 0.01815778114 | P12: 0
E13: ='RCV and post 2020 investment'!E18 -> Water Resources New debt for return | F13: ='RCV and post 2020 investment'!F18 -> 0 | G13: ='RCV and post 2020 investment'!G18 -> £m | H13: ='RCV and post 2020 investment'!H18 -> 7.9452 | I13: ='RCV and post 2020 investment'!I18 -> 0 | J13: ='RCV and post 2020 investment'!J18 -> 0 | K13: ='RCV and post 2020 investment'!K18 -> 0.3156 | L13: ='RCV and post 2020 investment'!L18 -> 0.954 | M13: ='RCV and post 2020 investment'!M18 -> 1.5978 | N13: ='RCV and post 2020 investment'!N18 -> 2.22768 | O13: ='RCV and post 2020 investment'!O18 -> 2.85012 | P13: ='RCV and post 2020 investment'!P52 -> 0
E14: Water resources extending trailing average interest cost | G14: £m | H14: =SUM(J14:O14) -> 0.09293445819 | J14: =J11 * J13 -> 0 | K14: =K12 * K13 -> 4.323832462e-05 | L14: =L12 * L13 -> 0.001009973723 | M14: 0.01030542361 | N14: 0.02982396734 | O14: 0.05175185519 | P14: 0
E16: ='RCV and post 2020 investment'!E22 -> Water Resources Embedded debt for return | F16: ='RCV and post 2020 investment'!F22 -> 0 | G16: ='RCV and post 2020 investment'!G22 -> £m | H16: ='RCV and post 2020 investment'!H22 -> 31.7568 | I16: ='RCV and post 2020 investment'!I22 -> 0 | J16: ='RCV and post 2020 investment'!J22 -> 0 | K16: ='RCV and post 2020 investment'!K22 -> 7.5744 | L16: ='RCV and post 2020 investment'!L22 -> 6.996 | M16: ='RCV and post 2020 investment'!M22 -> 6.3912 | N16: ='RCV and post 2020 investment'!N22 -> 5.72832 | O16: ='RCV and post 2020 investment'!O22 -> 5.06688 | P16: ='RCV and post 2020 investment'!P56 -> 0
E17: =InpR!E$37 -> Allowed sector embedded debt cost (not inc. CSA) - final determination (CPIH real) | F17: =InpR!F$37 -> 0 | G17: =InpR!G$37 -> percentage | H17: =InpR!H$37 -> 0 | I17: =InpR!I$37 -> 0 | J17: =InpR!J$37 -> 0 | K17: =InpR!K$37 -> 0.0242 | L17: =InpR!L$37 -> 0.0242 | M17: =InpR!M$37 -> 0.0242 | N17: =InpR!N$37 -> 0.0242 | O17: =InpR!O$37 -> 0.0242 | P17: =InpR!P$37 -> 0
E18: Allowed sector embedded debt cost (after any CSA adjustments) | K18: =K17+(K8*K10) -> 0.0242 | L18: =L17+(L8*L10) -> 0.0242 | M18: 0.0242 | N18: 0.0242 | O18: 0.0242
E19: Water resources Embedded debt interest cost | G19: £m | H19: =SUM(J19:O19) -> 0.76851456 | J19: =J16 * J17 -> 0 | K19: =K16 * K18 -> 0.18330048 | L19: =L16 * L18 -> 0.1693032 | M19: 0.15466704 | N19: 0.138625344 | O19: 0.122618496 | P19: =P16 * P17 -> 0
E21: Water resources outturn allowed new debt cost (CPIH real) | F21: 0 | G21: Percentage | K21: =K12 -> 0.0001370035634 | L21: =L12 -> 0.001058672665 | M21: 0.006449758176 | N21: 0.01338790461 | O21: 0.01815778114
E22: Water resources allowed embedded debt cost (CPIH real) | F22: 0 | G22: Percentage | K22: =K18 -> 0.0242 | L22: =L18 -> 0.0242 | M22: 0.0242 | N22: 0.0242 | O22: 0.0242 | P22: =P17 -> 0
E23: Ratio of new to embedded debt for outturn cost of debt allowance | F23: 0 | G23: Percentage | K23: =InpR!K57 -> 0.04 | L23: =InpR!L57 -> 0.12 | M23: =InpR!M57 -> 0.2 | N23: =InpR!N57 -> 0.28 | O23: =InpR!O57 -> 0.36
E24: Water resources outturn allowed cost of overall debt (CPIH real) | F24: 0 | G24: Percentage | K24: =(K23*K21)+(1-K23)*K22 -> 0.02323748014 | L24: =(L23*L21)+(1-L23)*L22 -> 0.02142304072 | M24: =(M23*M21)+(1-M23)*M22 -> 0.02064995164 | N24: =(N23*N21)+(1-N23)*N22 -> 0.02117261329 | O24: =(O23*O21)+(1-O23)*O22 -> 0.02202480121
E25: CPIH inflation (long-term assumption) | F25: 0 | G25: Percentage | K25: =InpR!K59 -> 0.02 | L25: =InpR!L59 -> 0.02 | M25: =InpR!M59 -> 0.02 | N25: =InpR!N59 -> 0.02 | O25: =InpR!O59 -> 0.02
E26: Issuance and liquidity costs | G26: Percentage | K26: =InpR!K38 -> 0.001 | L26: =InpR!L38 -> 0.001 | M26: =InpR!M38 -> 0.001 | N26: =InpR!N38 -> 0.001 | O26: =InpR!O38 -> 0.001
E27: Water resources outturn allowed cost of overall debt (Nominal) | F27: 0 | G27: Percentage | K27: =((1+K24)*(1+K25)-1)+K26 -> 0.04470222975 | L27: 0.04285150153 | M27: =((1+M24)*(1+M25)-1)+M26 -> 0.04206295067 | N27: =((1+N24)*(1+N25)-1)+N26 -> 0.04259606556 | O27: =((1+O24)*(1+O25)-1)+O26 -> 0.04346529724
E29: =E$14 -> Water resources extending trailing average interest cost | F29: =F$14 -> 0 | G29: £m | H29: 0.09293445819 | I29: 0 | J29: 0 | K29: 4.323832462e-05 | L29: 0.001009973723 | M29: 0.01030542361 | N29: 0.02982396734 | O29: 0.05175185519 | P29: 0
E30: =E$19 -> Water resources Embedded debt interest cost | F30: =F$19 -> 0 | G30: =G$19 -> £m | H30: 0.76851456 | I30: 0 | J30: 0 | K30: 0.18330048 | L30: 0.1693032 | M30: 0.15466704 | N30: 0.138625344 | O30: 0.122618496 | P30: 0
E31: Water resources outturn debt allowance | G31: £m | H31: =SUM(J31:O31) -> 0.8614490182 | J31: =SUM(J29:J30) -> 0 | K31: 0.1833437183 | L31: 0.1703131737 | M31: 0.1649724636 | N31: 0.1684493113 | O31: 0.1743703512 | P31: 0
A33: FD ALLOWANCE
E34: =InpC!E51 -> Notional % of 'new' debt over period | F34: =InpC!F51 -> 0.2 | G34: =InpC!G51 -> percentage | K34: =$F$34 -> 0.2 | L34: =$F$34 -> 0.2 | M34: 0.2 | N34: 0.2 | O34: 0.2 | P34: =InpR!P36 -> 0
E35: =InpR!E36 -> Allowed sector new debt cost (not inc. CSA) - final determination (CPIH real) | F35: =InpR!F36 -> 0 | G35: =InpR!G36 -> percentage | H35: =InpR!H36 -> 0 | I35: =InpR!I36 -> 0 | J35: =InpR!J36 -> 0 | K35: =InpR!K36 -> 0.0053 | L35: =InpR!L36 -> 0.0053 | M35: =InpR!M36 -> 0.0053 | N35: =InpR!N36 -> 0.0053 | O35: =InpR!O36 -> 0.0053 | P35: =P13 -> 0
E36: Allowed sector cost of new debt (after any CSA adjustments) | K36: =K35+(K8*K9) -> 0.0053 | L36: =L35+(L8*L9) -> 0.0053 | M36: =M35+(M8*M9) -> 0.0053 | N36: =N35+(N8*N9) -> 0.0053 | O36: =O35+(O8*O9) -> 0.0053
E37: =InpR!E37 -> Allowed sector embedded debt cost (not inc. CSA) - final determination (CPIH real) | F37: =InpR!F37 -> 0 | G37: =InpR!G37 -> percentage | H37: =InpR!H37 -> 0 | I37: =InpR!I37 -> 0 | J37: =InpR!J37 -> 0 | K37: =InpR!K37 -> 0.0242 | L37: =InpR!L37 -> 0.0242 | M37: =InpR!M37 -> 0.0242 | N37: =InpR!N37 -> 0.0242 | O37: =InpR!O37 -> 0.0242 | P37: =P34*P35 -> 0
E38: Allowed sector cost of embedded debt (after any CSA adjustments) | K38: =K37+(K8*K10) -> 0.0242 | L38: =L37+(L8*L10) -> 0.0242 | M38: =M37+(M8*M10) -> 0.0242 | N38: =N37+(N8*N10) -> 0.0242 | O38: =O37+(O8*O10) -> 0.0242
E39: ='RCV and post 2020 investment'!E14 -> Water Resources Notional debt | F39: ='RCV and post 2020 investment'!F14 -> 0 | G39: ='RCV and post 2020 investment'!G14 -> £m | H39: ='RCV and post 2020 investment'!H14 -> 39.702 | I39: ='RCV and post 2020 investment'!I14 -> 0 | J39: ='RCV and post 2020 investment'!J14 -> 0 | K39: ='RCV and post 2020 investment'!K14 -> 7.89 | L39: ='RCV and post 2020 investment'!L14 -> 7.95 | M39: ='RCV and post 2020 investment'!M14 -> 7.989 | N39: ='RCV and post 2020 investment'!N14 -> 7.956 | O39: ='RCV and post 2020 investment'!O14 -> 7.917
E40: Water resources initial cost of debt allowance | G40: £m | I40: =I$14 -> 0 | K40: =(K39 * K34 * K36) + (K39 * (1-K34) * K38) -> 0.1611138 | L40: =(L39 * L34 * L36) + (L39 * (1-L34) * L38) -> 0.162339 | M40: 0.16313538 | N40: 0.16246152 | O40: 0.16166514 | P40: =(P39 * $F34 * P35) + (P39 * (1-$F34) * P37) -> 0
P41: =P14 -> 0
A42: RECONCILIATION ADJUSTMENTS | P42: =P40-P41 -> 0
E43: =E$31 -> Water resources outturn debt allowance | F43: =F$31 -> 0 | G43: £m | H43: 0.8614490182 | I43: 0 | J43: 0 | K43: 0.1833437183 | L43: 0.1703131737 | M43: 0.1649724636 | N43: 0.1684493113 | O43: 0.1743703512
E44: =E$40 -> Water resources initial cost of debt allowance | F44: =F$40 -> 0 | G44: £m | H44: 0 | I44: 0 | J44: 0 | K44: 0.1611138 | L44: 0.162339 | M44: 0.16313538 | N44: 0.16246152 | O44: 0.16166514
E45: Reconciliation (in-year values) - Water resources | G45: £m | H45: =SUM(J45:O45) -> 0.05073417819 | J45: =J43-J44 -> 0 | K45: 0.02222991832 | L45: 0.007974173723 | M45: 0.001837083613 | N45: 0.005987791342 | O45: 0.01270521119
E47: =InpC!E$61 -> PV base date | F47: =InpC!F$61 -> 2025-03-31 | G47: =InpC!G$61 -> date
E48: =InpC!E$62 -> Days in a year | F48: =InpC!F$62 -> 365 | G48: =InpC!G$62 -> days
E49: =Time!E$22 -> Model Period END | F49: =Time!F$22 -> 0 | G49: =Time!G$22 -> date | H49: =Time!H$22 -> 00:00:00 | I49: =Time!I$22 -> 00:00:00 | J49: =Time!J$22 -> 2020-03-31 | K49: =Time!K$22 -> 2021-03-31 | L49: =Time!L$22 -> 2022-03-31 | M49: =Time!M$22 -> 2023-03-31 | N49: =Time!N$22 -> 2024-03-31 | O49: =Time!O$22 -> 2025-03-31 | P49: =Time!P$22 -> 2026-03-31
E50: Years from valuation date - Water resources | G50: years | J50: =( ( J49 - $F47 ) / $F48 ) * -1 -> 5.002739726 | K50: 4.002739726 | L50: 3.002739726 | M50: 2.002739726 | N50: 1 | O50: 0
E52: =InpC!E56 -> PR19 appointee allowed return on capital (CPIH-deflated using long-term assumption) | F52: =InpC!F56 -> 0.0296 | G52: =InpC!G56 -> percentage | K52: =$F$52 -> 0.0296 | L52: =$F$52 -> 0.0296 | M52: 0.0296 | N52: 0.0296 | O52: 0.0296
E53: =E$50 -> Years from valuation date - Water resources | F53: =F$50 -> 0 | G53: years | H53: 0 | I53: 0 | J53: 5.002739726 | K53: 4.002739726 | L53: 3.002739726 | M53: 2.002739726 | N53: 1 | O53: 0
E54: Discount factor - Water resources | G54: Factor | J54: =(1+$F52) ^J53 -> 1.157117276 | K54: 1.123851278 | L54: 1.091541646 | M54: 1.060160883 | N54: 1.0296 | O54: 1
E56: =E$45 -> Reconciliation (in-year values) - Water resources | F56: =F$45 -> 0 | G56: £m | H56: 0.05073417819 | I56: 0 | J56: 0 | K56: 0.02222991832 | L56: 0.007974173723 | M56: 0.001837083613 | N56: 0.005987791342 | O56: 0.01270521119
E57: =E$54 -> Discount factor - Water resources | F57: =F$54 -> 0 | G57: Factor | H57: 0 | I57: 0 | J57: 1.157117276 | K57: 1.123851278 | L57: 1.091541646 | M57: 1.060160883 | N57: 1.0296 | O57: 1
E58: Discounted reconciliation (in-year values) Water resources | G58: £m | K58: =K57*K56 -> 0.02498312213 | L58: =L57*L56 -> 0.008704142708 | M58: =M57*M56 -> 0.001947604186 | N58: =N57*N56 -> 0.006165029966 | O58: =O57*O56 -> 0.01270521119
E60: =E$58 -> Discounted reconciliation (in-year values) Water resources | F60: =F$58 -> 0 | G60: £m | H60: 0 | I60: 0 | J60: 0 | K60: 0.02498312213 | L60: 0.008704142708 | M60: 0.001947604186 | N60: 0.006165029966 | O60: 0.01270521119
E61: Total value of reconciliation (31 March 2025 present values): Water resources | G61: £m | H61: =SUM(K60:O60) -> 0.05450511017

Sheet Water network +
A1: =RIGHT(CELL("filename", $A$1), LEN(CELL("filename", $A$1)) - SEARCH("]", CELL("filename", $A$1))) -> Water network +
J2: =Time!J$22 -> 2020-03-31 | K2: =Time!K$22 -> 2021-03-31 | L2: =Time!L$22 -> 2022-03-31 | M2: =Time!M$22 -> 2023-03-31 | N2: =Time!N$22 -> 2024-03-31 | O2: =Time!O$22 -> 2025-03-31 | P2: =Time!P$22 -> 2026-03-31
J3: =Time!J$58 -> Pre Fcst | K3: =Time!K$58 -> Forecast | L3: =Time!L$58 -> Forecast | M3: =Time!M$58 -> Forecast | N3: =Time!N$58 -> Forecast | O3: =Time!O$58 -> Forecast | P3: =Time!P$58 -> Post-Fcst
E4: =Time!E$86 -> Financial Year Ending | J4: =Time!J$86 -> 2020 | K4: =Time!K$86 -> 2021 | L4: =Time!L$86 -> 2022 | M4: =Time!M$86 -> 2023 | N4: =Time!N$86 -> 2024 | O4: =Time!O$86 -> 2025 | P4: =Time!P$86 -> 2026
E5: =Time!E$10 -> Model column counter | F5: Constant | G5: Unit | H5: Total | J5: =Time!J$10 -> 1 | K5: =Time!K$10 -> 2 | L5: =Time!L$10 -> 3 | M5: =Time!M$10 -> 4 | N5: =Time!N$10 -> 5 | O5: =Time!O$10 -> 6 | P5: =Time!P$10 -> 7
A7: COST OF DEBT CALCULATION BASED ON INDEX OUTTURN
E8: Company-specific adjustment flag | F8: =IF(InpC!$F$67="YES",1,0) -> 0 | G8: Flag | K8: =$F$8 -> 0 | L8: =$F$8 -> 0 | M8: 0 | N8: 0 | O8: 0
E9: =InpC!E64 -> Company-specific adjustment (new debt) | F9: =InpC!F64 -> 0 | G9: ='Cost of Debt'!G47 -> Percentage | K9: =$F$9 -> 0 | L9: =$F$9 -> 0 | M9: 0 | N9: 0 | O9: 0
E10: =InpC!E65 -> Company-specific adjustment (embedded debt) | F10: =InpC!$F$65 -> 0 | G10: ='Cost of Debt'!G48 -> Percentage | K10: =$F$10 -> 0 | L10: =$F$10 -> 0 | M10: =$F$10 -> 0 | N10: =$F$10 -> 0 | O10: =$F$10 -> 0
E11: ='Cost of Debt'!E48 -> Extending trailing average rate | F11: ='Cost of Debt'!F48 -> 0 | G11: ='Cost of Debt'!G48 -> Percentage | H11: ='Cost of Debt'!H48 -> 0 | I11: ='Cost of Debt'!I48 -> 0 | J11: ='Cost of Debt'!J48 -> 0 | K11: ='Cost of Debt'!K48 -> 0.0001370035634 | L11: ='Cost of Debt'!L48 -> 0.001058672665 | M11: ='Cost of Debt'!M48 -> 0.006449758176 | N11: ='Cost of Debt'!N48 -> 0.01338790461 | O11: ='Cost of Debt'!O48 -> 0.01815778114 | P11: ='Cost of Debt'!P48 -> 0
E12: Extending trailing average rate (after any CSA adjustments) | G12: Percentage | K12: =K11+(K8*K9) -> 0.0001370035634 | L12: =L11+(L8*L9) -> 0.001058672665 | M12: 0.006449758176 | N12: 0.01338790461 | O12: =O11+(O8*O9) -> 0.01815778114 | P12: 0
E13: ='RCV and post 2020 investment'!E35 -> Water Network Plus New debt for return | F13: ='RCV and post 2020 investment'!F35 -> 0 | G13: ='RCV and post 2020 investment'!G35 -> £m | H13: ='RCV and post 2020 investment'!H35 -> 153.5022 | I13: ='RCV and post 2020 investment'!I35 -> 0 | J13: ='RCV and post 2020 investment'!J35 -> 0 | K13: ='RCV and post 2020 investment'!K35 -> 5.78592 | L13: ='RCV and post 2020 investment'!L35 -> 17.90424 | M13: ='RCV and post 2020 investment'!M35 -> 30.6924 | N13: ='RCV and post 2020 investment'!N35 -> 43.39272 | O13: ='RCV and post 2020 investment'!O35 -> 55.72692 | P13: ='RCV and post 2020 investment'!P35 -> 0
E14: Water network + extending trailing average interest cost | G14: £m | H14: =SUM(J14:O14) -> 1.810520792 | J14: =J11 * J13 -> 0 | K14: =K12 * K13 -> 0.0007926916577 | L14: =L12 * L13 -> 0.01895472948 | M14: 0.1979585578 | N14: 0.5809375961 | O14: 1.011877217 | P14: 0
E16: ='RCV and post 2020 investment'!E39 -> Water Network Plus Embedded debt for return | F16: ='RCV and post 2020 investment'!F39 -> 0 | G16: ='RCV and post 2020 investment'!G39 -> £m | H16: ='RCV and post 2020 investment'!H39 -> 603.5808 | I16: ='RCV and post 2020 investment'!I39 -> 0 | J16: ='RCV and post 2020 investment'!J39 -> 0 | K16: ='RCV and post 2020 investment'!K39 -> 138.86208 | L16: ='RCV and post 2020 investment'!L39 -> 131.29776 | M16: ='RCV and post 2020 investment'!M39 -> 122.7696 | N16: ='RCV and post 2020 investment'!N39 -> 111.58128 | O16: ='RCV and post 2020 investment'!O39 -> 99.07008 | P16: ='RCV and post 2020 investment'!P56 -> 0
E17: =InpR!E$37 -> Allowed sector embedded debt cost (not inc. CSA) - final determination (CPIH real) | F17: =InpR!F$37 -> 0 | G17: =InpR!G$37 -> percentage | H17: =InpR!H$37 -> 0 | I17: =InpR!I$37 -> 0 | J17: =InpR!J$37 -> 0 | K17: =InpR!K$37 -> 0.0242 | L17: =InpR!L$37 -> 0.0242 | M17: =InpR!M$37 -> 0.0242 | N17: =InpR!N$37 -> 0.0242 | O17: =InpR!O$37 -> 0.0242 | P17: =InpR!P$37 -> 0
E18: Allowed sector embedded debt cost (after any CSA adjustments) | K18: =K17+(K8*K10) -> 0.0242 | L18: =L17+(L8*L10) -> 0.0242 | M18: 0.0242 | N18: 0.0242 | O18: 0.0242
E19: Water network + Embedded debt interest cost | G19: £m | H19: =SUM(J19:O19) -> 14.60665536 | J19: =J16 * J17 -> 0 | K19: =K16 * K18 -> 3.360462336 | L19: =L16 * L18 -> 3.177405792 | M19: 2.97102432 | N19: 2.700266976 | O19: 2.397495936 | P19: =P16 * P17 -> 0
E21: Water network + outturn allowed new debt cost (CPIH real) | F21: 0 | G21: Percentage | K21: =K12 -> 0.0001370035634 | L21: =L12 -> 0.001058672665 | M21: 0.006449758176 | N21: 0.01338790461 | O21: 0.01815778114
E22: Water network + allowed embedded debt cost (CPIH real) | F22: 0 | G22: Percentage | K22: =K18 -> 0.0242 | L22: =L18 -> 0.0242 | M22: 0.0242 | N22: 0.0242 | O22: 0.0242 | P22: =P17 -> 0
E23: Ratio of new to embedded debt for outturn cost of debt allowance | F23: 0 | G23: Percentage | K23: =InpR!K57 -> 0.04 | L23: =InpR!L57 -> 0.12 | M23: =InpR!M57 -> 0.2 | N23: =InpR!N57 -> 0.28 | O23: =InpR!O57 -> 0.36
E24: Water network + outturn allowed cost of overall debt (CPIH real) | F24: 0 | G24: Percentage | K24: =(K23*K21)+(1-K23)*K22 -> 0.02323748014 | L24: =(L23*L21)+(1-L23)*L22 -> 0.02142304072 | M24: =(M23*M21)+(1-M23)*M22 -> 0.02064995164 | N24: =(N23*N21)+(1-N23)*N22 -> 0.02117261329 | O24: =(O23*O21)+(1-O23)*O22 -> 0.02202480121
E25: CPIH inflation (long-term assumption) | F25: 0 | G25: Percentage | K25: =InpR!K59 -> 0.02 | L25: =InpR!L59 -> 0.02 | M25: =InpR!M59 -> 0.02 | N25: =InpR!N59 -> 0.02 | O25: =InpR!O59 -> 0.02
E26: Issuance and liquidity costs | G26: Percentage | K26: =InpR!K38 -> 0.001 | L26: =InpR!L38 -> 0.001 | M26: =InpR!M38 -> 0.001 | N26: =InpR!N38 -> 0.001 | O26: =InpR!O38 -> 0.001
E27: Water network + outturn allowed cost of overall debt (Nominal) | F27: 0 | G27: Percentage | K27: =((1+K24)*(1+K25)-1)+K26 -> 0.04470222975 | L27: 0.04285150153 | M27: =((1+M24)*(1+M25)-1)+M26 -> 0.04206295067 | N27: =((1+N24)*(1+N25)-1)+N26 -> 0.04259606556 | O27: =((1+O24)*(1+O25)-1)+O26 -> 0.04346529724
E29: =E$14 -> Water network + extending trailing average interest cost | F29: 0 | G29: £m | H29: 1.810520792 | I29: 0 | J29: 0 | K29: 0.0007926916577 | L29: 0.01895472948 | M29: 0.1979585578 | N29: 0.5809375961 | O29: 1.011877217 | P29: 0
E30: =E$19 -> Water network + Embedded debt interest cost | F30: =F$19 -> 0 | G30: =G$19 -> £m | H30: 14.60665536 | I30: 0 | J30: 0 | K30: 3.360462336 | L30: 3.177405792 | M30: 2.97102432 | N30: 2.700266976 | O30: 2.397495936 | P30: 0
E31: Water network + outturn debt allowance | G31: £m | H31: =SUM(J31:O31) -> 16.41717615 | J31: =SUM(J29:J30) -> 0 | K31: 3.361255028 | L31: 3.196360521 | M31: 3.168982878 | N31: 3.281204572 | O31: 3.409373153 | P31: 0
A33: FD ALLOWANCE
E34: =InpC!E51 -> Notional % of 'new' debt over period | F34: =InpC!F51 -> 0.2 | G34: =InpC!G51 -> percentage | K34: =$F$34 -> 0.2 | L34: =$F$34 -> 0.2 | M34: 0.2 | N34: 0.2 | O34: 0.2 | P34: =InpR!P36 -> 0
E35: =InpR!E36 -> Allowed sector new debt cost (not inc. CSA) - final determination (CPIH real) | F35: =InpR!F36 -> 0 | G35: =InpR!G36 -> percentage | H35: =InpR!H36 -> 0 | I35: =InpR!I36 -> 0 | J35: =InpR!J36 -> 0 | K35: =InpR!K36 -> 0.0053 | L35: =InpR!L36 -> 0.0053 | M35: =InpR!M36 -> 0.0053 | N35: =InpR!N36 -> 0.0053 | O35: =InpR!O36 -> 0.0053 | P35: =P13 -> 0
E36: Allowed sector cost of new debt (after any CSA adjustments) | K36: =K35+(K8*K9) -> 0.0053 | L36: =L35+(L8*L9) -> 0.0053 | M36: =M35+(M8*M9) -> 0.0053 | N36: =N35+(N8*N9) -> 0.0053 | O36: =O35+(O8*O9) -> 0.0053
E37: =InpR!E37 -> Allowed sector embedded debt cost (not inc. CSA) - final determination (CPIH real) | F37: =InpR!F37 -> 0 | G37: =InpR!G37 -> percentage | H37: =InpR!H37 -> 0 | I37: =InpR!I37 -> 0 | J37: =InpR!J37 -> 0 | K37: =InpR!K37 -> 0.0242 | L37: =InpR!L37 -> 0.0242 | M37: =InpR!M37 -> 0.0242 | N37: =InpR!N37 -> 0.0242 | O37: =InpR!O37 -> 0.0242 | P37: =P34*P35 -> 0
E38: Allowed sector cost of embedded debt (after any CSA adjustments) | K38: =K37+(K8*K10) -> 0.0242 | L38: =L37+(L8*L10) -> 0.0242 | M38: =M37+(M8*M10) -> 0.0242 | N38: =N37+(N8*N10) -> 0.0242 | O38: =O37+(O8*O10) -> 0.0242
E39: ='RCV and post 2020 investment'!E31 -> Water Network Plus Notional debt | F39: ='RCV and post 2020 investment'!F31 -> 0 | G39: ='RCV and post 2020 investment'!G31 -> £m | H39: ='RCV and post 2020 investment'!H31 -> 757.083 | I39: ='RCV and post 2020 investment'!I31 -> 0 | J39: ='RCV and post 2020 investment'!J31 -> 0 | K39: ='RCV and post 2020 investment'!K31 -> 144.648 | L39: ='RCV and post 2020 investment'!L31 -> 149.202 | M39: ='RCV and post 2020 investment'!M31 -> 153.462 | N39: ='RCV and post 2020 investment'!N31 -> 154.974 | O39: ='RCV and post 2020 investment'!O31 -> 154.797
E40: Water network + initial cost of debt allowance | G40: £m | I40: =I$14 -> 0 | K40: =(K39 * $K34 * K36) + (K39 * (1-$K34) * K38) -> 2.95371216 | L40: =(L39 * $K34 * L36) + (L39 * (1-$K34) * L38) -> 3.04670484 | M40: 3.13369404 | N40: 3.16456908 | O40: 3.16095474 | P40: =(P39 * $F34 * P35) + (P39 * (1-$F34) * P37) -> 0
P41: =P14 -> 0
A42: RECONCILIATION ADJUSTMENTS | P42: =P40-P41 -> 0
E43: =E$31 -> Water network + outturn debt allowance | F43: =F$31 -> 0 | G43: £m | H43: 16.41717615 | I43: 0 | J43: 0 | K43: 3.361255028 | L43: 3.196360521 | M43: 3.168982878 | N43: 3.281204572 | O43: 3.409373153
E44: =E$40 -> Water network + initial cost of debt allowance | F44: =F$40 -> 0 | G44: £m | H44: 0 | I44: 0 | J44: 0 | K44: 2.95371216 | L44: 3.04670484 | M44: 3.13369404 | N44: 3.16456908 | O44: 3.16095474
E45: Reconciliation (in-year values) - Water network + | G45: £m | H45: =SUM(J45:O45) -> 0.9575412922 | J45: =J43-J44 -> 0 | K45: 0.4075428677 | L45: 0.1496556815 | M45: 0.03528883784 | N45: 0.1166354921 | O45: 0.2484184131
E47: =InpC!E$61 -> PV base date | F47: =InpC!F$61 -> 2025-03-31 | G47: =InpC!G$61 -> date
E48: =InpC!E$62 -> Days in a year | F48: =InpC!F$62 -> 365 | G48: =InpC!G$62 -> days
E49: =Time!E$22 -> Model Period END | F49: =Time!F$22 -> 0 | G49: =Time!G$22 -> date | H49: =Time!H$22 -> 00:00:00 | I49: =Time!I$22 -> 00:00:00 | J49: =Time!J$22 -> 2020-03-31 | K49: =Time!K$22 -> 2021-03-31 | L49: =Time!L$22 -> 2022-03-31 | M49: =Time!M$22 -> 2023-03-31 | N49: =Time!N$22 -> 2024-03-31 | O49: =Time!O$22 -> 2025-03-31 | P49: =Time!P$22 -> 2026-03-31
E50: Years from valuation date - Water network + | G50: years | J50: =( ( J49 - $F47 ) / $F48 ) * -1 -> 5.002739726 | K50: 4.002739726 | L50: 3.002739726 | M50: 2.002739726 | N50: 1 | O50: 0
E52: =InpC!E56 -> PR19 appointee allowed return on capital (CPIH-deflated using long-term assumption) | F52: =InpC!F56 -> 0.0296 | G52: =InpC!G56 -> percentage | K52: =$F$52 -> 0.0296 | L52: =$F$52 -> 0.0296 | M52: 0.0296 | N52: 0.0296 | O52: 0.0296
E53: =E$50 -> Years from valuation date - Water network + | F53: =F$50 -> 0 | G53: years | H53: 0 | I53: 0 | J53: 5.002739726 | K53: 4.002739726 | L53: 3.002739726 | M53: 2.002739726 | N53: 1 | O53: 0
E54: Discount factor - Water network + | G54: Factor | J54: =(1+$F52) ^J53 -> 1.157117276 | K54: 1.123851278 | L54: 1.091541646 | M54: 1.060160883 | N54: 1.0296 | O54: 1
E56: =E$45 -> Reconciliation (in-year values) - Water network + | F56: =F$45 -> 0 | G56: £m | H56: 0.9575412922 | I56: 0 | J56: 0 | K56: 0.4075428677 | L56: 0.1496556815 | M56: 0.03528883784 | N56: 0.1166354921 | O56: 0.2484184131
E57: =E$54 -> Discount factor - Water network + | F57: =F$54 -> 0 | G57: Factor | H57: 0 | I57: 0 | J57: 1.157117276 | K57: 1.123851278 | L57: 1.091541646 | M57: 1.060160883 | N57: 1.0296 | O57: 1
E58: Discounted reconciliation (in-year values) Water network + | G58: £m | K58: =K57*K56 -> 0.4580175728 | L58: =L57*L56 -> 0.1633554088 | M58: =M57*M56 -> 0.0374118455 | N58: =N57*N56 -> 0.1200879027 | O58: =O57*O56 -> 0.2484184131
E60: =E$58 -> Discounted reconciliation (in-year values) Water network + | F60: =F$58 -> 0 | G60: £m | H60: 0 | I60: 0 | J60: 0 | K60: 0.4580175728 | L60: 0.1633554088 | M60: 0.0374118455 | N60: 0.1200879027 | O60: 0.2484184131
E61: Total value of reconciliation (31 March 2025 present values): Water network + | G61: £m | H61: =SUM(K60:O60) -> 1.027291143

Sheet Wastewater network +
A1: =RIGHT(CELL("filename", $A$1), LEN(CELL("filename", $A$1)) - SEARCH("]", CELL("filename", $A$1))) -> Wastewater network +
J2: =Time!J$22 -> 2020-03-31 | K2: =Time!K$22 -> 2021-03-31 | L2: =Time!L$22 -> 2022-03-31 | M2: =Time!M$22 -> 2023-03-31 | N2: =Time!N$22 -> 2024-03-31 | O2: =Time!O$22 -> 2025-03-31 | P2: =Time!P$22 -> 2026-03-31
J3: =Time!J$58 -> Pre Fcst | K3: =Time!K$58 -> Forecast | L3: =Time!L$58 -> Forecast | M3: =Time!M$58 -> Forecast | N3: =Time!N$58 -> Forecast | O3: =Time!O$58 -> Forecast | P3: =Time!P$58 -> Post-Fcst
E4: =Time!E$86 -> Financial Year Ending | J4: =Time!J$86 -> 2020 | K4: =Time!K$86 -> 2021 | L4: =Time!L$86 -> 2022 | M4: =Time!M$86 -> 2023 | N4: =Time!N$86 -> 2024 | O4: =Time!O$86 -> 2025 | P4: =Time!P$86 -> 2026
E5: =Time!E$10 -> Model column counter | F5: Constant | G5: Unit | H5: Total | J5: =Time!J$10 -> 1 | K5: =Time!K$10 -> 2 | L5: =Time!L$10 -> 3 | M5: =Time!M$10 -> 4 | N5: =Time!N$10 -> 5 | O5: =Time!O$10 -> 6 | P5: =Time!P$10 -> 7
A7: COST OF DEBT CALCULATION BASED ON INDEX OUTTURN
E8: Company-specific adjustment flag | F8: =IF(InpC!$F$68="YES",1,0) -> 0 | G8: Flag | K8: =$F$8 -> 0 | L8: =$F$8 -> 0 | M8: 0 | N8: 0 | O8: 0
E9: =InpC!E64 -> Company-specific adjustment (new debt) | F9: =InpC!F64 -> 0 | G9: ='Cost of Debt'!G47 -> Percentage | K9: =$F$9 -> 0 | L9: =$F$9 -> 0 | M9: 0 | N9: 0 | O9: 0
E10: =InpC!E65 -> Company-specific adjustment (embedded debt) | F10: =InpC!$F$65 -> 0 | G10: ='Cost of Debt'!G48 -> Percentage | K10: =$F$10 -> 0 | L10: =$F$10 -> 0 | M10: =$F$10 -> 0 | N10: =$F$10 -> 0 | O10: =$F$10 -> 0
E11: ='Cost of Debt'!E48 -> Extending trailing average rate | F11: ='Cost of Debt'!F48 -> 0 | G11: ='Cost of Debt'!G48 -> Percentage | H11: ='Cost of Debt'!H48 -> 0 | I11: ='Cost of Debt'!I48 -> 0 | J11: ='Cost of Debt'!J48 -> 0 | K11: ='Cost of Debt'!K48 -> 0.0001370035634 | L11: ='Cost of Debt'!L48 -> 0.001058672665 | M11: ='Cost of Debt'!M48 -> 0.006449758176 | N11: ='Cost of Debt'!N48 -> 0.01338790461 | O11: ='Cost of Debt'!O48 -> 0.01815778114 | P11: ='Cost of Debt'!P48 -> 0
E12: Extending trailing average rate (after any CSA adjustments) | G12: Percentage | K12: =K11+(K8*K9) -> 0.0001370035634 | L12: =L11+(L8*L9) -> 0.001058672665 | M12: 0.006449758176 | N12: 0.01338790461 | O12: 0.01815778114 | P12: 0
E13: ='RCV and post 2020 investment'!E52 -> Wastewater Network Plus New debt for return | F13: ='RCV and post 2020 investment'!F52 -> 0 | G13: ='RCV and post 2020 investment'!G52 -> £m | H13: ='RCV and post 2020 investment'!H52 -> 0 | I13: ='RCV and post 2020 investment'!I52 -> 0 | J13: ='RCV and post 2020 investment'!J52 -> 0 | K13: ='RCV and post 2020 investment'!K52 -> 0 | L13: ='RCV and post 2020 investment'!L52 -> 0 | M13: ='RCV and post 2020 investment'!M52 -> 0 | N13: ='RCV and post 2020 investment'!N52 -> 0 | O13: ='RCV and post 2020 investment'!O52 -> 0 | P13: ='RCV and post 2020 investment'!P52 -> 0
E14: Wastewater network + extending trailing average interest cost | G14: £m | H14: =SUM(J14:O14) -> 0 | J14: =J11 * J13 -> 0 | K14: =K12 * K13 -> 0 | L14: =L12 * L13 -> 0 | M14: 0 | N14: 0 | O14: 0 | P14: 0
E16: ='RCV and post 2020 investment'!E56 -> Wastewater Network Plus Embedded debt for return | F16: ='RCV and post 2020 investment'!F56 -> 0 | G16: ='RCV and post 2020 investment'!G56 -> £m | H16: ='RCV and post 2020 investment'!H56 -> 0 | I16: ='RCV and post 2020 investment'!I56 -> 0 | J16: ='RCV and post 2020 investment'!J56 -> 0 | K16: ='RCV and post 2020 investment'!K56 -> 0 | L16: ='RCV and post 2020 investment'!L56 -> 0 | M16: ='RCV and post 2020 investment'!M56 -> 0 | N16: ='RCV and post 2020 investment'!N56 -> 0 | O16: ='RCV and post 2020 investment'!O56 -> 0 | P16: ='RCV and post 2020 investment'!P56 -> 0
E17: =InpR!E$37 -> Allowed sector embedded debt cost (not inc. CSA) - final determination (CPIH real) | F17: =InpR!F$37 -> 0 | G17: =InpR!G$37 -> percentage | H17: =InpR!H$37 -> 0 | I17: =InpR!I$37 -> 0 | J17: =InpR!J$37 -> 0 | K17: =InpR!K$37 -> 0.0242 | L17: =InpR!L$37 -> 0.0242 | M17: =InpR!M$37 -> 0.0242 | N17: =InpR!N$37 -> 0.0242 | O17: =InpR!O$37 -> 0.0242 | P17: =InpR!P$37 -> 0
E18: Allowed sector embedded debt cost (after any CSA adjustments) | K18: =K17+(K8*K10) -> 0.0242 | L18: =L17+(L8*L10) -> 0.0242 | M18: 0.0242 | N18: 0.0242 | O18: 0.0242
E19: Wastewater network + Embedded debt interest cost | G19: £m | H19: =SUM(J19:O19) -> 0 | J19: =J16 * J17 -> 0 | K19: =K16 * K18 -> 0 | L19: =L16 * L18 -> 0 | M19: 0 | N19: 0 | O19: 0 | P19: =P16 * P17 -> 0
E21: Wastewater network + outturn allowed new debt cost (CPIH real) | F21: 0 | G21: Percentage | K21: =K12 -> 0.0001370035634 | L21: =L12 -> 0.001058672665 | M21: 0.006449758176 | N21: 0.01338790461 | O21: 0.01815778114
E22: Wastewater network + allowed embedded debt cost (CPIH real) | F22: 0 | G22: Percentage | K22: =K18 -> 0.0242 | L22: =L18 -> 0.0242 | M22: 0.0242 | N22: 0.0242 | O22: 0.0242 | P22: =P17 -> 0
E23: Ratio of new to embedded debt for outturn cost of debt allowance | F23: 0 | G23: Percentage | K23: =InpR!K57 -> 0.04 | L23: =InpR!L57 -> 0.12 | M23: =InpR!M57 -> 0.2 | N23: =InpR!N57 -> 0.28 | O23: =InpR!O57 -> 0.36
E24: Wastewater network + outturn allowed cost of overall debt (CPIH real) | F24: 0 | G24: Percentage | K24: =(K23*K21)+(1-K23)*K22 -> 0.02323748014 | L24: =(L23*L21)+(1-L23)*L22 -> 0.02142304072 | M24: =(M23*M21)+(1-M23)*M22 -> 0.02064995164 | N24: =(N23*N21)+(1-N23)*N22 -> 0.02117261329 | O24: =(O23*O21)+(1-O23)*O22 -> 0.02202480121
E25: CPIH inflation (long-term assumption) | F25: 0 | G25: Percentage | K25: =InpR!K59 -> 0.02 | L25: =InpR!L59 -> 0.02 | M25: =InpR!M59 -> 0.02 | N25: =InpR!N59 -> 0.02 | O25: =InpR!O59 -> 0.02
E26: Issuance and liquidity costs | G26: Percentage | K26: =InpR!K38 -> 0.001 | L26: =InpR!L38 -> 0.001 | M26: =InpR!M38 -> 0.001 | N26: =InpR!N38 -> 0.001 | O26: =InpR!O38 -> 0.001
E27: Wastewater network + outturn allowed cost of overall debt (Nominal) | F27: 0 | G27: Percentage | K27: =((1+K24)*(1+K25)-1)+K26 -> 0.04470222975 | L27: 0.04285150153 | M27: =((1+M24)*(1+M25)-1)+M26 -> 0.04206295067 | N27: =((1+N24)*(1+N25)-1)+N26 -> 0.04259606556 | O27: 0.04346529724
E29: =E$14 -> Wastewater network + extending trailing average interest cost | F29: 0 | G29: £m | H29: 0 | I29: 0 | J29: 0 | K29: 0 | L29: 0 | M29: 0 | N29: 0 | O29: 0 | P29: 0
E30: =E$19 -> Wastewater network + Embedded debt interest cost | F30: =F$19 -> 0 | G30: =G$19 -> £m | H30: 0 | I30: 0 | J30: 0 | K30: 0 | L30: 0 | M30: 0 | N30: 0 | O30: 0 | P30: 0
E31: Wastewater network + outturn debt allowance | G31: £m | H31: =SUM(J31:O31) -> 0 | J31: =SUM(J29:J30) -> 0 | K31: 0 | L31: 0 | M31: 0 | N31: 0 | O31: 0 | P31: 0
A33: FD ALLOWANCE
E34: =InpC!E51 -> Notional % of 'new' debt over period | F34: =InpC!F51 -> 0.2 | G34: =InpC!G51 -> percentage | K34: =$F$34 -> 0.2 | L34: =$F$34 -> 0.2 | M34: 0.2 | N34: 0.2 | O34: 0.2 | P34: =InpR!P36 -> 0
E35: =InpR!E36 -> Allowed sector new debt cost (not inc. CSA) - final determination (CPIH real) | F35: =InpR!F36 -> 0 | G35: =InpR!G36 -> percentage | H35: =InpR!H36 -> 0 | I35: =InpR!I36 -> 0 | J35: =InpR!J36 -> 0 | K35: =InpR!K36 -> 0.0053 | L35: =InpR!L36 -> 0.0053 | M35: =InpR!M36 -> 0.0053 | N35: =InpR!N36 -> 0.0053 | O35: =InpR!O36 -> 0.0053 | P35: =P13 -> 0
E36: Allowed sector cost of new debt (after any CSA adjustments) | K36: =K35+(K8*K9) -> 0.0053 | L36: =L35+(L8*L9) -> 0.0053 | M36: =M35+(M8*M9) -> 0.0053 | N36: =N35+(N8*N9) -> 0.0053 | O36: =O35+(O8*O9) -> 0.0053
E37: =InpR!E37 -> Allowed sector embedded debt cost (not inc. CSA) - final determination (CPIH real) | F37: =InpR!F37 -> 0 | G37: =InpR!G37 -> percentage | H37: =InpR!H37 -> 0 | I37: =InpR!I37 -> 0 | J37: =InpR!J37 -> 0 | K37: =InpR!K37 -> 0.0242 | L37: =InpR!L37 -> 0.0242 | M37: =InpR!M37 -> 0.0242 | N37: =InpR!N37 -> 0.0242 | O37: =InpR!O37 -> 0.0242 | P37: =P34*P35 -> 0
E38: Allowed sector cost of embedded debt (after any CSA adjustments) | K38: =K37+(K8*K10) -> 0.0242 | L38: =L37+(L8*L10) -> 0.0242 | M38: =M37+(M8*M10) -> 0.0242 | N38: =N37+(N8*N10) -> 0.0242 | O38: =O37+(O8*O10) -> 0.0242
E39: ='RCV and post 2020 investment'!E48 -> Wastewater Network Plus Notional debt | F39: ='RCV and post 2020 investment'!F48 -> 0 | G39: ='RCV and post 2020 investment'!G48 -> £m | H39: ='RCV and post 2020 investment'!H48 -> 0 | I39: ='RCV and post 2020 investment'!I48 -> 0 | J39: ='RCV and post 2020 investment'!J48 -> 0 | K39: ='RCV and post 2020 investment'!K48 -> 0 | L39: ='RCV and post 2020 investment'!L48 -> 0 | M39: ='RCV and post 2020 investment'!M48 -> 0 | N39: ='RCV and post 2020 investment'!N48 -> 0 | O39: ='RCV and post 2020 investment'!O48 -> 0
E40: Wastewater network + initial cost of debt allowance | G40: £m | I40: =I$14 -> 0 | K40: =(K39 * $K34 * K36) + (K39 * (1-$K34) * K38) -> 0 | L40: =(L39 * $K34 * L36) + (L39 * (1-$K34) * L38) -> 0 | M40: 0 | N40: 0 | O40: 0 | P40: =(P39 * $F34 * P35) + (P39 * (1-$F34) * P37) -> 0
P41: =P14 -> 0
A42: RECONCILIATION ADJUSTMENTS | P42: =P40-P41 -> 0
E43: =E$31 -> Wastewater network + outturn debt allowance | F43: =F$31 -> 0 | G43: £m | H43: 0 | I43: 0 | J43: 0 | K43: 0 | L43: 0 | M43: 0 | N43: 0 | O43: 0
E44: =E$40 -> Wastewater network + initial cost of debt allowance | F44: =F$40 -> 0 | G44: £m | H44: 0 | I44: 0 | J44: 0 | K44: 0 | L44: 0 | M44: 0 | N44: 0 | O44: 0
E45: Reconciliation (in-year values) - Wastewater network + | G45: £m | H45: =SUM(J45:O45) -> 0 | J45: =J43-J44 -> 0 | K45: 0 | L45: 0 | M45: 0 | N45: 0 | O45: 0
E47: =InpC!E$61 -> PV base date | F47: =InpC!F$61 -> 2025-03-31 | G47: =InpC!G$61 -> date
E48: =InpC!E$62 -> Days in a year | F48: =InpC!F$62 -> 365 | G48: =InpC!G$62 -> days
E49: =Time!E$22 -> Model Period END | F49: =Time!F$22 -> 0 | G49: =Time!G$22 -> date | H49: =Time!H$22 -> 00:00:00 | I49: =Time!I$22 -> 00:00:00 | J49: =Time!J$22 -> 2020-03-31 | K49: =Time!K$22 -> 2021-03-31 | L49: =Time!L$22 -> 2022-03-31 | M49: =Time!M$22 -> 2023-03-31 | N49: =Time!N$22 -> 2024-03-31 | O49: =Time!O$22 -> 2025-03-31 | P49: =Time!P$22 -> 2026-03-31
E50: Years from valuation date - Wastewater network + | G50: years | J50: =( ( J49 - $F47 ) / $F48 ) * -1 -> 5.002739726 | K50: 4.002739726 | L50: 3.002739726 | M50: 2.002739726 | N50: 1 | O50: 0
E52: =InpC!E56 -> PR19 appointee allowed return on capital (CPIH-deflated using long-term assumption) | F52: =InpC!F56 -> 0.0296 | G52: =InpC!G56 -> percentage | K52: =$F$52 -> 0.0296 | L52: =$F$52 -> 0.0296 | M52: 0.0296 | N52: 0.0296 | O52: 0.0296
E53: =E$50 -> Years from valuation date - Wastewater network + | F53: =F$50 -> 0 | G53: years | H53: 0 | I53: 0 | J53: 5.002739726 | K53: 4.002739726 | L53: 3.002739726 | M53: 2.002739726 | N53: 1 | O53: 0
E54: Discount factor - Wastewater network + | G54: Factor | J54: =(1+$F52) ^J53 -> 1.157117276 | K54: 1.123851278 | L54: 1.091541646 | M54: 1.060160883 | N54: 1.0296 | O54: 1
E56: =E$45 -> Reconciliation (in-year values) - Wastewater network + | F56: =F$45 -> 0 | G56: £m | H56: 0 | I56: 0 | J56: 0 | K56: 0 | L56: 0 | M56: 0 | N56: 0 | O56: 0
E57: =E$54 -> Discount factor - Wastewater network + | F57: =F$54 -> 0 | G57: Factor | H57: 0 | I57: 0 | J57: 1.157117276 | K57: 1.123851278 | L57: 1.091541646 | M57: 1.060160883 | N57: 1.0296 | O57: 1
E58: Discounted reconciliation (in-year values) Wastewater network + | G58: £m | K58: =K57*K56 -> 0 | L58: =L57*L56 -> 0 | M58: =M57*M56 -> 0 | N58: =N57*N56 -> 0 | O58: =O57*O56 -> 0
E60: =E$58 -> Discounted reconciliation (in-year values) Wastewater network + | F60: =F$58 -> 0 | G60: £m | H60: 0 | I60: 0 | J60: 0 | K60: 0 | L60: 0 | M60: 0 | N60: 0 | O60: 0
E61: Total value of reconciliation (31 March 2025 present values): Wastewater network + | G61: £m | H61: =SUM(K60:O60) -> 0

Sheet Bioresources
A1: =RIGHT(CELL("filename", $A$1), LEN(CELL("filename", $A$1)) - SEARCH("]", CELL("filename", $A$1))) -> Bioresources
J2: =Time!J$22 -> 2020-03-31 | K2: =Time!K$22 -> 2021-03-31 | L2: =Time!L$22 -> 2022-03-31 | M2: =Time!M$22 -> 2023-03-31 | N2: =Time!N$22 -> 2024-03-31 | O2: =Time!O$22 -> 2025-03-31 | P2: =Time!P$22 -> 2026-03-31
J3: =Time!J$58 -> Pre Fcst | K3: =Time!K$58 -> Forecast | L3: =Time!L$58 -> Forecast | M3: =Time!M$58 -> Forecast | N3: =Time!N$58 -> Forecast | O3: =Time!O$58 -> Forecast | P3: =Time!P$58 -> Post-Fcst
E4: =Time!E$86 -> Financial Year Ending | J4: =Time!J$86 -> 2020 | K4: =Time!K$86 -> 2021 | L4: =Time!L$86 -> 2022 | M4: =Time!M$86 -> 2023 | N4: =Time!N$86 -> 2024 | O4: =Time!O$86 -> 2025 | P4: =Time!P$86 -> 2026
E5: =Time!E$10 -> Model column counter | F5: Constant | G5: Unit | H5: Total | J5: =Time!J$10 -> 1 | K5: =Time!K$10 -> 2 | L5: =Time!L$10 -> 3 | M5: =Time!M$10 -> 4 | N5: =Time!N$10 -> 5 | O5: =Time!O$10 -> 6 | P5: =Time!P$10 -> 7
A7: COST OF DEBT CALCULATION BASED ON INDEX OUTTURN
E8: Company-specific adjustment flag | F8: =IF(InpC!$F$69="YES",1,0) -> 0 | G8: Flag | K8: =$F$8 -> 0 | L8: =$F$8 -> 0 | M8: 0 | N8: 0 | O8: 0
E9: =InpC!E64 -> Company-specific adjustment (new debt) | F9: =InpC!F64 -> 0 | G9: ='Cost of Debt'!G47 -> Percentage | K9: =$F$9 -> 0 | L9: =$F$9 -> 0 | M9: 0 | N9: 0 | O9: 0
E10: =InpC!E65 -> Company-specific adjustment (embedded debt) | F10: =InpC!$F$65 -> 0 | G10: ='Cost of Debt'!G48 -> Percentage | K10: =$F$10 -> 0 | L10: =$F$10 -> 0 | M10: =$F$10 -> 0 | N10: =$F$10 -> 0 | O10: =$F$10 -> 0
E11: ='Cost of Debt'!E48 -> Extending trailing average rate | F11: ='Cost of Debt'!F48 -> 0 | G11: ='Cost of Debt'!G48 -> Percentage | H11: ='Cost of Debt'!H48 -> 0 | I11: ='Cost of Debt'!I48 -> 0 | J11: ='Cost of Debt'!J48 -> 0 | K11: ='Cost of Debt'!K48 -> 0.0001370035634 | L11: ='Cost of Debt'!L48 -> 0.001058672665 | M11: ='Cost of Debt'!M48 -> 0.006449758176 | N11: ='Cost of Debt'!N48 -> 0.01338790461 | O11: ='Cost of Debt'!O48 -> 0.01815778114 | P11: ='Cost of Debt'!P48 -> 0
E12: Extending trailing average rate (after any CSA adjustments) | G12: Percentage | K12: =K11+(K8*K9) -> 0.0001370035634 | L12: =L11+(L8*L9) -> 0.001058672665 | M12: 0.006449758176 | N12: 0.01338790461 | O12: 0.01815778114 | P12: 0
E13: ='RCV and post 2020 investment'!E69 -> Bioresources New debt for return | F13: ='RCV and post 2020 investment'!F69 -> 0 | G13: ='RCV and post 2020 investment'!G69 -> £m | H13: ='RCV and post 2020 investment'!H69 -> 0 | I13: ='RCV and post 2020 investment'!I69 -> 0 | J13: ='RCV and post 2020 investment'!J69 -> 0 | K13: ='RCV and post 2020 investment'!K69 -> 0 | L13: ='RCV and post 2020 investment'!L69 -> 0 | M13: ='RCV and post 2020 investment'!M69 -> 0 | N13: ='RCV and post 2020 investment'!N69 -> 0 | O13: ='RCV and post 2020 investment'!O69 -> 0 | P13: ='RCV and post 2020 investment'!P69 -> 0
E14: Bioresources extending trailing average interest cost | G14: £m | H14: =SUM(J14:O14) -> 0 | J14: =J11 * J13 -> 0 | K14: =K12 * K13 -> 0 | L14: =L12 * L13 -> 0 | M14: 0 | N14: 0 | O14: 0 | P14: 0
E16: ='RCV and post 2020 investment'!E73 -> Bioresources Embedded debt for return | F16: ='RCV and post 2020 investment'!F73 -> 0 | G16: ='RCV and post 2020 investment'!G73 -> £m | H16: ='RCV and post 2020 investment'!H73 -> 0 | I16: ='RCV and post 2020 investment'!I73 -> 0 | J16: ='RCV and post 2020 investment'!J73 -> 0 | K16: ='RCV and post 2020 investment'!K73 -> 0 | L16: ='RCV and post 2020 investment'!L73 -> 0 | M16: ='RCV and post 2020 investment'!M73 -> 0 | N16: ='RCV and post 2020 investment'!N73 -> 0 | O16: ='RCV and post 2020 investment'!O73 -> 0 | P16: ='RCV and post 2020 investment'!P73 -> 0
E17: =InpR!E$37 -> Allowed sector embedded debt cost (not inc. CSA) - final determination (CPIH real) | F17: =InpR!F$37 -> 0 | G17: =InpR!G$37 -> percentage | H17: =InpR!H$37 -> 0 | I17: =InpR!I$37 -> 0 | J17: =InpR!J$37 -> 0 | K17: =InpR!K$37 -> 0.0242 | L17: =InpR!L$37 -> 0.0242 | M17: =InpR!M$37 -> 0.0242 | N17: =InpR!N$37 -> 0.0242 | O17: =InpR!O$37 -> 0.0242 | P17: =InpR!P$37 -> 0
E18: Allowed sector embedded debt cost (after any CSA adjustments) | K18: =K17+(K8*K10) -> 0.0242 | L18: =L17+(L8*L10) -> 0.0242 | M18: 0.0242 | N18: 0.0242 | O18: 0.0242
E19: Bioresources Embedded debt interest cost | G19: £m | H19: =SUM(J19:O19) -> 0 | J19: =J16 * J17 -> 0 | K19: =K16 * K18 -> 0 | L19: =L16 * L18 -> 0 | M19: 0 | N19: 0 | O19: 0 | P19: =P16 * P17 -> 0
E21: Bioresources outturn allowed new debt cost (CPIH real) | F21: 0 | G21: Percentage | K21: =K12 -> 0.0001370035634 | L21: =L12 -> 0.001058672665 | M21: 0.006449758176 | N21: 0.01338790461 | O21: 0.01815778114
E22: Bioresources allowed embedded debt cost (CPIH real) | F22: 0 | G22: Percentage | K22: =K18 -> 0.0242 | L22: =L18 -> 0.0242 | M22: 0.0242 | N22: 0.0242 | O22: 0.0242 | P22: =P17 -> 0
E23: Ratio of new to embedded debt for outturn cost of debt allowance | F23: 0 | G23: Percentage | K23: =InpR!K57 -> 0.04 | L23: =InpR!L57 -> 0.12 | M23: =InpR!M57 -> 0.2 | N23: =InpR!N57 -> 0.28 | O23: =InpR!O57 -> 0.36
E24: Bioresources outturn allowed cost of overall debt (CPIH real) | F24: 0 | G24: Percentage | K24: =(K23*K21)+(1-K23)*K22 -> 0.02323748014 | L24: =(L23*L21)+(1-L23)*L22 -> 0.02142304072 | M24: =(M23*M21)+(1-M23)*M22 -> 0.02064995164 | N24: =(N23*N21)+(1-N23)*N22 -> 0.02117261329 | O24: =(O23*O21)+(1-O23)*O22 -> 0.02202480121
E25: CPIH inflation (long-term assumption) | F25: 0 | G25: Percentage | K25: =InpR!K59 -> 0.02 | L25: =InpR!L59 -> 0.02 | M25: =InpR!M59 -> 0.02 | N25: =InpR!N59 -> 0.02 | O25: =InpR!O59 -> 0.02
E26: Issuance and liquidity costs | G26: Percentage | K26: =InpR!K38 -> 0.001 | L26: =InpR!L38 -> 0.001 | M26: =InpR!M38 -> 0.001 | N26: =InpR!N38 -> 0.001 | O26: =InpR!O38 -> 0.001
E27: Bioresources outturn allowed cost of overall debt (Nominal) | F27: 0 | G27: Percentage | K27: =((1+K24)*(1+K25)-1)+K26 -> 0.04470222975 | L27: 0.04285150153 | M27: =((1+M24)*(1+M25)-1)+M26 -> 0.04206295067 | N27: =((1+N24)*(1+N25)-1)+N26 -> 0.04259606556 | O27: 0.04346529724
E29: =E$14 -> Bioresources extending trailing average interest cost | F29: 0 | G29: £m | H29: 0 | I29: 0 | J29: 0 | K29: 0 | L29: 0 | M29: 0 | N29: 0 | O29: 0 | P29: 0
E30: =E$19 -> Bioresources Embedded debt interest cost | F30: =F$19 -> 0 | G30: =G$19 -> £m | H30: 0 | I30: 0 | J30: 0 | K30: 0 | L30: 0 | M30: 0 | N30: 0 | O30: 0 | P30: 0
E31: Bioresources outturn debt allowance | G31: £m | H31: =SUM(J31:O31) -> 0 | J31: =SUM(J29:J30) -> 0 | K31: 0 | L31: 0 | M31: 0 | N31: 0 | O31: 0 | P31: 0
A33: FD ALLOWANCE
E34: =InpC!E51 -> Notional % of 'new' debt over period | F34: =InpC!F51 -> 0.2 | G34: =InpC!G51 -> percentage | K34: =$F$34 -> 0.2 | L34: =$F$34 -> 0.2 | M34: 0.2 | N34: 0.2 | O34: 0.2 | P34: =InpR!P36 -> 0
E35: =InpR!E36 -> Allowed sector new debt cost (not inc. CSA) - final determination (CPIH real) | F35: =InpR!F36 -> 0 | G35: =InpR!G36 -> percentage | H35: =InpR!H36 -> 0 | I35: =InpR!I36 -> 0 | J35: =InpR!J36 -> 0 | K35: =InpR!K36 -> 0.0053 | L35: =InpR!L36 -> 0.0053 | M35: =InpR!M36 -> 0.0053 | N35: =InpR!N36 -> 0.0053 | O35: =InpR!O36 -> 0.0053 | P35: =P13 -> 0
E36: Allowed sector cost of new debt (after any CSA adjustments) | K36: =K35+(K8*K9) -> 0.0053 | L36: =L35+(L8*L9) -> 0.0053 | M36: =M35+(M8*M9) -> 0.0053 | N36: =N35+(N8*N9) -> 0.0053 | O36: =O35+(O8*O9) -> 0.0053
E37: =InpR!E37 -> Allowed sector embedded debt cost (not inc. CSA) - final determination (CPIH real) | F37: =InpR!F37 -> 0 | G37: =InpR!G37 -> percentage | H37: =InpR!H37 -> 0 | I37: =InpR!I37 -> 0 | J37: =InpR!J37 -> 0 | K37: =InpR!K37 -> 0.0242 | L37: =InpR!L37 -> 0.0242 | M37: =InpR!M37 -> 0.0242 | N37: =InpR!N37 -> 0.0242 | O37: =InpR!O37 -> 0.0242 | P37: =P34*P35 -> 0
E38: Allowed sector cost of embedded debt (after any CSA adjustments) | K38: =K37+(K8*K10) -> 0.0242 | L38: =L37+(L8*L10) -> 0.0242 | M38: =M37+(M8*M10) -> 0.0242 | N38: =N37+(N8*N10) -> 0.0242 | O38: =O37+(O8*O10) -> 0.0242
E39: ='RCV and post 2020 investment'!E65 -> Bioresources Notional debt | F39: ='RCV and post 2020 investment'!F65 -> 0 | G39: ='RCV and post 2020 investment'!G65 -> £m | H39: ='RCV and post 2020 investment'!H65 -> 0 | I39: ='RCV and post 2020 investment'!I65 -> 0 | J39: ='RCV and post 2020 investment'!J65 -> 0 | K39: ='RCV and post 2020 investment'!K65 -> 0 | L39: ='RCV and post 2020 investment'!L65 -> 0 | M39: ='RCV and post 2020 investment'!M65 -> 0 | N39: ='RCV and post 2020 investment'!N65 -> 0 | O39: ='RCV and post 2020 investment'!O65 -> 0
E40: Bioresources initial cost of debt allowance | G40: £m | I40: =I$14 -> 0 | K40: =(K39 * $K34 * K36) + (K39 * (1-$K34) * K38) -> 0 | L40: =(L39 * $K34 * L36) + (L39 * (1-$K34) * L38) -> 0 | M40: 0 | N40: 0 | O40: 0 | P40: =(P39 * $F34 * P35) + (P39 * (1-$F34) * P37) -> 0
P41: =P14 -> 0
A42: RECONCILIATION ADJUSTMENTS | P42: =P40-P41 -> 0
E43: =E$31 -> Bioresources outturn debt allowance | F43: =F$31 -> 0 | G43: £m | H43: 0 | I43: 0 | J43: 0 | K43: 0 | L43: 0 | M43: 0 | N43: 0 | O43: 0
E44: =E$40 -> Bioresources initial cost of debt allowance | F44: =F$40 -> 0 | G44: £m | H44: 0 | I44: 0 | J44: 0 | K44: 0 | L44: 0 | M44: 0 | N44: 0 | O44: 0
E45: Reconciliation (in-year values) - Bioresources | G45: £m | H45: =SUM(J45:O45) -> 0 | J45: =J43-J44 -> 0 | K45: 0 | L45: 0 | M45: 0 | N45: 0 | O45: 0
E47: =InpC!E$61 -> PV base date | F47: =InpC!F$61 -> 2025-03-31 | G47: =InpC!G$61 -> date
E48: =InpC!E$62 -> Days in a year | F48: =InpC!F$62 -> 365 | G48: =InpC!G$62 -> days
E49: =Time!E$22 -> Model Period END | F49: =Time!F$22 -> 0 | G49: =Time!G$22 -> date | H49: =Time!H$22 -> 00:00:00 | I49: =Time!I$22 -> 00:00:00 | J49: =Time!J$22 -> 2020-03-31 | K49: =Time!K$22 -> 2021-03-31 | L49: =Time!L$22 -> 2022-03-31 | M49: =Time!M$22 -> 2023-03-31 | N49: =Time!N$22 -> 2024-03-31 | O49: =Time!O$22 -> 2025-03-31 | P49: =Time!P$22 -> 2026-03-31
E50: Years from valuation date - Bioresources | G50: years | J50: =( ( J49 - $F47 ) / $F48 ) * -1 -> 5.002739726 | K50: 4.002739726 | L50: 3.002739726 | M50: 2.002739726 | N50: 1 | O50: 0
E52: =InpC!E56 -> PR19 appointee allowed return on capital (CPIH-deflated using long-term assumption) | F52: =InpC!F56 -> 0.0296 | G52: =InpC!G56 -> percentage | K52: =$F$52 -> 0.0296 | L52: =$F$52 -> 0.0296 | M52: 0.0296 | N52: 0.0296 | O52: 0.0296
E53: =E$50 -> Years from valuation date - Bioresources | F53: =F$50 -> 0 | G53: years | H53: 0 | I53: 0 | J53: 5.002739726 | K53: 4.002739726 | L53: 3.002739726 | M53: 2.002739726 | N53: 1 | O53: 0
E54: Discount factor - Bioresources | G54: Factor | J54: =(1+$F52) ^J53 -> 1.157117276 | K54: 1.123851278 | L54: 1.091541646 | M54: 1.060160883 | N54: 1.0296 | O54: 1
E56: =E$45 -> Reconciliation (in-year values) - Bioresources | F56: =F$45 -> 0 | G56: £m | H56: 0 | I56: 0 | J56: 0 | K56: 0 | L56: 0 | M56: 0 | N56: 0 | O56: 0
E57: =E$54 -> Discount factor - Bioresources | F57: =F$54 -> 0 | G57: Factor | H57: 0 | I57: 0 | J57: 1.157117276 | K57: 1.123851278 | L57: 1.091541646 | M57: 1.060160883 | N57: 1.0296 | O57: 1
E58: Discounted reconciliation (in-year values) Bioresources | G58: £m | K58: =K57*K56 -> 0 | L58: =L57*L56 -> 0 | M58: =M57*M56 -> 0 | N58: =N57*N56 -> 0 | O58: =O57*O56 -> 0
E60: =E$58 -> Discounted reconciliation (in-year values) Bioresources | F60: =F$58 -> 0 | G60: £m | H60: 0 | I60: 0 | J60: 0 | K60: 0 | L60: 0 | M60: 0 | N60: 0 | O60: 0
E61: Total value of reconciliation (31 March 2025 present values): Bioresources | G61: £m | H61: =SUM(K60:O60) -> 0

Sheet Dummy
A1: =RIGHT(CELL("filename", $A$1), LEN(CELL("filename", $A$1)) - SEARCH("]", CELL("filename", $A$1))) -> Dummy
J2: =Time!J$22 -> 2020-03-31 | K2: =Time!K$22 -> 2021-03-31 | L2: =Time!L$22 -> 2022-03-31 | M2: =Time!M$22 -> 2023-03-31 | N2: =Time!N$22 -> 2024-03-31 | O2: =Time!O$22 -> 2025-03-31 | P2: =Time!P$22 -> 2026-03-31
J3: =Time!J$58 -> Pre Fcst | K3: =Time!K$58 -> Forecast | L3: =Time!L$58 -> Forecast | M3: =Time!M$58 -> Forecast | N3: =Time!N$58 -> Forecast | O3: =Time!O$58 -> Forecast | P3: =Time!P$58 -> Post-Fcst
E4: =Time!E$86 -> Financial Year Ending | J4: =Time!J$86 -> 2020 | K4: =Time!K$86 -> 2021 | L4: =Time!L$86 -> 2022 | M4: =Time!M$86 -> 2023 | N4: =Time!N$86 -> 2024 | O4: =Time!O$86 -> 2025 | P4: =Time!P$86 -> 2026
E5: =Time!E$10 -> Model column counter | F5: Constant | G5: Unit | H5: Total | J5: =Time!J$10 -> 1 | K5: =Time!K$10 -> 2 | L5: =Time!L$10 -> 3 | M5: =Time!M$10 -> 4 | N5: =Time!N$10 -> 5 | O5: =Time!O$10 -> 6 | P5: =Time!P$10 -> 7
A7: COST OF DEBT CALCULATION BASED ON INDEX OUTTURN
E8: Company-specific adjustment flag | F8: =IF(InpC!$F$70="YES",1,0) -> 0 | G8: Flag | K8: =$F$8 -> 0 | L8: =$F$8 -> 0 | M8: 0 | N8: 0 | O8: 0
E9: =InpC!E64 -> Company-specific adjustment (new debt) | F9: =InpC!F64 -> 0 | G9: ='Cost of Debt'!G47 -> Percentage | K9: =$F$9 -> 0 | L9: =$F$9 -> 0 | M9: 0 | N9: 0 | O9: 0
E10: =InpC!E65 -> Company-specific adjustment (embedded debt) | F10: =InpC!$F$65 -> 0 | G10: ='Cost of Debt'!G48 -> Percentage | K10: =$F$10 -> 0 | L10: =$F$10 -> 0 | M10: =$F$10 -> 0 | N10: =$F$10 -> 0 | O10: =$F$10 -> 0
E11: ='Cost of Debt'!E48 -> Extending trailing average rate | F11: ='Cost of Debt'!F48 -> 0 | G11: ='Cost of Debt'!G48 -> Percentage | H11: ='Cost of Debt'!H48 -> 0 | I11: ='Cost of Debt'!I48 -> 0 | J11: ='Cost of Debt'!J48 -> 0 | K11: ='Cost of Debt'!K48 -> 0.0001370035634 | L11: ='Cost of Debt'!L48 -> 0.001058672665 | M11: ='Cost of Debt'!M48 -> 0.006449758176 | N11: ='Cost of Debt'!N48 -> 0.01338790461 | O11: ='Cost of Debt'!O48 -> 0.01815778114 | P11: ='Cost of Debt'!P48 -> 0
E12: Extending trailing average rate (after any CSA adjustments) | G12: Percentage | K12: =K11+(K8*K9) -> 0.0001370035634 | L12: =L11+(L8*L9) -> 0.001058672665 | M12: 0.006449758176 | N12: 0.01338790461 | O12: 0.01815778114 | P12: 0
E13: ='RCV and post 2020 investment'!E86 -> Dummy New debt for return | F13: ='RCV and post 2020 investment'!F86 -> 0 | G13: ='RCV and post 2020 investment'!G86 -> £m | H13: ='RCV and post 2020 investment'!H86 -> 0 | I13: ='RCV and post 2020 investment'!I86 -> 0 | J13: ='RCV and post 2020 investment'!J86 -> 0 | K13: ='RCV and post 2020 investment'!K86 -> 0 | L13: ='RCV and post 2020 investment'!L86 -> 0 | M13: ='RCV and post 2020 investment'!M86 -> 0 | N13: ='RCV and post 2020 investment'!N86 -> 0 | O13: ='RCV and post 2020 investment'!O86 -> 0 | P13: ='RCV and post 2020 investment'!P52 -> 0
E14: Dummy extending trailing average interest cost | G14: £m | H14: =SUM(J14:O14) -> 0 | J14: =J11 * J13 -> 0 | K14: =K12 * K13 -> 0 | L14: =L12 * L13 -> 0 | M14: 0 | N14: 0 | O14: 0 | P14: 0
E16: ='RCV and post 2020 investment'!E90 -> Dummy Embedded debt for return | F16: ='RCV and post 2020 investment'!F56 -> 0 | G16: ='RCV and post 2020 investment'!G56 -> £m | H16: ='RCV and post 2020 investment'!H90 -> 0 | I16: ='RCV and post 2020 investment'!I56 -> 0 | J16: ='RCV and post 2020 investment'!J56 -> 0 | K16: ='RCV and post 2020 investment'!K90 -> 0 | L16: ='RCV and post 2020 investment'!L90 -> 0 | M16: ='RCV and post 2020 investment'!M90 -> 0 | N16: ='RCV and post 2020 investment'!N90 -> 0 | O16: ='RCV and post 2020 investment'!O90 -> 0 | P16: ='RCV and post 2020 investment'!P56 -> 0
E17: =InpR!E$37 -> Allowed sector embedded debt cost (not inc. CSA) - final determination (CPIH real) | F17: =InpR!F$37 -> 0 | G17: =InpR!G$37 -> percentage | H17: =InpR!H$37 -> 0 | I17: =InpR!I$37 -> 0 | J17: =InpR!J$37 -> 0 | K17: =InpR!K$37 -> 0.0242 | L17: =InpR!L$37 -> 0.0242 | M17: =InpR!M$37 -> 0.0242 | N17: =InpR!N$37 -> 0.0242 | O17: =InpR!O$37 -> 0.0242 | P17: =InpR!P$37 -> 0
E18: Allowed sector embedded debt cost (after any CSA adjustments) | K18: =K17+(K8*K10) -> 0.0242 | L18: =L17+(L8*L10) -> 0.0242 | M18: 0.0242 | N18: 0.0242 | O18: 0.0242
E19: Dummy Embedded debt interest cost | G19: £m | H19: =SUM(J19:O19) -> 0 | J19: =J16 * J17 -> 0 | K19: =K16 * K18 -> 0 | L19: =L16 * L18 -> 0 | M19: 0 | N19: 0 | O19: 0 | P19: =P16 * P17 -> 0
E21: Dummy outturn allowed new debt cost (CPIH real) | F21: 0 | G21: Percentage | K21: =K12 -> 0.0001370035634 | L21: =L12 -> 0.001058672665 | M21: 0.006449758176 | N21: 0.01338790461 | O21: 0.01815778114
E22: Dummy allowed embedded debt cost (CPIH real) | F22: 0 | G22: Percentage | K22: =K18 -> 0.0242 | L22: =L18 -> 0.0242 | M22: 0.0242 | N22: 0.0242 | O22: 0.0242 | P22: =P17 -> 0
E23: Ratio of new to embedded debt for outturn cost of debt allowance | F23: 0 | G23: Percentage | K23: =InpR!K57 -> 0.04 | L23: =InpR!L57 -> 0.12 | M23: =InpR!M57 -> 0.2 | N23: =InpR!N57 -> 0.28 | O23: =InpR!O57 -> 0.36
E24: Dummy outturn allowed cost of overall debt (CPIH real) | F24: 0 | G24: Percentage | K24: =(K23*K21)+(1-K23)*K22 -> 0.02323748014 | L24: =(L23*L21)+(1-L23)*L22 -> 0.02142304072 | M24: =(M23*M21)+(1-M23)*M22 -> 0.02064995164 | N24: =(N23*N21)+(1-N23)*N22 -> 0.02117261329 | O24: =(O23*O21)+(1-O23)*O22 -> 0.02202480121
E25: CPIH inflation (long-term assumption) | F25: 0 | G25: Percentage | K25: =InpR!K59 -> 0.02 | L25: =InpR!L59 -> 0.02 | M25: =InpR!M59 -> 0.02 | N25: =InpR!N59 -> 0.02 | O25: =InpR!O59 -> 0.02
E26: Issuance and liquidity costs | G26: Percentage | K26: =InpR!K38 -> 0.001 | L26: =InpR!L38 -> 0.001 | M26: =InpR!M38 -> 0.001 | N26: =InpR!N38 -> 0.001 | O26: =InpR!O38 -> 0.001
E27: Dummy outturn allowed cost of overall debt (Nominal) | F27: 0 | G27: Percentage | K27: =((1+K24)*(1+K25)-1)+K26 -> 0.04470222975 | L27: 0.04285150153 | M27: =((1+M24)*(1+M25)-1)+M26 -> 0.04206295067 | N27: =((1+N24)*(1+N25)-1)+N26 -> 0.04259606556 | O27: 0.04346529724
E29: =E$14 -> Dummy extending trailing average interest cost | F29: 0 | G29: £m | H29: 0 | I29: 0 | J29: 0 | K29: 0 | L29: 0 | M29: 0 | N29: 0 | O29: 0 | P29: 0
E30: =E$19 -> Dummy Embedded debt interest cost | F30: =F$19 -> 0 | G30: =G$19 -> £m | H30: 0 | I30: 0 | J30: 0 | K30: 0 | L30: 0 | M30: 0 | N30: 0 | O30: 0 | P30: 0
E31: Dummy outturn debt allowance | G31: £m | H31: =SUM(J31:O31) -> 0 | J31: =SUM(J29:J30) -> 0 | K31: 0 | L31: 0 | M31: 0 | N31: 0 | O31: 0 | P31: 0
A33: FD ALLOWANCE
E34: =InpC!E51 -> Notional % of 'new' debt over period | F34: =InpC!F51 -> 0.2 | G34: =InpC!G51 -> percentage | K34: =$F$34 -> 0.2 | L34: =$F$34 -> 0.2 | M34: 0.2 | N34: 0.2 | O34: 0.2 | P34: =InpR!P36 -> 0
E35: =InpR!E36 -> Allowed sector new debt cost (not inc. CSA) - final determination (CPIH real) | F35: =InpR!F36 -> 0 | G35: =InpR!G36 -> percentage | H35: =InpR!H36 -> 0 | I35: =InpR!I36 -> 0 | J35: =InpR!J36 -> 0 | K35: =InpR!K36 -> 0.0053 | L35: =InpR!L36 -> 0.0053 | M35: =InpR!M36 -> 0.0053 | N35: =InpR!N36 -> 0.0053 | O35: =InpR!O36 -> 0.0053 | P35: =P13 -> 0
E36: Allowed sector cost of new debt (after any CSA adjustments) | K36: =K35+(K8*K9) -> 0.0053 | L36: =L35+(L8*L9) -> 0.0053 | M36: =M35+(M8*M9) -> 0.0053 | N36: =N35+(N8*N9) -> 0.0053 | O36: =O35+(O8*O9) -> 0.0053
E37: =InpR!E37 -> Allowed sector embedded debt cost (not inc. CSA) - final determination (CPIH real) | F37: =InpR!F37 -> 0 | G37: =InpR!G37 -> percentage | H37: =InpR!H37 -> 0 | I37: =InpR!I37 -> 0 | J37: =InpR!J37 -> 0 | K37: =InpR!K37 -> 0.0242 | L37: =InpR!L37 -> 0.0242 | M37: =InpR!M37 -> 0.0242 | N37: =InpR!N37 -> 0.0242 | O37: =InpR!O37 -> 0.0242 | P37: =P34*P35 -> 0
E38: Allowed sector cost of embedded debt (after any CSA adjustments) | K38: =K37+(K8*K10) -> 0.0242 | L38: =L37+(L8*L10) -> 0.0242 | M38: =M37+(M8*M10) -> 0.0242 | N38: =N37+(N8*N10) -> 0.0242 | O38: =O37+(O8*O10) -> 0.0242
E39: ='RCV and post 2020 investment'!E82 -> Dummy Notional debt | F39: ='RCV and post 2020 investment'!F82 -> 0 | G39: ='RCV and post 2020 investment'!G82 -> £m | H39: ='RCV and post 2020 investment'!H82 -> 0 | I39: ='RCV and post 2020 investment'!I82 -> 0 | J39: ='RCV and post 2020 investment'!J82 -> 0 | K39: ='RCV and post 2020 investment'!K82 -> 0 | L39: ='RCV and post 2020 investment'!L82 -> 0 | M39: ='RCV and post 2020 investment'!M82 -> 0 | N39: ='RCV and post 2020 investment'!N82 -> 0 | O39: ='RCV and post 2020 investment'!O82 -> 0
E40: Dummy initial cost of debt allowance | G40: £m | I40: =I$14 -> 0 | K40: =(K39 * $K34 * K36) + (K39 * (1-$K34) * K38) -> 0 | L40: =(L39 * $K34 * L36) + (L39 * (1-$K34) * L38) -> 0 | M40: 0 | N40: 0 | O40: 0 | P40: =(P39 * $F34 * P35) + (P39 * (1-$F34) * P37) -> 0
P41: =P14 -> 0
A42: RECONCILIATION ADJUSTMENTS | P42: =P40-P41 -> 0
E43: =E$31 -> Dummy outturn debt allowance | F43: =F$31 -> 0 | G43: £m | H43: 0 | I43: 0 | J43: 0 | K43: 0 | L43: 0 | M43: 0 | N43: 0 | O43: 0
E44: =E$40 -> Dummy initial cost of debt allowance | F44: =F$40 -> 0 | G44: £m | H44: 0 | I44: 0 | J44: 0 | K44: 0 | L44: 0 | M44: 0 | N44: 0 | O44: 0
E45: Reconciliation (in-year values) - Dummy | G45: £m | H45: =SUM(J45:O45) -> 0 | J45: =J43-J44 -> 0 | K45: 0 | L45: 0 | M45: 0 | N45: 0 | O45: 0
E47: =InpC!E$61 -> PV base date | F47: =InpC!F$61 -> 2025-03-31 | G47: =InpC!G$61 -> date
E48: =InpC!E$62 -> Days in a year | F48: =InpC!F$62 -> 365 | G48: =InpC!G$62 -> days
E49: =Time!E$22 -> Model Period END | F49: =Time!F$22 -> 0 | G49: =Time!G$22 -> date | H49: =Time!H$22 -> 00:00:00 | I49: =Time!I$22 -> 00:00:00 | J49: =Time!J$22 -> 2020-03-31 | K49: =Time!K$22 -> 2021-03-31 | L49: =Time!L$22 -> 2022-03-31 | M49: =Time!M$22 -> 2023-03-31 | N49: =Time!N$22 -> 2024-03-31 | O49: =Time!O$22 -> 2025-03-31 | P49: =Time!P$22 -> 2026-03-31
E50: Years from valuation date - Dummy | G50: years | J50: =( ( J49 - $F47 ) / $F48 ) * -1 -> 5.002739726 | K50: 4.002739726 | L50: 3.002739726 | M50: 2.002739726 | N50: 1 | O50: 0
E52: =InpC!E56 -> PR19 appointee allowed return on capital (CPIH-deflated using long-term assumption) | F52: =InpC!F56 -> 0.0296 | G52: =InpC!G56 -> percentage | K52: =$F$52 -> 0.0296 | L52: =$F$52 -> 0.0296 | M52: 0.0296 | N52: 0.0296 | O52: 0.0296
E53: =E$50 -> Years from valuation date - Dummy | F53: =F$50 -> 0 | G53: years | H53: 0 | I53: 0 | J53: 5.002739726 | K53: 4.002739726 | L53: 3.002739726 | M53: 2.002739726 | N53: 1 | O53: 0
E54: Discount factor - Dummy | G54: Factor | J54: =(1+$F52) ^J53 -> 1.157117276 | K54: 1.123851278 | L54: 1.091541646 | M54: 1.060160883 | N54: 1.0296 | O54: 1
E56: =E$45 -> Reconciliation (in-year values) - Dummy | F56: =F$45 -> 0 | G56: £m | H56: 0 | I56: 0 | J56: 0 | K56: 0 | L56: 0 | M56: 0 | N56: 0 | O56: 0
E57: =E$54 -> Discount factor - Dummy | F57: =F$54 -> 0 | G57: Factor | H57: 0 | I57: 0 | J57: 1.157117276 | K57: 1.123851278 | L57: 1.091541646 | M57: 1.060160883 | N57: 1.0296 | O57: 1
E58: Discounted reconciliation (in-year values) Dummy | G58: £m | K58: =K57*K56 -> 0 | L58: =L57*L56 -> 0 | M58: =M57*M56 -> 0 | N58: =N57*N56 -> 0 | O58: =O57*O56 -> 0
E60: =E$58 -> Discounted reconciliation (in-year values) Dummy | F60: =F$58 -> 0 | G60: £m | H60: 0 | I60: 0 | J60: 0 | K60: 0 | L60: 0 | M60: 0 | N60: 0 | O60: 0
E61: Total value of reconciliation (31 March 2025 present values): Dummy | G61: £m | H61: =SUM(K60:O60) -> 0

Sheet Output
A1: =RIGHT(CELL("filename", $A$1), LEN(CELL("filename", $A$1)) - SEARCH("]", CELL("filename", $A$1))) -> Output
J2: =Time!J22 -> 2020-03-31 | K2: =Time!K22 -> 2021-03-31 | L2: =Time!L22 -> 2022-03-31 | M2: =Time!M22 -> 2023-03-31 | N2: =Time!N22 -> 2024-03-31 | O2: =Time!O22 -> 2025-03-31 | P2: =Time!P22 -> 2026-03-31
J3: =Time!J58 -> Pre Fcst | K3: =Time!K58 -> Forecast | L3: =Time!L58 -> Forecast | M3: =Time!M58 -> Forecast | N3: =Time!N58 -> Forecast | O3: =Time!O58 -> Forecast | P3: =Time!P58 -> Post-Fcst
J4: =Time!J86 -> 2020 | K4: =Time!K86 -> 2021 | L4: =Time!L86 -> 2022 | M4: =Time!M86 -> 2023 | N4: =Time!N86 -> 2024 | O4: =Time!O86 -> 2025 | P4: =Time!P86 -> 2026
F5: Constant | G5: Unit | H5: Total | J5: =Time!J5 -> 1 | K5: =Time!K5 -> 2 | L5: =Time!L5 -> 3 | M5: =Time!M5 -> 4 | N5: =Time!N5 -> 5 | O5: =Time!O5 -> 6 | P5: =Time!P5 -> 7
A7: Total revenue adjustments applied as part of PR24
E9: Outturn nominal weighted average cost of debt - Water resources | G9: % | K9: ='Water resources'!K27 -> 0.04470222975 | L9: ='Water resources'!L27 -> 0.04285150153 | M9: ='Water resources'!M27 -> 0.04206295067 | N9: ='Water resources'!N27 -> 0.04259606556 | O9: ='Water resources'!O27 -> 0.04346529724
E10: Outturn nominal weighted average cost of debt - Water network plus | G10: % | K10: ='Water network +'!K27 -> 0.04470222975 | L10: ='Water network +'!L27 -> 0.04285150153 | M10: ='Water network +'!M27 -> 0.04206295067 | N10: ='Water network +'!N27 -> 0.04259606556 | O10: ='Water network +'!O27 -> 0.04346529724
E11: Outturn nominal weighted average cost of debt - Wastewater network plus | G11: % | K11: ='Wastewater network +'!K27 -> 0.04470222975 | L11: ='Wastewater network +'!L27 -> 0.04285150153 | M11: ='Wastewater network +'!M27 -> 0.04206295067 | N11: ='Wastewater network +'!N27 -> 0.04259606556 | O11: ='Wastewater network +'!O27 -> 0.04346529724
E12: Outturn nominal weighted average cost of debt - Bioresources | G12: % | K12: =Bioresources!K27 -> 0.04470222975 | L12: =Bioresources!L27 -> 0.04285150153 | M12: =Bioresources!M27 -> 0.04206295067 | N12: =Bioresources!N27 -> 0.04259606556 | O12: =Bioresources!O27 -> 0.04346529724
E13: Outturn nominal weighted average cost of debt - Dummy | G13: % | K13: =Dummy!K27 -> 0.04470222975 | L13: =Dummy!L27 -> 0.04285150153 | M13: =Dummy!M27 -> 0.04206295067 | N13: =Dummy!N27 -> 0.04259606556 | O13: =Dummy!O27 -> 0.04346529724
E15: Revenue adjustment from new debt reconciliation - Water resources | G15: £m, CPIH-deflated 2017/18 prices, 2024/25 present values | K15: ='Water resources'!K60 -> 0.02498312213 | L15: ='Water resources'!L60 -> 0.008704142708 | M15: ='Water resources'!M60 -> 0.001947604186 | N15: ='Water resources'!N60 -> 0.006165029966 | O15: ='Water resources'!O60 -> 0.01270521119
E16: Revenue adjustment from new debt reconciliation - Water network plus | G16: £m, CPIH-deflated 2017/18 prices, 2024/25 present values | K16: ='Water network +'!K60 -> 0.4580175728 | L16: ='Water network +'!L60 -> 0.1633554088 | M16: ='Water network +'!M60 -> 0.0374118455 | N16: ='Water network +'!N60 -> 0.1200879027 | O16: ='Water network +'!O60 -> 0.2484184131
E17: Revenue adjustment from new debt reconciliation - Wastewater network plus | G17: £m, CPIH-deflated 2017/18 prices, 2024/25 present values | K17: ='Wastewater network +'!K60 -> 0 | L17: ='Wastewater network +'!L60 -> 0 | M17: ='Wastewater network +'!M60 -> 0 | N17: ='Wastewater network +'!N60 -> 0 | O17: ='Wastewater network +'!O60 -> 0
E18: Revenue adjustment from new debt reconciliation - Bioresources | G18: £m, CPIH-deflated 2017/18 prices, 2024/25 present values | K18: =Bioresources!K60 -> 0 | L18: =Bioresources!L60 -> 0 | M18: =Bioresources!M60 -> 0 | N18: =Bioresources!N60 -> 0 | O18: =Bioresources!O60 -> 0
E19: Revenue adjustment from new debt reconciliation - Dummy | G19: £m, CPIH-deflated 2017/18 prices, 2024/25 present values | K19: =Dummy!K60 -> 0 | L19: =Dummy!L60 -> 0 | M19: =Dummy!M60 -> 0 | N19: =Dummy!N60 -> 0 | O19: =Dummy!O60 -> 0
